Organisation Name,Organisation Code,Unique Ref No,Effective Date,Directorate where expenditure incurred,Supplier Name ,Payment Date,Net amount,Purpose of Spend,Procurement Classification (Higher Level),Procurement Classification (Lower Level),CAPITAL / REVENUE
Walsall Council,http://opendatacommunities.org/id/metropolitan-district-council/walsall,WC125-1,30.04.2021,CHILDRENS,247 CARS (WILLENHALL) LIMITED,21/04/2021,"1,330.00",6241-Hire of Vehicle with Driver,TRANSPORT,DIRECT TRANSPORT COSTS,REVENUE
Walsall Council,http://opendatacommunities.org/id/metropolitan-district-council/walsall,WC125-2,30.04.2021,CHILDRENS,247 CARS (WILLENHALL) LIMITED,21/04/2021,792.40,6241-Hire of Vehicle with Driver,TRANSPORT,DIRECT TRANSPORT COSTS,REVENUE
Walsall Council,http://opendatacommunities.org/id/metropolitan-district-council/walsall,WC125-3,30.04.2021,CHILDRENS,247 CARS (WILLENHALL) LIMITED,21/04/2021,"1,096.20",6241-Hire of Vehicle with Driver,TRANSPORT,DIRECT TRANSPORT COSTS,REVENUE
Walsall Council,http://opendatacommunities.org/id/metropolitan-district-council/walsall,WC125-4,30.04.2021,RESOURCES AND TRANSFORMATION,3 SPIRIT UK TRAINING & CONSULTANCY,13/04/2021,750.00,6625-Consultant Fees,SUPPLIES & SERVICES,SERVICES,REVENUE
Walsall Council,http://opendatacommunities.org/id/metropolitan-district-council/walsall,WC125-5,30.04.2021,RESOURCES AND TRANSFORMATION,3 SPIRIT UK TRAINING & CONSULTANCY,21/04/2021,725.00,6625-Consultant Fees,SUPPLIES & SERVICES,SERVICES,REVENUE
Walsall Council,http://opendatacommunities.org/id/metropolitan-district-council/walsall,WC125-6,30.04.2021,RESOURCES AND TRANSFORMATION,4 SIGHT EYECARE CENTRE 002,30/04/2021,400.00,6625-Eye Tests,DIRECT EMPLOYEES,EMPLOYEE ALLOWANCES & EXPENSES,REVENUE
Walsall Council,http://opendatacommunities.org/id/metropolitan-district-council/walsall,WC125-7,30.04.2021,RESOURCES AND TRANSFORMATION,4 SIGHT EYECARE CENTRE 002,30/04/2021,600.00,6625-Eye Tests,DIRECT EMPLOYEES,EMPLOYEE ALLOWANCES & EXPENSES,REVENUE
Walsall Council,http://opendatacommunities.org/id/metropolitan-district-council/walsall,WC125-8,30.04.2021,ADULT SOCIAL CARE,5 CARE SERVICES LTD,12/04/2021,539.70,6541-Domiciliary Care,THIRD PARTY PAYMENTS,PRIVATE CONTRACTOR,REVENUE
Walsall Council,http://opendatacommunities.org/id/metropolitan-district-council/walsall,WC125-9,30.04.2021,ADULT SOCIAL CARE,5 CARE SERVICES LTD,12/04/2021,485.73,6541-Domiciliary Care,THIRD PARTY PAYMENTS,PRIVATE CONTRACTOR,REVENUE
Walsall Council,http://opendatacommunities.org/id/metropolitan-district-council/walsall,WC125-10,30.04.2021,ADULT SOCIAL CARE,5 CARE SERVICES LTD,12/04/2021,740.16,6541-Domiciliary Care,THIRD PARTY PAYMENTS,PRIVATE CONTRACTOR,REVENUE
Walsall Council,http://opendatacommunities.org/id/metropolitan-district-council/walsall,WC125-11,30.04.2021,ADULT SOCIAL CARE,5 CARE SERVICES LTD,12/04/2021,585.96,6541-Domiciliary Care,THIRD PARTY PAYMENTS,PRIVATE CONTRACTOR,REVENUE
Walsall Council,http://opendatacommunities.org/id/metropolitan-district-council/walsall,WC125-12,30.04.2021,ADULT SOCIAL CARE,5 CARE SERVICES LTD,12/04/2021,262.14,6541-Domiciliary Care,THIRD PARTY PAYMENTS,PRIVATE CONTRACTOR,REVENUE
Walsall Council,http://opendatacommunities.org/id/metropolitan-district-council/walsall,WC125-13,30.04.2021,ADULT SOCIAL CARE,5 CARE SERVICES LTD,12/04/2021,593.67,6541-Domiciliary Care,THIRD PARTY PAYMENTS,PRIVATE CONTRACTOR,REVENUE
Walsall Council,http://opendatacommunities.org/id/metropolitan-district-council/walsall,WC125-14,30.04.2021,ADULT SOCIAL CARE,5 CARE SERVICES LTD,12/04/2021,416.34,6541-Domiciliary Care,THIRD PARTY PAYMENTS,PRIVATE CONTRACTOR,REVENUE
Walsall Council,http://opendatacommunities.org/id/metropolitan-district-council/walsall,WC125-15,30.04.2021,ADULT SOCIAL CARE,5 CARE SERVICES LTD,12/04/2021,308.40,6541-Domiciliary Care,THIRD PARTY PAYMENTS,PRIVATE CONTRACTOR,REVENUE
Walsall Council,http://opendatacommunities.org/id/metropolitan-district-council/walsall,WC125-16,30.04.2021,ADULT SOCIAL CARE,5 CARE SERVICES LTD,12/04/2021,431.76,6541-Domiciliary Care,THIRD PARTY PAYMENTS,PRIVATE CONTRACTOR,REVENUE
Walsall Council,http://opendatacommunities.org/id/metropolitan-district-council/walsall,WC125-17,30.04.2021,ADULT SOCIAL CARE,5 CARE SERVICES LTD,12/04/2021,304.58,6541-Domiciliary Care,THIRD PARTY PAYMENTS,PRIVATE CONTRACTOR,REVENUE
Walsall Council,http://opendatacommunities.org/id/metropolitan-district-council/walsall,WC125-18,30.04.2021,ADULT SOCIAL CARE,5 CARE SERVICES LTD,12/04/2021,647.64,6541-Domiciliary Care,THIRD PARTY PAYMENTS,PRIVATE CONTRACTOR,REVENUE
Walsall Council,http://opendatacommunities.org/id/metropolitan-district-council/walsall,WC125-19,30.04.2021,ADULT SOCIAL CARE,5 CARE SERVICES LTD,12/04/2021,323.82,6541-Domiciliary Care,THIRD PARTY PAYMENTS,PRIVATE CONTRACTOR,REVENUE
Walsall Council,http://opendatacommunities.org/id/metropolitan-district-council/walsall,WC125-20,30.04.2021,ADULT SOCIAL CARE,5 CARE SERVICES LTD,12/04/2021,"1,665.36",6541-Domiciliary Care,THIRD PARTY PAYMENTS,PRIVATE CONTRACTOR,REVENUE
Walsall Council,http://opendatacommunities.org/id/metropolitan-district-council/walsall,WC125-21,30.04.2021,ADULT SOCIAL CARE,5 CARE SERVICES LTD,12/04/2021,593.67,6541-Domiciliary Care,THIRD PARTY PAYMENTS,PRIVATE CONTRACTOR,REVENUE
Walsall Council,http://opendatacommunities.org/id/metropolitan-district-council/walsall,WC125-22,30.04.2021,ADULT SOCIAL CARE,5 CARE SERVICES LTD,12/04/2021,755.58,6541-Domiciliary Care,THIRD PARTY PAYMENTS,PRIVATE CONTRACTOR,REVENUE
Walsall Council,http://opendatacommunities.org/id/metropolitan-district-council/walsall,WC125-23,30.04.2021,ADULT SOCIAL CARE,5 CARE SERVICES LTD,12/04/2021,251.93,6541-Domiciliary Care,THIRD PARTY PAYMENTS,PRIVATE CONTRACTOR,REVENUE
Walsall Council,http://opendatacommunities.org/id/metropolitan-district-council/walsall,WC125-24,30.04.2021,ADULT SOCIAL CARE,5 CARE SERVICES LTD,12/04/2021,485.73,6541-Domiciliary Care,THIRD PARTY PAYMENTS,PRIVATE CONTRACTOR,REVENUE
Walsall Council,http://opendatacommunities.org/id/metropolitan-district-council/walsall,WC125-25,30.04.2021,ADULT SOCIAL CARE,5 CARE SERVICES LTD,12/04/2021,503.72,6541-Domiciliary Care,THIRD PARTY PAYMENTS,PRIVATE CONTRACTOR,REVENUE
Walsall Council,http://opendatacommunities.org/id/metropolitan-district-council/walsall,WC125-26,30.04.2021,ADULT SOCIAL CARE,5 CARE SERVICES LTD,12/04/2021,699.04,6541-Domiciliary Care,THIRD PARTY PAYMENTS,PRIVATE CONTRACTOR,REVENUE
Walsall Council,http://opendatacommunities.org/id/metropolitan-district-council/walsall,WC125-27,30.04.2021,ADULT SOCIAL CARE,5 CARE SERVICES LTD,12/04/2021,"1,218.18",6541-Domiciliary Care,THIRD PARTY PAYMENTS,PRIVATE CONTRACTOR,REVENUE
Walsall Council,http://opendatacommunities.org/id/metropolitan-district-council/walsall,WC125-28,30.04.2021,ADULT SOCIAL CARE,5 CARE SERVICES LTD,12/04/2021,647.64,6541-Domiciliary Care,THIRD PARTY PAYMENTS,PRIVATE CONTRACTOR,REVENUE
Walsall Council,http://opendatacommunities.org/id/metropolitan-district-council/walsall,WC125-29,30.04.2021,ADULT SOCIAL CARE,5 CARE SERVICES LTD,12/04/2021,300.69,6541-Domiciliary Care,THIRD PARTY PAYMENTS,PRIVATE CONTRACTOR,REVENUE
Walsall Council,http://opendatacommunities.org/id/metropolitan-district-council/walsall,WC125-30,30.04.2021,ADULT SOCIAL CARE,5 CARE SERVICES LTD,12/04/2021,"2,482.62",6541-Domiciliary Care,THIRD PARTY PAYMENTS,PRIVATE CONTRACTOR,REVENUE
Walsall Council,http://opendatacommunities.org/id/metropolitan-district-council/walsall,WC125-31,30.04.2021,ADULT SOCIAL CARE,5 CARE SERVICES LTD,12/04/2021,"1,187.34",6541-Domiciliary Care,THIRD PARTY PAYMENTS,PRIVATE CONTRACTOR,REVENUE
Walsall Council,http://opendatacommunities.org/id/metropolitan-district-council/walsall,WC125-32,30.04.2021,ADULT SOCIAL CARE,5 CARE SERVICES LTD,12/04/2021,308.40,6541-Domiciliary Care,THIRD PARTY PAYMENTS,PRIVATE CONTRACTOR,REVENUE
Walsall Council,http://opendatacommunities.org/id/metropolitan-district-council/walsall,WC125-33,30.04.2021,ADULT SOCIAL CARE,5 CARE SERVICES LTD,12/04/2021,323.82,6541-Domiciliary Care,THIRD PARTY PAYMENTS,PRIVATE CONTRACTOR,REVENUE
Walsall Council,http://opendatacommunities.org/id/metropolitan-district-council/walsall,WC125-34,30.04.2021,ADULT SOCIAL CARE,5 CARE SERVICES LTD,12/04/2021,542.86,6541-Domiciliary Care,THIRD PARTY PAYMENTS,PRIVATE CONTRACTOR,REVENUE
Walsall Council,http://opendatacommunities.org/id/metropolitan-district-council/walsall,WC125-35,30.04.2021,ADULT SOCIAL CARE,5 CARE SERVICES LTD,12/04/2021,488.57,6541-Domiciliary Care,THIRD PARTY PAYMENTS,PRIVATE CONTRACTOR,REVENUE
Walsall Council,http://opendatacommunities.org/id/metropolitan-district-council/walsall,WC125-36,30.04.2021,ADULT SOCIAL CARE,5 CARE SERVICES LTD,12/04/2021,928.80,6541-Domiciliary Care,THIRD PARTY PAYMENTS,PRIVATE CONTRACTOR,REVENUE
Walsall Council,http://opendatacommunities.org/id/metropolitan-district-council/walsall,WC125-37,30.04.2021,ADULT SOCIAL CARE,5 CARE SERVICES LTD,12/04/2021,590.02,6541-Domiciliary Care,THIRD PARTY PAYMENTS,PRIVATE CONTRACTOR,REVENUE
Walsall Council,http://opendatacommunities.org/id/metropolitan-district-council/walsall,WC125-38,30.04.2021,ADULT SOCIAL CARE,5 CARE SERVICES LTD,12/04/2021,255.83,6541-Domiciliary Care,THIRD PARTY PAYMENTS,PRIVATE CONTRACTOR,REVENUE
Walsall Council,http://opendatacommunities.org/id/metropolitan-district-council/walsall,WC125-39,30.04.2021,ADULT SOCIAL CARE,5 CARE SERVICES LTD,12/04/2021,597.07,6541-Domiciliary Care,THIRD PARTY PAYMENTS,PRIVATE CONTRACTOR,REVENUE
Walsall Council,http://opendatacommunities.org/id/metropolitan-district-council/walsall,WC125-40,30.04.2021,ADULT SOCIAL CARE,5 CARE SERVICES LTD,12/04/2021,488.57,6541-Domiciliary Care,THIRD PARTY PAYMENTS,PRIVATE CONTRACTOR,REVENUE
Walsall Council,http://opendatacommunities.org/id/metropolitan-district-council/walsall,WC125-41,30.04.2021,ADULT SOCIAL CARE,5 CARE SERVICES LTD,12/04/2021,302.25,6541-Domiciliary Care,THIRD PARTY PAYMENTS,PRIVATE CONTRACTOR,REVENUE
Walsall Council,http://opendatacommunities.org/id/metropolitan-district-council/walsall,WC125-42,30.04.2021,ADULT SOCIAL CARE,5 CARE SERVICES LTD,12/04/2021,309.64,6541-Domiciliary Care,THIRD PARTY PAYMENTS,PRIVATE CONTRACTOR,REVENUE
Walsall Council,http://opendatacommunities.org/id/metropolitan-district-council/walsall,WC125-43,30.04.2021,ADULT SOCIAL CARE,5 CARE SERVICES LTD,12/04/2021,434.32,6541-Domiciliary Care,THIRD PARTY PAYMENTS,PRIVATE CONTRACTOR,REVENUE
Walsall Council,http://opendatacommunities.org/id/metropolitan-district-council/walsall,WC125-44,30.04.2021,ADULT SOCIAL CARE,5 CARE SERVICES LTD,12/04/2021,305.98,6541-Domiciliary Care,THIRD PARTY PAYMENTS,PRIVATE CONTRACTOR,REVENUE
Walsall Council,http://opendatacommunities.org/id/metropolitan-district-council/walsall,WC125-45,30.04.2021,ADULT SOCIAL CARE,5 CARE SERVICES LTD,12/04/2021,651.36,6541-Domiciliary Care,THIRD PARTY PAYMENTS,PRIVATE CONTRACTOR,REVENUE
Walsall Council,http://opendatacommunities.org/id/metropolitan-district-council/walsall,WC125-46,30.04.2021,ADULT SOCIAL CARE,5 CARE SERVICES LTD,12/04/2021,325.74,6541-Domiciliary Care,THIRD PARTY PAYMENTS,PRIVATE CONTRACTOR,REVENUE
Walsall Council,http://opendatacommunities.org/id/metropolitan-district-council/walsall,WC125-47,30.04.2021,ADULT SOCIAL CARE,5 CARE SERVICES LTD,12/04/2021,597.11,6541-Domiciliary Care,THIRD PARTY PAYMENTS,PRIVATE CONTRACTOR,REVENUE
Walsall Council,http://opendatacommunities.org/id/metropolitan-district-council/walsall,WC125-48,30.04.2021,ADULT SOCIAL CARE,5 CARE SERVICES LTD,12/04/2021,759.98,6541-Domiciliary Care,THIRD PARTY PAYMENTS,PRIVATE CONTRACTOR,REVENUE
Walsall Council,http://opendatacommunities.org/id/metropolitan-district-council/walsall,WC125-49,30.04.2021,ADULT SOCIAL CARE,5 CARE SERVICES LTD,12/04/2021,253.33,6541-Domiciliary Care,THIRD PARTY PAYMENTS,PRIVATE CONTRACTOR,REVENUE
Walsall Council,http://opendatacommunities.org/id/metropolitan-district-council/walsall,WC125-50,30.04.2021,ADULT SOCIAL CARE,5 CARE SERVICES LTD,12/04/2021,309.60,6541-Domiciliary Care,THIRD PARTY PAYMENTS,PRIVATE CONTRACTOR,REVENUE
Walsall Council,http://opendatacommunities.org/id/metropolitan-district-council/walsall,WC125-51,30.04.2021,ADULT SOCIAL CARE,5 CARE SERVICES LTD,12/04/2021,325.70,6541-Domiciliary Care,THIRD PARTY PAYMENTS,PRIVATE CONTRACTOR,REVENUE
Walsall Council,http://opendatacommunities.org/id/metropolitan-district-council/walsall,WC125-52,30.04.2021,ADULT SOCIAL CARE,5 CARE SERVICES LTD,12/04/2021,"2,496.90",6541-Domiciliary Care,THIRD PARTY PAYMENTS,PRIVATE CONTRACTOR,REVENUE
Walsall Council,http://opendatacommunities.org/id/metropolitan-district-council/walsall,WC125-53,30.04.2021,ADULT SOCIAL CARE,5 CARE SERVICES LTD,12/04/2021,"1,193.94",6541-Domiciliary Care,THIRD PARTY PAYMENTS,PRIVATE CONTRACTOR,REVENUE
Walsall Council,http://opendatacommunities.org/id/metropolitan-district-council/walsall,WC125-54,30.04.2021,ADULT SOCIAL CARE,5 CARE SERVICES LTD,12/04/2021,277.56,6541-Domiciliary Care,THIRD PARTY PAYMENTS,PRIVATE CONTRACTOR,REVENUE
Walsall Council,http://opendatacommunities.org/id/metropolitan-district-council/walsall,WC125-55,30.04.2021,ADULT SOCIAL CARE,5 CARE SERVICES LTD,12/04/2021,488.57,6541-Domiciliary Care,THIRD PARTY PAYMENTS,PRIVATE CONTRACTOR,REVENUE
Walsall Council,http://opendatacommunities.org/id/metropolitan-district-council/walsall,WC125-56,30.04.2021,ADULT SOCIAL CARE,5 CARE SERVICES LTD,12/04/2021,703.00,6541-Domiciliary Care,THIRD PARTY PAYMENTS,PRIVATE CONTRACTOR,REVENUE
Walsall Council,http://opendatacommunities.org/id/metropolitan-district-council/walsall,WC125-57,30.04.2021,ADULT SOCIAL CARE,5 CARE SERVICES LTD,12/04/2021,651.40,6541-Domiciliary Care,THIRD PARTY PAYMENTS,PRIVATE CONTRACTOR,REVENUE
Walsall Council,http://opendatacommunities.org/id/metropolitan-district-council/walsall,WC125-58,30.04.2021,ADULT SOCIAL CARE,5 CARE SERVICES LTD,26/04/2021,311.36,6541-Domiciliary Care,THIRD PARTY PAYMENTS,PRIVATE CONTRACTOR,REVENUE
Walsall Council,http://opendatacommunities.org/id/metropolitan-district-council/walsall,WC125-59,30.04.2021,ADULT SOCIAL CARE,5 CARE SERVICES LTD,26/04/2021,435.80,6541-Domiciliary Care,THIRD PARTY PAYMENTS,PRIVATE CONTRACTOR,REVENUE
Walsall Council,http://opendatacommunities.org/id/metropolitan-district-council/walsall,WC125-60,30.04.2021,ADULT SOCIAL CARE,5 CARE SERVICES LTD,26/04/2021,307.63,6541-Domiciliary Care,THIRD PARTY PAYMENTS,PRIVATE CONTRACTOR,REVENUE
Walsall Council,http://opendatacommunities.org/id/metropolitan-district-council/walsall,WC125-61,30.04.2021,ADULT SOCIAL CARE,5 CARE SERVICES LTD,26/04/2021,653.93,6541-Domiciliary Care,THIRD PARTY PAYMENTS,PRIVATE CONTRACTOR,REVENUE
Walsall Council,http://opendatacommunities.org/id/metropolitan-district-council/walsall,WC125-62,30.04.2021,ADULT SOCIAL CARE,5 CARE SERVICES LTD,26/04/2021,326.85,6541-Domiciliary Care,THIRD PARTY PAYMENTS,PRIVATE CONTRACTOR,REVENUE
Walsall Council,http://opendatacommunities.org/id/metropolitan-district-council/walsall,WC125-63,30.04.2021,ADULT SOCIAL CARE,5 CARE SERVICES LTD,26/04/2021,544.79,6541-Domiciliary Care,THIRD PARTY PAYMENTS,PRIVATE CONTRACTOR,REVENUE
Walsall Council,http://opendatacommunities.org/id/metropolitan-district-council/walsall,WC125-64,30.04.2021,ADULT SOCIAL CARE,5 CARE SERVICES LTD,26/04/2021,490.37,6541-Domiciliary Care,THIRD PARTY PAYMENTS,PRIVATE CONTRACTOR,REVENUE
Walsall Council,http://opendatacommunities.org/id/metropolitan-district-council/walsall,WC125-65,30.04.2021,ADULT SOCIAL CARE,5 CARE SERVICES LTD,26/04/2021,591.50,6541-Domiciliary Care,THIRD PARTY PAYMENTS,PRIVATE CONTRACTOR,REVENUE
Walsall Council,http://opendatacommunities.org/id/metropolitan-district-council/walsall,WC125-66,30.04.2021,ADULT SOCIAL CARE,5 CARE SERVICES LTD,26/04/2021,599.36,6541-Domiciliary Care,THIRD PARTY PAYMENTS,PRIVATE CONTRACTOR,REVENUE
Walsall Council,http://opendatacommunities.org/id/metropolitan-district-council/walsall,WC125-67,30.04.2021,ADULT SOCIAL CARE,5 CARE SERVICES LTD,26/04/2021,490.37,6541-Domiciliary Care,THIRD PARTY PAYMENTS,PRIVATE CONTRACTOR,REVENUE
Walsall Council,http://opendatacommunities.org/id/metropolitan-district-council/walsall,WC125-68,30.04.2021,ADULT SOCIAL CARE,5 CARE SERVICES LTD,26/04/2021,705.68,6541-Domiciliary Care,THIRD PARTY PAYMENTS,PRIVATE CONTRACTOR,REVENUE
Walsall Council,http://opendatacommunities.org/id/metropolitan-district-council/walsall,WC125-69,30.04.2021,ADULT SOCIAL CARE,5 CARE SERVICES LTD,26/04/2021,762.73,6541-Domiciliary Care,THIRD PARTY PAYMENTS,PRIVATE CONTRACTOR,REVENUE
Walsall Council,http://opendatacommunities.org/id/metropolitan-district-council/walsall,WC125-70,30.04.2021,ADULT SOCIAL CARE,5 CARE SERVICES LTD,26/04/2021,599.51,6541-Domiciliary Care,THIRD PARTY PAYMENTS,PRIVATE CONTRACTOR,REVENUE
Walsall Council,http://opendatacommunities.org/id/metropolitan-district-council/walsall,WC125-71,30.04.2021,ADULT SOCIAL CARE,5 CARE SERVICES LTD,26/04/2021,490.37,6541-Domiciliary Care,THIRD PARTY PAYMENTS,PRIVATE CONTRACTOR,REVENUE
Walsall Council,http://opendatacommunities.org/id/metropolitan-district-council/walsall,WC125-72,30.04.2021,ADULT SOCIAL CARE,5 CARE SERVICES LTD,26/04/2021,257.00,6541-Domiciliary Care,THIRD PARTY PAYMENTS,PRIVATE CONTRACTOR,REVENUE
Walsall Council,http://opendatacommunities.org/id/metropolitan-district-council/walsall,WC125-73,30.04.2021,ADULT SOCIAL CARE,5 CARE SERVICES LTD,26/04/2021,303.72,6541-Domiciliary Care,THIRD PARTY PAYMENTS,PRIVATE CONTRACTOR,REVENUE
Walsall Council,http://opendatacommunities.org/id/metropolitan-district-council/walsall,WC125-74,30.04.2021,ADULT SOCIAL CARE,5 CARE SERVICES LTD,26/04/2021,254.38,6541-Domiciliary Care,THIRD PARTY PAYMENTS,PRIVATE CONTRACTOR,REVENUE
Walsall Council,http://opendatacommunities.org/id/metropolitan-district-council/walsall,WC125-75,30.04.2021,ADULT SOCIAL CARE,5 CARE SERVICES LTD,26/04/2021,653.89,6541-Domiciliary Care,THIRD PARTY PAYMENTS,PRIVATE CONTRACTOR,REVENUE
Walsall Council,http://opendatacommunities.org/id/metropolitan-district-council/walsall,WC125-76,30.04.2021,ADULT SOCIAL CARE,5 CARE SERVICES LTD,26/04/2021,"2,506.29",6541-Domiciliary Care,THIRD PARTY PAYMENTS,PRIVATE CONTRACTOR,REVENUE
Walsall Council,http://opendatacommunities.org/id/metropolitan-district-council/walsall,WC125-77,30.04.2021,ADULT SOCIAL CARE,5 CARE SERVICES LTD,26/04/2021,"1,198.89",6541-Domiciliary Care,THIRD PARTY PAYMENTS,PRIVATE CONTRACTOR,REVENUE
Walsall Council,http://opendatacommunities.org/id/metropolitan-district-council/walsall,WC125-78,30.04.2021,ADULT SOCIAL CARE,5 CARE SERVICES LTD,26/04/2021,311.40,6541-Domiciliary Care,THIRD PARTY PAYMENTS,PRIVATE CONTRACTOR,REVENUE
Walsall Council,http://opendatacommunities.org/id/metropolitan-district-council/walsall,WC125-79,30.04.2021,ADULT SOCIAL CARE,5 CARE SERVICES LTD,26/04/2021,326.89,6541-Domiciliary Care,THIRD PARTY PAYMENTS,PRIVATE CONTRACTOR,REVENUE
Walsall Council,http://opendatacommunities.org/id/metropolitan-district-council/walsall,WC125-80,30.04.2021,ADULT SOCIAL CARE,5 CARE SERVICES LTD,26/04/2021,544.95,6541-Domiciliary Care,THIRD PARTY PAYMENTS,PRIVATE CONTRACTOR,REVENUE
Walsall Council,http://opendatacommunities.org/id/metropolitan-district-council/walsall,WC125-81,30.04.2021,ADULT SOCIAL CARE,5 CARE SERVICES LTD,26/04/2021,490.49,6541-Domiciliary Care,THIRD PARTY PAYMENTS,PRIVATE CONTRACTOR,REVENUE
Walsall Council,http://opendatacommunities.org/id/metropolitan-district-council/walsall,WC125-82,30.04.2021,ADULT SOCIAL CARE,5 CARE SERVICES LTD,26/04/2021,591.66,6541-Domiciliary Care,THIRD PARTY PAYMENTS,PRIVATE CONTRACTOR,REVENUE
Walsall Council,http://opendatacommunities.org/id/metropolitan-district-council/walsall,WC125-83,30.04.2021,ADULT SOCIAL CARE,5 CARE SERVICES LTD,26/04/2021,654.01,6541-Domiciliary Care,THIRD PARTY PAYMENTS,PRIVATE CONTRACTOR,REVENUE
Walsall Council,http://opendatacommunities.org/id/metropolitan-district-council/walsall,WC125-84,30.04.2021,ADULT SOCIAL CARE,5 CARE SERVICES LTD,26/04/2021,257.00,6541-Domiciliary Care,THIRD PARTY PAYMENTS,PRIVATE CONTRACTOR,REVENUE
Walsall Council,http://opendatacommunities.org/id/metropolitan-district-council/walsall,WC125-85,30.04.2021,ADULT SOCIAL CARE,5 CARE SERVICES LTD,26/04/2021,303.72,6541-Domiciliary Care,THIRD PARTY PAYMENTS,PRIVATE CONTRACTOR,REVENUE
Walsall Council,http://opendatacommunities.org/id/metropolitan-district-council/walsall,WC125-86,30.04.2021,ADULT SOCIAL CARE,5 CARE SERVICES LTD,26/04/2021,"2,506.77",6541-Domiciliary Care,THIRD PARTY PAYMENTS,PRIVATE CONTRACTOR,REVENUE
Walsall Council,http://opendatacommunities.org/id/metropolitan-district-council/walsall,WC125-87,30.04.2021,ADULT SOCIAL CARE,5 CARE SERVICES LTD,26/04/2021,"1,198.89",6541-Domiciliary Care,THIRD PARTY PAYMENTS,PRIVATE CONTRACTOR,REVENUE
Walsall Council,http://opendatacommunities.org/id/metropolitan-district-council/walsall,WC125-88,30.04.2021,ADULT SOCIAL CARE,5 CARE SERVICES LTD,26/04/2021,526.82,6541-Domiciliary Care,THIRD PARTY PAYMENTS,PRIVATE CONTRACTOR,REVENUE
Walsall Council,http://opendatacommunities.org/id/metropolitan-district-council/walsall,WC125-89,30.04.2021,ADULT SOCIAL CARE,5 CARE SERVICES LTD,26/04/2021,747.36,6541-Domiciliary Care,THIRD PARTY PAYMENTS,PRIVATE CONTRACTOR,REVENUE
Walsall Council,http://opendatacommunities.org/id/metropolitan-district-council/walsall,WC125-90,30.04.2021,ADULT SOCIAL CARE,5 CARE SERVICES LTD,26/04/2021,599.55,6541-Domiciliary Care,THIRD PARTY PAYMENTS,PRIVATE CONTRACTOR,REVENUE
Walsall Council,http://opendatacommunities.org/id/metropolitan-district-council/walsall,WC125-91,30.04.2021,ADULT SOCIAL CARE,5 CARE SERVICES LTD,26/04/2021,490.49,6541-Domiciliary Care,THIRD PARTY PAYMENTS,PRIVATE CONTRACTOR,REVENUE
Walsall Council,http://opendatacommunities.org/id/metropolitan-district-council/walsall,WC125-92,30.04.2021,ADULT SOCIAL CARE,5 CARE SERVICES LTD,26/04/2021,254.38,6541-Domiciliary Care,THIRD PARTY PAYMENTS,PRIVATE CONTRACTOR,REVENUE
Walsall Council,http://opendatacommunities.org/id/metropolitan-district-council/walsall,WC125-93,30.04.2021,ADULT SOCIAL CARE,5 CARE SERVICES LTD,26/04/2021,311.40,6541-Domiciliary Care,THIRD PARTY PAYMENTS,PRIVATE CONTRACTOR,REVENUE
Walsall Council,http://opendatacommunities.org/id/metropolitan-district-council/walsall,WC125-94,30.04.2021,ADULT SOCIAL CARE,5 CARE SERVICES LTD,26/04/2021,326.97,6541-Domiciliary Care,THIRD PARTY PAYMENTS,PRIVATE CONTRACTOR,REVENUE
Walsall Council,http://opendatacommunities.org/id/metropolitan-district-council/walsall,WC125-95,30.04.2021,ADULT SOCIAL CARE,5 CARE SERVICES LTD,26/04/2021,311.40,6541-Domiciliary Care,THIRD PARTY PAYMENTS,PRIVATE CONTRACTOR,REVENUE
Walsall Council,http://opendatacommunities.org/id/metropolitan-district-council/walsall,WC125-96,30.04.2021,ADULT SOCIAL CARE,5 CARE SERVICES LTD,26/04/2021,435.96,6541-Domiciliary Care,THIRD PARTY PAYMENTS,PRIVATE CONTRACTOR,REVENUE
Walsall Council,http://opendatacommunities.org/id/metropolitan-district-council/walsall,WC125-97,30.04.2021,ADULT SOCIAL CARE,5 CARE SERVICES LTD,26/04/2021,654.01,6541-Domiciliary Care,THIRD PARTY PAYMENTS,PRIVATE CONTRACTOR,REVENUE
Walsall Council,http://opendatacommunities.org/id/metropolitan-district-council/walsall,WC125-98,30.04.2021,ADULT SOCIAL CARE,5 CARE SERVICES LTD,26/04/2021,326.97,6541-Domiciliary Care,THIRD PARTY PAYMENTS,PRIVATE CONTRACTOR,REVENUE
Walsall Council,http://opendatacommunities.org/id/metropolitan-district-council/walsall,WC125-99,30.04.2021,ADULT SOCIAL CARE,5 CARE SERVICES LTD,26/04/2021,599.48,6541-Domiciliary Care,THIRD PARTY PAYMENTS,PRIVATE CONTRACTOR,REVENUE
Walsall Council,http://opendatacommunities.org/id/metropolitan-district-council/walsall,WC125-100,30.04.2021,ADULT SOCIAL CARE,5 CARE SERVICES LTD,26/04/2021,490.49,6541-Domiciliary Care,THIRD PARTY PAYMENTS,PRIVATE CONTRACTOR,REVENUE
Walsall Council,http://opendatacommunities.org/id/metropolitan-district-council/walsall,WC125-101,30.04.2021,ADULT SOCIAL CARE,5 CARE SERVICES LTD,26/04/2021,705.84,6541-Domiciliary Care,THIRD PARTY PAYMENTS,PRIVATE CONTRACTOR,REVENUE
Walsall Council,http://opendatacommunities.org/id/metropolitan-district-council/walsall,WC125-102,30.04.2021,ADULT SOCIAL CARE,5 CARE SERVICES LTD,13/04/2021,"2,791.02",6554-Professional Services-Priv Contractor & Other Agencies,THIRD PARTY PAYMENTS,PRIVATE CONTRACTOR,REVENUE
Walsall Council,http://opendatacommunities.org/id/metropolitan-district-council/walsall,WC125-103,30.04.2021,ADULT SOCIAL CARE,5 CARE SERVICES LTD,13/04/2021,277.56,6554-Professional Services-Priv Contractor & Other Agencies,THIRD PARTY PAYMENTS,PRIVATE CONTRACTOR,REVENUE
Walsall Council,http://opendatacommunities.org/id/metropolitan-district-council/walsall,WC125-104,30.04.2021,ADULT SOCIAL CARE,5 CARE SERVICES LTD,13/04/2021,724.74,6554-Professional Services-Priv Contractor & Other Agencies,THIRD PARTY PAYMENTS,PRIVATE CONTRACTOR,REVENUE
Walsall Council,http://opendatacommunities.org/id/metropolitan-district-council/walsall,WC125-105,30.04.2021,ADULT SOCIAL CARE,5 CARE SERVICES LTD,13/04/2021,285.31,6554-Professional Services-Priv Contractor & Other Agencies,THIRD PARTY PAYMENTS,PRIVATE CONTRACTOR,REVENUE
Walsall Council,http://opendatacommunities.org/id/metropolitan-district-council/walsall,WC125-106,30.04.2021,CHILDRENS,5 CARE SERVICES LTD,06/04/2021,"-19,140.00",6220-Professional Fees & Services,SUPPLIES & SERVICES,SERVICES,REVENUE
Walsall Council,http://opendatacommunities.org/id/metropolitan-district-council/walsall,WC125-107,30.04.2021,CHILDRENS,5 CARE SERVICES LTD,06/04/2021,"19,140.00",6220-Professional Fees & Services,SUPPLIES & SERVICES,SERVICES,REVENUE
Walsall Council,http://opendatacommunities.org/id/metropolitan-district-council/walsall,WC125-108,30.04.2021,ADULT SOCIAL CARE,5 CARE SERVICES LTD,13/04/2021,393.32,6554-Professional Services-Priv Contractor & Other Agencies,THIRD PARTY PAYMENTS,PRIVATE CONTRACTOR,REVENUE
Walsall Council,http://opendatacommunities.org/id/metropolitan-district-council/walsall,WC125-109,30.04.2021,ADULT SOCIAL CARE,5 CARE SERVICES LTD,13/04/2021,370.15,6554-Professional Services-Priv Contractor & Other Agencies,THIRD PARTY PAYMENTS,PRIVATE CONTRACTOR,REVENUE
Walsall Council,http://opendatacommunities.org/id/metropolitan-district-council/walsall,WC125-110,30.04.2021,ADULT SOCIAL CARE,5 CARE SERVICES LTD,13/04/2021,"1,110.24",6554-Professional Services-Priv Contractor & Other Agencies,THIRD PARTY PAYMENTS,PRIVATE CONTRACTOR,REVENUE
Walsall Council,http://opendatacommunities.org/id/metropolitan-district-council/walsall,WC125-111,30.04.2021,ADULT SOCIAL CARE,5 CARE SERVICES LTD,09/04/2021,971.60,6554-Professional Services-Priv Contractor & Other Agencies,THIRD PARTY PAYMENTS,PRIVATE CONTRACTOR,REVENUE
Walsall Council,http://opendatacommunities.org/id/metropolitan-district-council/walsall,WC125-112,30.04.2021,ADULT SOCIAL CARE,5 CARE SERVICES LTD,09/04/2021,878.94,6554-Professional Services-Priv Contractor & Other Agencies,THIRD PARTY PAYMENTS,PRIVATE CONTRACTOR,REVENUE
Walsall Council,http://opendatacommunities.org/id/metropolitan-district-council/walsall,WC125-113,30.04.2021,ADULT SOCIAL CARE,5 CARE SERVICES LTD,07/04/2021,"1,110.24",6541-Domiciliary Care,THIRD PARTY PAYMENTS,PRIVATE CONTRACTOR,REVENUE
Walsall Council,http://opendatacommunities.org/id/metropolitan-district-council/walsall,WC125-114,30.04.2021,ADULT SOCIAL CARE,5 CARE SERVICES LTD,15/04/2021,416.34,6554-Professional Services-Priv Contractor & Other Agencies,THIRD PARTY PAYMENTS,PRIVATE CONTRACTOR,REVENUE
Walsall Council,http://opendatacommunities.org/id/metropolitan-district-council/walsall,WC125-115,30.04.2021,ADULT SOCIAL CARE,5 CARE SERVICES LTD,15/04/2021,262.19,6554-Professional Services-Priv Contractor & Other Agencies,THIRD PARTY PAYMENTS,PRIVATE CONTRACTOR,REVENUE
Walsall Council,http://opendatacommunities.org/id/metropolitan-district-council/walsall,WC125-116,30.04.2021,ADULT SOCIAL CARE,5 CARE SERVICES LTD,15/04/2021,"1,110.24",6554-Professional Services-Priv Contractor & Other Agencies,THIRD PARTY PAYMENTS,PRIVATE CONTRACTOR,REVENUE
Walsall Council,http://opendatacommunities.org/id/metropolitan-district-council/walsall,WC125-117,30.04.2021,ADULT SOCIAL CARE,5 CARE SERVICES LTD,16/04/2021,971.60,6554-Professional Services-Priv Contractor & Other Agencies,THIRD PARTY PAYMENTS,PRIVATE CONTRACTOR,REVENUE
Walsall Council,http://opendatacommunities.org/id/metropolitan-district-council/walsall,WC125-118,30.04.2021,ADULT SOCIAL CARE,5 CARE SERVICES LTD,16/04/2021,601.38,6554-Professional Services-Priv Contractor & Other Agencies,THIRD PARTY PAYMENTS,PRIVATE CONTRACTOR,REVENUE
Walsall Council,http://opendatacommunities.org/id/metropolitan-district-council/walsall,WC125-119,30.04.2021,ADULT SOCIAL CARE,5 CARE SERVICES LTD,16/04/2021,"3,608.28",6554-Professional Services-Priv Contractor & Other Agencies,THIRD PARTY PAYMENTS,PRIVATE CONTRACTOR,REVENUE
Walsall Council,http://opendatacommunities.org/id/metropolitan-district-council/walsall,WC125-120,30.04.2021,ADULT SOCIAL CARE,5 CARE SERVICES LTD,16/04/2021,"1,112.49",6554-Professional Services-Priv Contractor & Other Agencies,THIRD PARTY PAYMENTS,PRIVATE CONTRACTOR,REVENUE
Walsall Council,http://opendatacommunities.org/id/metropolitan-district-council/walsall,WC125-121,30.04.2021,ADULT SOCIAL CARE,5 CARE SERVICES LTD,27/04/2021,311.24,6554-Professional Services-Priv Contractor & Other Agencies,THIRD PARTY PAYMENTS,PRIVATE CONTRACTOR,REVENUE
Walsall Council,http://opendatacommunities.org/id/metropolitan-district-council/walsall,WC125-122,30.04.2021,ADULT SOCIAL CARE,5 CARE SERVICES LTD,27/04/2021,378.94,6554-Professional Services-Priv Contractor & Other Agencies,THIRD PARTY PAYMENTS,PRIVATE CONTRACTOR,REVENUE
Walsall Council,http://opendatacommunities.org/id/metropolitan-district-council/walsall,WC125-123,30.04.2021,ADULT SOCIAL CARE,5 CARE SERVICES LTD,27/04/2021,467.73,6554-Professional Services-Priv Contractor & Other Agencies,THIRD PARTY PAYMENTS,PRIVATE CONTRACTOR,REVENUE
Walsall Council,http://opendatacommunities.org/id/metropolitan-district-council/walsall,WC125-124,30.04.2021,ADULT SOCIAL CARE,5 CARE SERVICES LTD,27/04/2021,462.60,6554-Professional Services-Priv Contractor & Other Agencies,THIRD PARTY PAYMENTS,PRIVATE CONTRACTOR,REVENUE
Walsall Council,http://opendatacommunities.org/id/metropolitan-district-council/walsall,WC125-125,30.04.2021,RESOURCES AND TRANSFORMATION,A D T FIRE AND SECURITY PLC,22/04/2021,"1,367.57",6310-Repair & Maintenance of Furniture & Equipment,SUPPLIES & SERVICES,EQUIPMENT FURNITURE & MATERIALS,REVENUE
Walsall Council,http://opendatacommunities.org/id/metropolitan-district-council/walsall,WC125-126,30.04.2021,CHILDRENS,A D T FIRE AND SECURITY PLC,13/04/2021,905.97,6223-Operational Maintenance,PREMISES,REPAIRS & MAINTENANCE,REVENUE
Walsall Council,http://opendatacommunities.org/id/metropolitan-district-council/walsall,WC125-127,30.04.2021,RESOURCES AND TRANSFORMATION,A D T FIRE AND SECURITY PLC,28/04/2021,"1,276.81",6310-Repair & Maintenance of Furniture & Equipment,SUPPLIES & SERVICES,EQUIPMENT FURNITURE & MATERIALS,REVENUE
Walsall Council,http://opendatacommunities.org/id/metropolitan-district-council/walsall,WC125-128,30.04.2021,CHILDRENS,A S H (UK) PROCESS SERVERS LTD,22/04/2021,690.00,6220-School Only Payments - Catering,THIRD PARTY PAYMENTS,INDEPENDENT UNIT WITHIN COUNCIL,REVENUE
Walsall Council,http://opendatacommunities.org/id/metropolitan-district-council/walsall,WC125-129,30.04.2021,ECONOMY & ENVIRONMENT,AAINA COMMUNITY HUB,01/04/2021,"29,425.90",6430-Professional Fees & Services,SUPPLIES & SERVICES,SERVICES,REVENUE
Walsall Council,http://opendatacommunities.org/id/metropolitan-district-council/walsall,WC125-130,30.04.2021,ECONOMY & ENVIRONMENT,AAINA COMMUNITY HUB,12/04/2021,"1,687.40",6430-Grants to Other Orgs,SUPPLIES & SERVICES,GRANTS (EXP) & SUBSCRIPTIONS,REVENUE
Walsall Council,http://opendatacommunities.org/id/metropolitan-district-council/walsall,WC125-131,30.04.2021,ECONOMY & ENVIRONMENT,AAINA COMMUNITY HUB,16/04/2021,"1,641.91",6430-Grants to Other Orgs,SUPPLIES & SERVICES,GRANTS (EXP) & SUBSCRIPTIONS,REVENUE
Walsall Council,http://opendatacommunities.org/id/metropolitan-district-council/walsall,WC125-132,30.04.2021,ECONOMY & ENVIRONMENT,AAINA COMMUNITY HUB,06/04/2021,"1,250.00",6430-Grants to Other Orgs,SUPPLIES & SERVICES,GRANTS (EXP) & SUBSCRIPTIONS,REVENUE
Walsall Council,http://opendatacommunities.org/id/metropolitan-district-council/walsall,WC125-133,30.04.2021,ECONOMY & ENVIRONMENT,ABBEY BLINDS 001,21/04/2021,"1,056.81",6413-Repair & Maintenance of Furniture & Equipment,SUPPLIES & SERVICES,EQUIPMENT FURNITURE & MATERIALS,REVENUE
Walsall Council,http://opendatacommunities.org/id/metropolitan-district-council/walsall,WC125-134,30.04.2021,ADULT SOCIAL CARE,ABBEY COURT NURSING & RESIDEN,12/04/2021,"2,044.00",6541-Residential,THIRD PARTY PAYMENTS,PRIVATE CONTRACTOR,REVENUE
Walsall Council,http://opendatacommunities.org/id/metropolitan-district-council/walsall,WC125-135,30.04.2021,ADULT SOCIAL CARE,ABBEY COURT NURSING & RESIDEN,12/04/2021,"2,308.00",6541-Residential EMI,THIRD PARTY PAYMENTS,PRIVATE CONTRACTOR,REVENUE
Walsall Council,http://opendatacommunities.org/id/metropolitan-district-council/walsall,WC125-136,30.04.2021,ADULT SOCIAL CARE,ABBEY COURT NURSING & RESIDEN,12/04/2021,"2,308.00",6541-Residential EMI,THIRD PARTY PAYMENTS,PRIVATE CONTRACTOR,REVENUE
Walsall Council,http://opendatacommunities.org/id/metropolitan-district-council/walsall,WC125-137,30.04.2021,ADULT SOCIAL CARE,ABBEY COURT NURSING & RESIDEN,12/04/2021,"2,548.00",6541-Residential EMI,THIRD PARTY PAYMENTS,PRIVATE CONTRACTOR,REVENUE
Walsall Council,http://opendatacommunities.org/id/metropolitan-district-council/walsall,WC125-138,30.04.2021,ADULT SOCIAL CARE,ABBEY HEALTHCARE HOMES LTD,12/04/2021,"3,102.72",6541-Residential,THIRD PARTY PAYMENTS,PRIVATE CONTRACTOR,REVENUE
Walsall Council,http://opendatacommunities.org/id/metropolitan-district-council/walsall,WC125-139,30.04.2021,ADULT SOCIAL CARE,ABBEY HEALTHCARE HOMES LTD,12/04/2021,"3,102.72",6541-Residential,THIRD PARTY PAYMENTS,PRIVATE CONTRACTOR,REVENUE
Walsall Council,http://opendatacommunities.org/id/metropolitan-district-council/walsall,WC125-140,30.04.2021,ADULT SOCIAL CARE,ABBEY HEALTHCARE HOMES LTD,12/04/2021,"3,516.40",6541-Residential,THIRD PARTY PAYMENTS,PRIVATE CONTRACTOR,REVENUE
Walsall Council,http://opendatacommunities.org/id/metropolitan-district-council/walsall,WC125-141,30.04.2021,ADULT SOCIAL CARE,ABBEY HEALTHCARE HOMES LTD,12/04/2021,"2,372.64",6541-Residential,THIRD PARTY PAYMENTS,PRIVATE CONTRACTOR,REVENUE
Walsall Council,http://opendatacommunities.org/id/metropolitan-district-council/walsall,WC125-142,30.04.2021,CHILDRENS,ABC DAY NURSERY (WILLENHALL) LIMITED,22/04/2021,"15,335.04",1184-Other-Grants to Other Orgs,SUPPLIES & SERVICES,GRANTS (EXP) & SUBSCRIPTIONS,REVENUE
Walsall Council,http://opendatacommunities.org/id/metropolitan-district-council/walsall,WC125-143,30.04.2021,CHILDRENS,ABC DAY NURSERY (WILLENHALL) LIMITED,13/04/2021,383.04,1184-Other-Grants to Other Orgs,SUPPLIES & SERVICES,GRANTS (EXP) & SUBSCRIPTIONS,REVENUE
Walsall Council,http://opendatacommunities.org/id/metropolitan-district-council/walsall,WC125-144,30.04.2021,CHILDRENS,ABC DAY NURSERY (WILLENHALL) LIMITED,22/04/2021,"22,491.39",1184-Other-Grants to Other Orgs,SUPPLIES & SERVICES,GRANTS (EXP) & SUBSCRIPTIONS,REVENUE
Walsall Council,http://opendatacommunities.org/id/metropolitan-district-council/walsall,WC125-145,30.04.2021,RESOURCES AND TRANSFORMATION,ABEL ALARM CO LTD,07/04/2021,404.00,6310-Repair & Maintenance of Furniture & Equipment,SUPPLIES & SERVICES,EQUIPMENT FURNITURE & MATERIALS,REVENUE
Walsall Council,http://opendatacommunities.org/id/metropolitan-district-council/walsall,WC125-146,30.04.2021,ADULT SOCIAL CARE,REDACTED,06/04/2021,"2,124.78",6541-Direct Payment,THIRD PARTY PAYMENTS,PRIVATE CONTRACTOR,REVENUE
Walsall Council,http://opendatacommunities.org/id/metropolitan-district-council/walsall,WC125-147,30.04.2021,CHILDRENS,ABLEWELL CARS,21/04/2021,"1,317.68",6241-Hire of Vehicle with Driver,TRANSPORT,DIRECT TRANSPORT COSTS,REVENUE
Walsall Council,http://opendatacommunities.org/id/metropolitan-district-council/walsall,WC125-148,30.04.2021,CHILDRENS,ABLEWELL CARS,21/04/2021,688.80,6241-Hire of Vehicle with Driver,TRANSPORT,DIRECT TRANSPORT COSTS,REVENUE
Walsall Council,http://opendatacommunities.org/id/metropolitan-district-council/walsall,WC125-149,30.04.2021,CHILDRENS,ABLEWELL CARS,21/04/2021,"1,164.80",6241-Hire of Vehicle with Driver,TRANSPORT,DIRECT TRANSPORT COSTS,REVENUE
Walsall Council,http://opendatacommunities.org/id/metropolitan-district-council/walsall,WC125-150,30.04.2021,CHILDRENS,ABLEWELL CARS,21/04/2021,801.36,6241-Hire of Vehicle with Driver,TRANSPORT,DIRECT TRANSPORT COSTS,REVENUE
Walsall Council,http://opendatacommunities.org/id/metropolitan-district-council/walsall,WC125-151,30.04.2021,CHILDRENS,ABLEWELL CARS,21/04/2021,739.20,6241-Hire of Vehicle with Driver,TRANSPORT,DIRECT TRANSPORT COSTS,REVENUE
Walsall Council,http://opendatacommunities.org/id/metropolitan-district-council/walsall,WC125-152,30.04.2021,CHILDRENS,ABLEWELL CARS,21/04/2021,"1,314.00",6241-Hire of Vehicle with Driver,TRANSPORT,DIRECT TRANSPORT COSTS,REVENUE
Walsall Council,http://opendatacommunities.org/id/metropolitan-district-council/walsall,WC125-153,30.04.2021,CHILDRENS,ABLEWELL CARS,21/04/2021,926.52,6241-Hire of Vehicle with Driver,TRANSPORT,DIRECT TRANSPORT COSTS,REVENUE
Walsall Council,http://opendatacommunities.org/id/metropolitan-district-council/walsall,WC125-154,30.04.2021,CHILDRENS,ABS TAXIS (ALDRIDGE),21/04/2021,"1,368.77",6241-Hire of Vehicle with Driver,TRANSPORT,DIRECT TRANSPORT COSTS,REVENUE
Walsall Council,http://opendatacommunities.org/id/metropolitan-district-council/walsall,WC125-155,30.04.2021,CHILDRENS,ABS TAXIS (ALDRIDGE),21/04/2021,686.00,6241-Hire of Vehicle with Driver,TRANSPORT,DIRECT TRANSPORT COSTS,REVENUE
Walsall Council,http://opendatacommunities.org/id/metropolitan-district-council/walsall,WC125-156,30.04.2021,CHILDRENS,ABS TAXIS (ALDRIDGE),21/04/2021,"1,455.30",6241-Hire of Vehicle with Driver,TRANSPORT,DIRECT TRANSPORT COSTS,REVENUE
Walsall Council,http://opendatacommunities.org/id/metropolitan-district-council/walsall,WC125-157,30.04.2021,CHILDRENS,ABU BAKR NURSERY,22/04/2021,"11,299.50",1184-Other-Grants to Other Orgs,SUPPLIES & SERVICES,GRANTS (EXP) & SUBSCRIPTIONS,REVENUE
Walsall Council,http://opendatacommunities.org/id/metropolitan-district-council/walsall,WC125-158,30.04.2021,CHILDRENS,ABU BAKR NURSERY,22/04/2021,"44,301.21",1184-Other-Grants to Other Orgs,SUPPLIES & SERVICES,GRANTS (EXP) & SUBSCRIPTIONS,REVENUE
Walsall Council,http://opendatacommunities.org/id/metropolitan-district-council/walsall,WC125-159,30.04.2021,CHILDRENS,ACCALIA CARE SERVICES LTD,16/04/2021,"19,980.00",6223-External Residential Care-Oth Agency Provision,THIRD PARTY PAYMENTS,PRIVATE CONTRACTOR,REVENUE
Walsall Council,http://opendatacommunities.org/id/metropolitan-district-council/walsall,WC125-160,30.04.2021,CHILDRENS,ACCOMPANIED CARE,01/04/2021,"3,355.56",6223-Accommodation and Related Costs-Assistance to S/S Clients,TRANSFER PAYMENTS,ADULT SOCIAL SERVICES CLIENT,REVENUE
Walsall Council,http://opendatacommunities.org/id/metropolitan-district-council/walsall,WC125-161,30.04.2021,CHILDRENS,ACCOMPANIED CARE,22/04/2021,"3,760.17",6223-Accommodation and Related Costs-Assistance to S/S Clients,TRANSFER PAYMENTS,ADULT SOCIAL SERVICES CLIENT,REVENUE
Walsall Council,http://opendatacommunities.org/id/metropolitan-district-council/walsall,WC125-162,30.04.2021,ADULT SOCIAL CARE,ACCOMPLISH GROUP LTD,12/04/2021,"7,861.04",6541-Residential,THIRD PARTY PAYMENTS,PRIVATE CONTRACTOR,REVENUE
Walsall Council,http://opendatacommunities.org/id/metropolitan-district-council/walsall,WC125-163,30.04.2021,ADULT SOCIAL CARE,ACCORD HOUSING ASSOCIATION LIMITED - HOBS MEADOW,12/04/2021,"4,659.64",6541-Residential,THIRD PARTY PAYMENTS,PRIVATE CONTRACTOR,REVENUE
Walsall Council,http://opendatacommunities.org/id/metropolitan-district-council/walsall,WC125-164,30.04.2021,ADULT SOCIAL CARE,ACCORD HOUSING ASSOCIATION LIMITED - HOBS MEADOW,12/04/2021,"4,659.64",6541-Residential,THIRD PARTY PAYMENTS,PRIVATE CONTRACTOR,REVENUE
Walsall Council,http://opendatacommunities.org/id/metropolitan-district-council/walsall,WC125-165,30.04.2021,ADULT SOCIAL CARE,ACCORD HOUSING ASSOCIATION LIMITED - HOBS MEADOW,12/04/2021,"4,659.64",6541-Residential,THIRD PARTY PAYMENTS,PRIVATE CONTRACTOR,REVENUE
Walsall Council,http://opendatacommunities.org/id/metropolitan-district-council/walsall,WC125-166,30.04.2021,ADULT SOCIAL CARE,ACCORD HOUSING ASSOCIATION LIMITED - HOBS MEADOW,12/04/2021,"4,659.64",6541-Residential,THIRD PARTY PAYMENTS,PRIVATE CONTRACTOR,REVENUE
Walsall Council,http://opendatacommunities.org/id/metropolitan-district-council/walsall,WC125-167,30.04.2021,ADULT SOCIAL CARE,ACCORD HOUSING ASSOCIATION LTD#135,12/04/2021,"6,503.40",6541-Residential,THIRD PARTY PAYMENTS,PRIVATE CONTRACTOR,REVENUE
Walsall Council,http://opendatacommunities.org/id/metropolitan-district-council/walsall,WC125-168,30.04.2021,ADULT SOCIAL CARE,ACCORD HOUSING ASSOCIATION LTD#135,12/04/2021,"5,807.56",6541-Residential,THIRD PARTY PAYMENTS,PRIVATE CONTRACTOR,REVENUE
Walsall Council,http://opendatacommunities.org/id/metropolitan-district-council/walsall,WC125-169,30.04.2021,ADULT SOCIAL CARE,ACCORD HOUSING ASSOCIATION LTD#135,12/04/2021,"6,503.40",6541-Residential,THIRD PARTY PAYMENTS,PRIVATE CONTRACTOR,REVENUE
Walsall Council,http://opendatacommunities.org/id/metropolitan-district-council/walsall,WC125-170,30.04.2021,CHILDRENS,ACCORD HOUSING ASSOCIATION LTD#135,14/04/2021,396.59,6314-Rents,PREMISES,RENTS,REVENUE
Walsall Council,http://opendatacommunities.org/id/metropolitan-district-council/walsall,WC125-171,30.04.2021,CHILDRENS,ACCORD HOUSING ASSOCIATION LTD#135,22/04/2021,343.32,6314-Rents,PREMISES,RENTS,REVENUE
Walsall Council,http://opendatacommunities.org/id/metropolitan-district-council/walsall,WC125-172,30.04.2021,CHILDRENS,ACCORD HOUSING ASSOCIATION LTD#135,22/04/2021,447.13,6314-Rents,PREMISES,RENTS,REVENUE
Walsall Council,http://opendatacommunities.org/id/metropolitan-district-council/walsall,WC125-173,30.04.2021,CHILDRENS,ACCORD HOUSING ASSOCIATION LTD#135,22/04/2021,413.20,6314-Rents,PREMISES,RENTS,REVENUE
Walsall Council,http://opendatacommunities.org/id/metropolitan-district-council/walsall,WC125-174,30.04.2021,CHILDRENS CAPITAL,ACCORD HOUSING ASSOCIATION LTD#135,21/04/2021,"4,624.64",7300-Private Grants,CAPITAL,CAPITAL GRANTS,CAPITAL GRANTS
Walsall Council,http://opendatacommunities.org/id/metropolitan-district-council/walsall,WC125-175,30.04.2021,CHILDRENS CAPITAL,ACCORD HOUSING ASSOCIATION LTD#135,21/04/2021,"4,624.64",7300-Private Grants,CAPITAL,CAPITAL GRANTS,CAPITAL GRANTS
Walsall Council,http://opendatacommunities.org/id/metropolitan-district-council/walsall,WC125-176,30.04.2021,CHILDRENS CAPITAL,ACCORD HOUSING ASSOCIATION LTD#135,21/04/2021,"4,720.64",7300-Private Grants,CAPITAL,CAPITAL GRANTS,CAPITAL GRANTS
Walsall Council,http://opendatacommunities.org/id/metropolitan-district-council/walsall,WC125-177,30.04.2021,CHILDRENS CAPITAL,ACCORD HOUSING ASSOCIATION LTD#135,21/04/2021,"4,720.64",7300-Private Grants,CAPITAL,CAPITAL GRANTS,CAPITAL GRANTS
Walsall Council,http://opendatacommunities.org/id/metropolitan-district-council/walsall,WC125-178,30.04.2021,CHILDRENS CAPITAL,ACCORD HOUSING ASSOCIATION LTD#135,21/04/2021,"7,405.87",7300-Private Grants,CAPITAL,CAPITAL GRANTS,CAPITAL GRANTS
Walsall Council,http://opendatacommunities.org/id/metropolitan-district-council/walsall,WC125-179,30.04.2021,ECONOMY & ENVIRONMENT,ACCORD HOUSING ASSOCIATION LTD#135,07/04/2021,"5,000.00",6430-Professional Services-Priv Contractor & Other Agencies,THIRD PARTY PAYMENTS,PRIVATE CONTRACTOR,REVENUE
Walsall Council,http://opendatacommunities.org/id/metropolitan-district-council/walsall,WC125-180,30.04.2021,ECONOMY & ENVIRONMENT,ACCORD HOUSING ASSOCIATION LTD#135,07/04/2021,"10,000.00",6430-Professional Services-Priv Contractor & Other Agencies,THIRD PARTY PAYMENTS,PRIVATE CONTRACTOR,REVENUE
Walsall Council,http://opendatacommunities.org/id/metropolitan-district-council/walsall,WC125-181,30.04.2021,CHILDRENS,ACCORD HOUSING ASSOCIATION LTD#135,23/04/2021,"47,217.50",6314-Professional Services-Priv Contractor & Other Agencies,THIRD PARTY PAYMENTS,PRIVATE CONTRACTOR,REVENUE
Walsall Council,http://opendatacommunities.org/id/metropolitan-district-council/walsall,WC125-182,30.04.2021,CHILDRENS,ACCORD HOUSING ASSOCIATION LTD#135,13/04/2021,"28,502.83",6314-Professional Fees & Services,SUPPLIES & SERVICES,SERVICES,REVENUE
Walsall Council,http://opendatacommunities.org/id/metropolitan-district-council/walsall,WC125-183,30.04.2021,CHILDRENS,ACCORD HOUSING ASSOCIATION LTD#135,13/04/2021,"28,502.83",6314-Professional Fees & Services,SUPPLIES & SERVICES,SERVICES,REVENUE
Walsall Council,http://opendatacommunities.org/id/metropolitan-district-council/walsall,WC125-184,30.04.2021,ADULT SOCIAL CARE,ACCORD HOUSING ASSOCIATION LTD#135,07/04/2021,"1,465.04",6541-Domiciliary Care,THIRD PARTY PAYMENTS,PRIVATE CONTRACTOR,REVENUE
Walsall Council,http://opendatacommunities.org/id/metropolitan-district-council/walsall,WC125-185,30.04.2021,ADULT SOCIAL CARE,ACCORD HOUSING ASSOCIATION LTD#135,07/04/2021,359.80,6541-Domiciliary Care,THIRD PARTY PAYMENTS,PRIVATE CONTRACTOR,REVENUE
Walsall Council,http://opendatacommunities.org/id/metropolitan-district-council/walsall,WC125-186,30.04.2021,ADULT SOCIAL CARE,ACCORD HOUSING ASSOCIATION LTD#135,07/04/2021,992.16,6541-Domiciliary Care,THIRD PARTY PAYMENTS,PRIVATE CONTRACTOR,REVENUE
Walsall Council,http://opendatacommunities.org/id/metropolitan-district-council/walsall,WC125-187,30.04.2021,ADULT SOCIAL CARE,ACCORD HOUSING ASSOCIATION LTD#135,07/04/2021,832.80,6541-Domiciliary Care,THIRD PARTY PAYMENTS,PRIVATE CONTRACTOR,REVENUE
Walsall Council,http://opendatacommunities.org/id/metropolitan-district-council/walsall,WC125-188,30.04.2021,ADULT SOCIAL CARE,ACCORD HOUSING ASSOCIATION LTD#135,07/04/2021,"1,439.20",6541-Domiciliary Care,THIRD PARTY PAYMENTS,PRIVATE CONTRACTOR,REVENUE
Walsall Council,http://opendatacommunities.org/id/metropolitan-district-council/walsall,WC125-189,30.04.2021,ADULT SOCIAL CARE,ACCORD HOUSING ASSOCIATION LTD#135,07/04/2021,431.76,6541-Domiciliary Care,THIRD PARTY PAYMENTS,PRIVATE CONTRACTOR,REVENUE
Walsall Council,http://opendatacommunities.org/id/metropolitan-district-council/walsall,WC125-190,30.04.2021,ADULT SOCIAL CARE,ACCORD HOUSING ASSOCIATION LTD#135,07/04/2021,709.32,6541-Domiciliary Care,THIRD PARTY PAYMENTS,PRIVATE CONTRACTOR,REVENUE
Walsall Council,http://opendatacommunities.org/id/metropolitan-district-council/walsall,WC125-191,30.04.2021,ADULT SOCIAL CARE,ACCORD HOUSING ASSOCIATION LTD#135,07/04/2021,"1,043.56",6541-Domiciliary Care,THIRD PARTY PAYMENTS,PRIVATE CONTRACTOR,REVENUE
Walsall Council,http://opendatacommunities.org/id/metropolitan-district-council/walsall,WC125-192,30.04.2021,ADULT SOCIAL CARE,ACCORD HOUSING ASSOCIATION LTD#135,07/04/2021,334.12,6541-Domiciliary Care,THIRD PARTY PAYMENTS,PRIVATE CONTRACTOR,REVENUE
Walsall Council,http://opendatacommunities.org/id/metropolitan-district-council/walsall,WC125-193,30.04.2021,ADULT SOCIAL CARE,ACCORD HOUSING ASSOCIATION LTD#135,07/04/2021,889.36,6541-Domiciliary Care,THIRD PARTY PAYMENTS,PRIVATE CONTRACTOR,REVENUE
Walsall Council,http://opendatacommunities.org/id/metropolitan-district-council/walsall,WC125-194,30.04.2021,ADULT SOCIAL CARE,ACCORD HOUSING ASSOCIATION LTD#135,07/04/2021,637.40,6541-Domiciliary Care,THIRD PARTY PAYMENTS,PRIVATE CONTRACTOR,REVENUE
Walsall Council,http://opendatacommunities.org/id/metropolitan-district-council/walsall,WC125-195,30.04.2021,ADULT SOCIAL CARE,ACCORD HOUSING ASSOCIATION LTD#135,07/04/2021,961.18,6541-Domiciliary Care,THIRD PARTY PAYMENTS,PRIVATE CONTRACTOR,REVENUE
Walsall Council,http://opendatacommunities.org/id/metropolitan-district-council/walsall,WC125-196,30.04.2021,ADULT SOCIAL CARE,ACCORD HOUSING ASSOCIATION LTD#135,07/04/2021,"1,079.40",6541-Domiciliary Care,THIRD PARTY PAYMENTS,PRIVATE CONTRACTOR,REVENUE
Walsall Council,http://opendatacommunities.org/id/metropolitan-district-council/walsall,WC125-197,30.04.2021,ADULT SOCIAL CARE,ACCORD HOUSING ASSOCIATION LTD#135,07/04/2021,349.52,6541-Domiciliary Care,THIRD PARTY PAYMENTS,PRIVATE CONTRACTOR,REVENUE
Walsall Council,http://opendatacommunities.org/id/metropolitan-district-council/walsall,WC125-198,30.04.2021,ADULT SOCIAL CARE,ACCORD HOUSING ASSOCIATION LTD#135,07/04/2021,390.72,6541-Domiciliary Care,THIRD PARTY PAYMENTS,PRIVATE CONTRACTOR,REVENUE
Walsall Council,http://opendatacommunities.org/id/metropolitan-district-council/walsall,WC125-199,30.04.2021,ADULT SOCIAL CARE,ACCORD HOUSING ASSOCIATION LTD#135,07/04/2021,"2,179.92",6541-Domiciliary Care,THIRD PARTY PAYMENTS,PRIVATE CONTRACTOR,REVENUE
Walsall Council,http://opendatacommunities.org/id/metropolitan-district-council/walsall,WC125-200,30.04.2021,ADULT SOCIAL CARE,ACCORD HOUSING ASSOCIATION LTD#135,20/04/2021,"5,574.06",6552-Social Services-Fees to Voluntary Bodies,THIRD PARTY PAYMENTS,VOLUNTARY BODIES,REVENUE
Walsall Council,http://opendatacommunities.org/id/metropolitan-district-council/walsall,WC125-201,30.04.2021,CHILDRENS,ACE CARS & MINIBUSES LTD,21/04/2021,"1,518.00",6241-Hire of Vehicle with Driver,TRANSPORT,DIRECT TRANSPORT COSTS,REVENUE
Walsall Council,http://opendatacommunities.org/id/metropolitan-district-council/walsall,WC125-202,30.04.2021,CHILDRENS,ACE CARS & MINIBUSES LTD,21/04/2021,"1,138.50",6241-Hire of Vehicle with Driver,TRANSPORT,DIRECT TRANSPORT COSTS,REVENUE
Walsall Council,http://opendatacommunities.org/id/metropolitan-district-council/walsall,WC125-203,30.04.2021,CHILDRENS,ACE CARS & MINIBUSES LTD,21/04/2021,"1,391.50",6241-Hire of Vehicle with Driver,TRANSPORT,DIRECT TRANSPORT COSTS,REVENUE
Walsall Council,http://opendatacommunities.org/id/metropolitan-district-council/walsall,WC125-204,30.04.2021,CHILDRENS,ACE CARS & MINIBUSES LTD,21/04/2021,"1,512.50",6241-Hire of Vehicle with Driver,TRANSPORT,DIRECT TRANSPORT COSTS,REVENUE
Walsall Council,http://opendatacommunities.org/id/metropolitan-district-council/walsall,WC125-205,30.04.2021,CHILDRENS,ACE CARS & MINIBUSES LTD,21/04/2021,"1,265.00",6241-Hire of Vehicle with Driver,TRANSPORT,DIRECT TRANSPORT COSTS,REVENUE
Walsall Council,http://opendatacommunities.org/id/metropolitan-district-council/walsall,WC125-206,30.04.2021,CHILDRENS,ACE CARS & MINIBUSES LTD,21/04/2021,"1,391.50",6241-Hire of Vehicle with Driver,TRANSPORT,DIRECT TRANSPORT COSTS,REVENUE
Walsall Council,http://opendatacommunities.org/id/metropolitan-district-council/walsall,WC125-207,30.04.2021,CHILDRENS,ACE CARS & MINIBUSES LTD,21/04/2021,968.00,6241-Hire of Vehicle with Driver,TRANSPORT,DIRECT TRANSPORT COSTS,REVENUE
Walsall Council,http://opendatacommunities.org/id/metropolitan-district-council/walsall,WC125-208,30.04.2021,CHILDRENS,ACE CARS & MINIBUSES LTD,21/04/2021,"1,201.75",6241-Hire of Vehicle with Driver,TRANSPORT,DIRECT TRANSPORT COSTS,REVENUE
Walsall Council,http://opendatacommunities.org/id/metropolitan-district-council/walsall,WC125-209,30.04.2021,CHILDRENS,ACE CARS & MINIBUSES LTD,21/04/2021,"1,201.75",6241-Hire of Vehicle with Driver,TRANSPORT,DIRECT TRANSPORT COSTS,REVENUE
Walsall Council,http://opendatacommunities.org/id/metropolitan-district-council/walsall,WC125-210,30.04.2021,CHILDRENS,ACE CARS & MINIBUSES LTD,21/04/2021,"1,210.00",6241-Hire of Vehicle with Driver,TRANSPORT,DIRECT TRANSPORT COSTS,REVENUE
Walsall Council,http://opendatacommunities.org/id/metropolitan-district-council/walsall,WC125-211,30.04.2021,CHILDRENS,ACE CARS & MINIBUSES LTD,21/04/2021,"1,020.50",6241-Hire of Vehicle with Driver,TRANSPORT,DIRECT TRANSPORT COSTS,REVENUE
Walsall Council,http://opendatacommunities.org/id/metropolitan-district-council/walsall,WC125-212,30.04.2021,CHILDRENS,ACE CARS & MINIBUSES LTD,21/04/2021,"1,482.00",6241-Hire of Vehicle with Driver,TRANSPORT,DIRECT TRANSPORT COSTS,REVENUE
Walsall Council,http://opendatacommunities.org/id/metropolitan-district-council/walsall,WC125-213,30.04.2021,CHILDRENS,ACE CARS & MINIBUSES LTD,21/04/2021,"2,062.50",6241-Hire of Vehicle with Driver,TRANSPORT,DIRECT TRANSPORT COSTS,REVENUE
Walsall Council,http://opendatacommunities.org/id/metropolitan-district-council/walsall,WC125-214,30.04.2021,CHILDRENS,ACE CARS & MINIBUSES LTD,21/04/2021,"1,410.75",6241-Hire of Vehicle with Driver,TRANSPORT,DIRECT TRANSPORT COSTS,REVENUE
Walsall Council,http://opendatacommunities.org/id/metropolitan-district-council/walsall,WC125-215,30.04.2021,CHILDRENS,ACE CARS & MINIBUSES LTD,21/04/2021,"1,699.50",6241-Hire of Vehicle with Driver,TRANSPORT,DIRECT TRANSPORT COSTS,REVENUE
Walsall Council,http://opendatacommunities.org/id/metropolitan-district-council/walsall,WC125-216,30.04.2021,CHILDRENS,ACE CARS & MINIBUSES LTD,21/04/2021,720.50,6241-Hire of Vehicle with Driver,TRANSPORT,DIRECT TRANSPORT COSTS,REVENUE
Walsall Council,http://opendatacommunities.org/id/metropolitan-district-council/walsall,WC125-217,30.04.2021,CHILDRENS,ACE CARS & MINIBUSES LTD,21/04/2021,"1,210.00",6241-Hire of Vehicle with Driver,TRANSPORT,DIRECT TRANSPORT COSTS,REVENUE
Walsall Council,http://opendatacommunities.org/id/metropolitan-district-council/walsall,WC125-218,30.04.2021,CHILDRENS,ACE CARS & MINIBUSES LTD,21/04/2021,"1,012.00",6241-Hire of Vehicle with Driver,TRANSPORT,DIRECT TRANSPORT COSTS,REVENUE
Walsall Council,http://opendatacommunities.org/id/metropolitan-district-council/walsall,WC125-219,30.04.2021,CHILDRENS,ACE CARS & MINIBUSES LTD,21/04/2021,"1,699.50",6241-Hire of Vehicle with Driver,TRANSPORT,DIRECT TRANSPORT COSTS,REVENUE
Walsall Council,http://opendatacommunities.org/id/metropolitan-district-council/walsall,WC125-220,30.04.2021,CHILDRENS,ACE CARS & MINIBUSES LTD,21/04/2021,"1,644.50",6241-Hire of Vehicle with Driver,TRANSPORT,DIRECT TRANSPORT COSTS,REVENUE
Walsall Council,http://opendatacommunities.org/id/metropolitan-district-council/walsall,WC125-221,30.04.2021,CHILDRENS,ACE CARS & MINIBUSES LTD,21/04/2021,264.00,6241-Hire of Vehicle with Driver,TRANSPORT,DIRECT TRANSPORT COSTS,REVENUE
Walsall Council,http://opendatacommunities.org/id/metropolitan-district-council/walsall,WC125-222,30.04.2021,CHILDRENS,ACE CARS & MINIBUSES LTD,21/04/2021,484.00,6241-Hire of Vehicle with Driver,TRANSPORT,DIRECT TRANSPORT COSTS,REVENUE
Walsall Council,http://opendatacommunities.org/id/metropolitan-district-council/walsall,WC125-223,30.04.2021,CHILDRENS,ACE CARS & MINIBUSES LTD,21/04/2021,"2,139.50",6241-Hire of Vehicle with Driver,TRANSPORT,DIRECT TRANSPORT COSTS,REVENUE
Walsall Council,http://opendatacommunities.org/id/metropolitan-district-council/walsall,WC125-224,30.04.2021,CHILDRENS,ACE CARS & MINIBUSES LTD,21/04/2021,550.00,6241-Hire of Vehicle with Driver,TRANSPORT,DIRECT TRANSPORT COSTS,REVENUE
Walsall Council,http://opendatacommunities.org/id/metropolitan-district-council/walsall,WC125-225,30.04.2021,CHILDRENS,ACE CARS & MINIBUSES LTD,21/04/2021,"2,151.50",6241-Hire of Vehicle with Driver,TRANSPORT,DIRECT TRANSPORT COSTS,REVENUE
Walsall Council,http://opendatacommunities.org/id/metropolitan-district-council/walsall,WC125-226,30.04.2021,CHILDRENS,ACE CARS & MINIBUSES LTD,21/04/2021,704.00,6241-Hire of Vehicle with Driver,TRANSPORT,DIRECT TRANSPORT COSTS,REVENUE
Walsall Council,http://opendatacommunities.org/id/metropolitan-district-council/walsall,WC125-227,30.04.2021,CHILDRENS,ACE CARS & MINIBUSES LTD,21/04/2021,"2,660.00",6241-Hire of Vehicle with Driver,TRANSPORT,DIRECT TRANSPORT COSTS,REVENUE
Walsall Council,http://opendatacommunities.org/id/metropolitan-district-council/walsall,WC125-228,30.04.2021,CHILDRENS,ACE CARS & MINIBUSES LTD,21/04/2021,"1,138.50",6241-Hire of Vehicle with Driver,TRANSPORT,DIRECT TRANSPORT COSTS,REVENUE
Walsall Council,http://opendatacommunities.org/id/metropolitan-district-council/walsall,WC125-229,30.04.2021,CHILDRENS,ACE CARS & MINIBUSES LTD,21/04/2021,"1,698.40",6241-Hire of Vehicle with Driver,TRANSPORT,DIRECT TRANSPORT COSTS,REVENUE
Walsall Council,http://opendatacommunities.org/id/metropolitan-district-council/walsall,WC125-230,30.04.2021,CHILDRENS,ACE CARS & MINIBUSES LTD,21/04/2021,715.00,6241-Hire of Vehicle with Driver,TRANSPORT,DIRECT TRANSPORT COSTS,REVENUE
Walsall Council,http://opendatacommunities.org/id/metropolitan-district-council/walsall,WC125-231,30.04.2021,CHILDRENS,ACE COACHING LIMITED,23/04/2021,309.00,6213-Professional Fees & Services,SUPPLIES & SERVICES,SERVICES,REVENUE
Walsall Council,http://opendatacommunities.org/id/metropolitan-district-council/walsall,WC125-232,30.04.2021,ADULT SOCIAL CARE,ACEPAY LTD (COTTAGE NUR HOME),12/04/2021,"2,396.00",6541-Nursing,THIRD PARTY PAYMENTS,PRIVATE CONTRACTOR,REVENUE
Walsall Council,http://opendatacommunities.org/id/metropolitan-district-council/walsall,WC125-233,30.04.2021,ADULT SOCIAL CARE,ACEPAY LTD (COTTAGE NUR HOME),12/04/2021,"2,396.00",6541-Nursing,THIRD PARTY PAYMENTS,PRIVATE CONTRACTOR,REVENUE
Walsall Council,http://opendatacommunities.org/id/metropolitan-district-council/walsall,WC125-234,30.04.2021,ADULT SOCIAL CARE,ACEPAY LTD (COTTAGE NUR HOME),12/04/2021,"2,396.00",6541-Nursing,THIRD PARTY PAYMENTS,PRIVATE CONTRACTOR,REVENUE
Walsall Council,http://opendatacommunities.org/id/metropolitan-district-council/walsall,WC125-235,30.04.2021,ADULT SOCIAL CARE,ACEPAY LTD (COTTAGE NUR HOME),12/04/2021,"2,596.00",6541-Nursing,THIRD PARTY PAYMENTS,PRIVATE CONTRACTOR,REVENUE
Walsall Council,http://opendatacommunities.org/id/metropolitan-district-council/walsall,WC125-236,30.04.2021,ADULT SOCIAL CARE,ACEPAY LTD (COTTAGE NUR HOME),12/04/2021,"2,396.00",6541-Nursing,THIRD PARTY PAYMENTS,PRIVATE CONTRACTOR,REVENUE
Walsall Council,http://opendatacommunities.org/id/metropolitan-district-council/walsall,WC125-237,30.04.2021,ADULT SOCIAL CARE,ACEPAY LTD (COTTAGE NUR HOME),12/04/2021,"2,396.00",6541-Nursing,THIRD PARTY PAYMENTS,PRIVATE CONTRACTOR,REVENUE
Walsall Council,http://opendatacommunities.org/id/metropolitan-district-council/walsall,WC125-238,30.04.2021,ADULT SOCIAL CARE,ACEPAY LTD (COTTAGE NUR HOME),12/04/2021,"2,396.00",6541-Nursing,THIRD PARTY PAYMENTS,PRIVATE CONTRACTOR,REVENUE
Walsall Council,http://opendatacommunities.org/id/metropolitan-district-council/walsall,WC125-239,30.04.2021,ADULT SOCIAL CARE,ACEPAY LTD (COTTAGE NUR HOME),12/04/2021,"2,396.00",6541-Nursing,THIRD PARTY PAYMENTS,PRIVATE CONTRACTOR,REVENUE
Walsall Council,http://opendatacommunities.org/id/metropolitan-district-council/walsall,WC125-240,30.04.2021,ADULT SOCIAL CARE,ACEPAY LTD (COTTAGE NUR HOME),12/04/2021,"2,308.00",6541-Residential EMI,THIRD PARTY PAYMENTS,PRIVATE CONTRACTOR,REVENUE
Walsall Council,http://opendatacommunities.org/id/metropolitan-district-council/walsall,WC125-241,30.04.2021,ADULT SOCIAL CARE,ACEPAY LTD (COTTAGE NUR HOME),12/04/2021,"5,990.00",6541-Nursing,THIRD PARTY PAYMENTS,PRIVATE CONTRACTOR,REVENUE
Walsall Council,http://opendatacommunities.org/id/metropolitan-district-council/walsall,WC125-242,30.04.2021,ADULT SOCIAL CARE,ACEPAY LTD (COTTAGE NUR HOME),12/04/2021,"2,396.00",6541-Nursing,THIRD PARTY PAYMENTS,PRIVATE CONTRACTOR,REVENUE
Walsall Council,http://opendatacommunities.org/id/metropolitan-district-council/walsall,WC125-243,30.04.2021,ADULT SOCIAL CARE,ACEPAY LTD (COTTAGE NUR HOME),12/04/2021,"2,396.00",6541-Nursing,THIRD PARTY PAYMENTS,PRIVATE CONTRACTOR,REVENUE
Walsall Council,http://opendatacommunities.org/id/metropolitan-district-council/walsall,WC125-244,30.04.2021,ADULT SOCIAL CARE,ACEPAY LTD (COTTAGE NUR HOME),12/04/2021,"2,396.00",6541-Nursing,THIRD PARTY PAYMENTS,PRIVATE CONTRACTOR,REVENUE
Walsall Council,http://opendatacommunities.org/id/metropolitan-district-council/walsall,WC125-245,30.04.2021,ADULT SOCIAL CARE,ACEPAY LTD (COTTAGE NUR HOME),12/04/2021,"2,396.00",6541-Nursing,THIRD PARTY PAYMENTS,PRIVATE CONTRACTOR,REVENUE
Walsall Council,http://opendatacommunities.org/id/metropolitan-district-council/walsall,WC125-246,30.04.2021,ADULT SOCIAL CARE,ACEPAY LTD (COTTAGE NUR HOME),12/04/2021,"2,396.00",6541-Nursing,THIRD PARTY PAYMENTS,PRIVATE CONTRACTOR,REVENUE
Walsall Council,http://opendatacommunities.org/id/metropolitan-district-council/walsall,WC125-247,30.04.2021,ADULT SOCIAL CARE,ACEPAY LTD (COTTAGE NUR HOME),29/04/2021,"1,010.46",6554-Professional Services-Priv Contractor & Other Agencies,THIRD PARTY PAYMENTS,PRIVATE CONTRACTOR,REVENUE
Walsall Council,http://opendatacommunities.org/id/metropolitan-district-council/walsall,WC125-248,30.04.2021,ADULT SOCIAL CARE,ACEPAY LTD (COTTAGE NUR HOME),26/04/2021,"1,533.00",6541-Residential,THIRD PARTY PAYMENTS,PRIVATE CONTRACTOR,REVENUE
Walsall Council,http://opendatacommunities.org/id/metropolitan-district-council/walsall,WC125-249,30.04.2021,CHILDRENS,ACORN CARE & EDUCATION LTD (SALES),16/04/2021,"18,800.00",6223-External Residential Care-Oth Agency Provision,THIRD PARTY PAYMENTS,PRIVATE CONTRACTOR,REVENUE
Walsall Council,http://opendatacommunities.org/id/metropolitan-district-council/walsall,WC125-250,30.04.2021,CHILDRENS,ACORN CARE & EDUCATION LTD (SALES),16/04/2021,"40,800.00",6223-External Residential Care-Oth Agency Provision,THIRD PARTY PAYMENTS,PRIVATE CONTRACTOR,REVENUE
Walsall Council,http://opendatacommunities.org/id/metropolitan-district-council/walsall,WC125-251,30.04.2021,CHILDRENS,ACORN CARE & EDUCATION LTD (SALES),15/04/2021,"25,960.02",1220-Professional Fees & Services,SUPPLIES & SERVICES,SERVICES,REVENUE
Walsall Council,http://opendatacommunities.org/id/metropolitan-district-council/walsall,WC125-252,30.04.2021,CHILDRENS,ACORN CARE & EDUCATION LTD (SALES),16/04/2021,"6,333.33",1220-Professional Fees & Services,SUPPLIES & SERVICES,SERVICES,REVENUE
Walsall Council,http://opendatacommunities.org/id/metropolitan-district-council/walsall,WC125-253,30.04.2021,CHILDRENS,ACORN CARE & EDUCATION LTD (SALES),22/04/2021,"6,333.33",1220-Professional Fees & Services,SUPPLIES & SERVICES,SERVICES,REVENUE
Walsall Council,http://opendatacommunities.org/id/metropolitan-district-council/walsall,WC125-254,30.04.2021,CHILDRENS,ACORN CARE & EDUCATION LTD (SALES),22/04/2021,"16,166.67",1220-Professional Fees & Services,SUPPLIES & SERVICES,SERVICES,REVENUE
Walsall Council,http://opendatacommunities.org/id/metropolitan-district-council/walsall,WC125-255,30.04.2021,CHILDRENS,ACORN CARE & EDUCATION LTD (SALES),16/04/2021,"17,302.00",1220-Professional Fees & Services,SUPPLIES & SERVICES,SERVICES,REVENUE
Walsall Council,http://opendatacommunities.org/id/metropolitan-district-council/walsall,WC125-256,30.04.2021,CHILDRENS,ACORN CARE & EDUCATION LTD (SALES),16/04/2021,"17,302.00",1220-Professional Fees & Services,SUPPLIES & SERVICES,SERVICES,REVENUE
Walsall Council,http://opendatacommunities.org/id/metropolitan-district-council/walsall,WC125-257,30.04.2021,CHILDRENS,ACORN CARE & EDUCATION LTD (SALES),16/04/2021,"17,302.00",1220-Professional Fees & Services,SUPPLIES & SERVICES,SERVICES,REVENUE
Walsall Council,http://opendatacommunities.org/id/metropolitan-district-council/walsall,WC125-258,30.04.2021,CHILDRENS,ACORN CARE & EDUCATION LTD (SALES),16/04/2021,"17,302.00",1220-Professional Fees & Services,SUPPLIES & SERVICES,SERVICES,REVENUE
Walsall Council,http://opendatacommunities.org/id/metropolitan-district-council/walsall,WC125-259,30.04.2021,CHILDRENS,ACORN FOSTERING SERVICES LTD,16/04/2021,"3,380.00",6223-Independent Foster Care-Oth Agency Provision,THIRD PARTY PAYMENTS,PRIVATE CONTRACTOR,REVENUE
Walsall Council,http://opendatacommunities.org/id/metropolitan-district-council/walsall,WC125-260,30.04.2021,CHILDRENS,ACORNS CHILDRENS HOSPICE TRUST,06/04/2021,"1,700.00",6220-Professional Fees & Services,SUPPLIES & SERVICES,SERVICES,REVENUE
Walsall Council,http://opendatacommunities.org/id/metropolitan-district-council/walsall,WC125-261,30.04.2021,CHILDRENS,ACORNS CHILDRENS HOSPICE TRUST,26/04/2021,"1,700.00",6220-Professional Fees & Services,SUPPLIES & SERVICES,SERVICES,REVENUE
Walsall Council,http://opendatacommunities.org/id/metropolitan-district-council/walsall,WC125-262,30.04.2021,CHILDRENS,ACPAS LIMITED,14/04/2021,252.18,6220-School Only Payments - Catering,THIRD PARTY PAYMENTS,INDEPENDENT UNIT WITHIN COUNCIL,REVENUE
Walsall Council,http://opendatacommunities.org/id/metropolitan-district-council/walsall,WC125-263,30.04.2021,CHILDRENS,ACPAS LIMITED,29/04/2021,861.10,6222-Professional Fees & Services,SUPPLIES & SERVICES,SERVICES,REVENUE
Walsall Council,http://opendatacommunities.org/id/metropolitan-district-council/walsall,WC125-264,30.04.2021,ECONOMY & ENVIRONMENT,ACT TRAVELWISE,13/04/2021,495.00,6411-Subscriptions,SUPPLIES & SERVICES,GRANTS (EXP) & SUBSCRIPTIONS,REVENUE
Walsall Council,http://opendatacommunities.org/id/metropolitan-district-council/walsall,WC125-265,30.04.2021,CHILDRENS,ACTIVE CARE SOLUTIONS LTD,16/04/2021,"3,521.18",6223-Independent Foster Care-Oth Agency Provision,THIRD PARTY PAYMENTS,PRIVATE CONTRACTOR,REVENUE
Walsall Council,http://opendatacommunities.org/id/metropolitan-district-council/walsall,WC125-266,30.04.2021,CHILDRENS,ACTIVE CARE SOLUTIONS LTD,16/04/2021,"2,596.36",6223-Independent Foster Care-Oth Agency Provision,THIRD PARTY PAYMENTS,PRIVATE CONTRACTOR,REVENUE
Walsall Council,http://opendatacommunities.org/id/metropolitan-district-council/walsall,WC125-267,30.04.2021,ADULT SOCIAL CARE,REDACTED,06/04/2021,788.02,6541-Direct Payment,THIRD PARTY PAYMENTS,PRIVATE CONTRACTOR,REVENUE
Walsall Council,http://opendatacommunities.org/id/metropolitan-district-council/walsall,WC125-268,30.04.2021,CHILDRENS,REDACTED,01/04/2021,361.12,6223-Residents Orders,TRANSFER PAYMENTS,CHILDREN SOCIAL SERVICES CLIENT,REVENUE
Walsall Council,http://opendatacommunities.org/id/metropolitan-district-council/walsall,WC125-269,30.04.2021,CHILDRENS,REDACTED,01/04/2021,333.12,6223-Residents Orders,TRANSFER PAYMENTS,CHILDREN SOCIAL SERVICES CLIENT,REVENUE
Walsall Council,http://opendatacommunities.org/id/metropolitan-district-council/walsall,WC125-270,30.04.2021,ADULT SOCIAL CARE,REDACTED,06/04/2021,"2,083.20",6541-Direct Payment,THIRD PARTY PAYMENTS,PRIVATE CONTRACTOR,REVENUE
Walsall Council,http://opendatacommunities.org/id/metropolitan-district-council/walsall,WC125-271,30.04.2021,ADULT SOCIAL CARE,ADVANCE HEALTH CARE (UK) LTD,12/04/2021,439.47,6541-Domiciliary Care,THIRD PARTY PAYMENTS,PRIVATE CONTRACTOR,REVENUE
Walsall Council,http://opendatacommunities.org/id/metropolitan-district-council/walsall,WC125-272,30.04.2021,ADULT SOCIAL CARE,ADVANCE HEALTH CARE (UK) LTD,12/04/2021,485.73,6541-Domiciliary Care,THIRD PARTY PAYMENTS,PRIVATE CONTRACTOR,REVENUE
Walsall Council,http://opendatacommunities.org/id/metropolitan-district-council/walsall,WC125-273,30.04.2021,ADULT SOCIAL CARE,ADVANCE HEALTH CARE (UK) LTD,12/04/2021,863.52,6541-Domiciliary Care,THIRD PARTY PAYMENTS,PRIVATE CONTRACTOR,REVENUE
Walsall Council,http://opendatacommunities.org/id/metropolitan-district-council/walsall,WC125-274,30.04.2021,ADULT SOCIAL CARE,ADVANCE HEALTH CARE (UK) LTD,12/04/2021,323.82,6541-Domiciliary Care,THIRD PARTY PAYMENTS,PRIVATE CONTRACTOR,REVENUE
Walsall Council,http://opendatacommunities.org/id/metropolitan-district-council/walsall,WC125-275,30.04.2021,ADULT SOCIAL CARE,ADVANCE HEALTH CARE (UK) LTD,12/04/2021,377.79,6541-Domiciliary Care,THIRD PARTY PAYMENTS,PRIVATE CONTRACTOR,REVENUE
Walsall Council,http://opendatacommunities.org/id/metropolitan-district-council/walsall,WC125-276,30.04.2021,ADULT SOCIAL CARE,ADVANCE HEALTH CARE (UK) LTD,12/04/2021,485.73,6541-Domiciliary Care,THIRD PARTY PAYMENTS,PRIVATE CONTRACTOR,REVENUE
Walsall Council,http://opendatacommunities.org/id/metropolitan-district-council/walsall,WC125-277,30.04.2021,ADULT SOCIAL CARE,ADVANCE HEALTH CARE (UK) LTD,12/04/2021,359.80,6541-Domiciliary Care,THIRD PARTY PAYMENTS,PRIVATE CONTRACTOR,REVENUE
Walsall Council,http://opendatacommunities.org/id/metropolitan-district-council/walsall,WC125-278,30.04.2021,ADULT SOCIAL CARE,ADVANCE HEALTH CARE (UK) LTD,12/04/2021,431.76,6541-Domiciliary Care,THIRD PARTY PAYMENTS,PRIVATE CONTRACTOR,REVENUE
Walsall Council,http://opendatacommunities.org/id/metropolitan-district-council/walsall,WC125-279,30.04.2021,ADULT SOCIAL CARE,ADVANCE HEALTH CARE (UK) LTD,12/04/2021,377.79,6541-Domiciliary Care,THIRD PARTY PAYMENTS,PRIVATE CONTRACTOR,REVENUE
Walsall Council,http://opendatacommunities.org/id/metropolitan-district-council/walsall,WC125-280,30.04.2021,ADULT SOCIAL CARE,ADVANCE HEALTH CARE (UK) LTD,12/04/2021,485.73,6541-Domiciliary Care,THIRD PARTY PAYMENTS,PRIVATE CONTRACTOR,REVENUE
Walsall Council,http://opendatacommunities.org/id/metropolitan-district-council/walsall,WC125-281,30.04.2021,ADULT SOCIAL CARE,ADVANCE HEALTH CARE (UK) LTD,12/04/2021,485.73,6541-Domiciliary Care,THIRD PARTY PAYMENTS,PRIVATE CONTRACTOR,REVENUE
Walsall Council,http://opendatacommunities.org/id/metropolitan-district-council/walsall,WC125-282,30.04.2021,ADULT SOCIAL CARE,ADVANCE HEALTH CARE (UK) LTD,12/04/2021,449.75,6541-Domiciliary Care,THIRD PARTY PAYMENTS,PRIVATE CONTRACTOR,REVENUE
Walsall Council,http://opendatacommunities.org/id/metropolitan-district-council/walsall,WC125-283,30.04.2021,ADULT SOCIAL CARE,ADVANCE HEALTH CARE (UK) LTD,12/04/2021,323.82,6541-Domiciliary Care,THIRD PARTY PAYMENTS,PRIVATE CONTRACTOR,REVENUE
Walsall Council,http://opendatacommunities.org/id/metropolitan-district-council/walsall,WC125-284,30.04.2021,ADULT SOCIAL CARE,ADVANCE HEALTH CARE (UK) LTD,12/04/2021,701.61,6541-Domiciliary Care,THIRD PARTY PAYMENTS,PRIVATE CONTRACTOR,REVENUE
Walsall Council,http://opendatacommunities.org/id/metropolitan-district-council/walsall,WC125-285,30.04.2021,ADULT SOCIAL CARE,ADVANCE HEALTH CARE (UK) LTD,12/04/2021,431.76,6541-Domiciliary Care,THIRD PARTY PAYMENTS,PRIVATE CONTRACTOR,REVENUE
Walsall Council,http://opendatacommunities.org/id/metropolitan-district-council/walsall,WC125-286,30.04.2021,ADULT SOCIAL CARE,ADVANCE HEALTH CARE (UK) LTD,12/04/2021,485.73,6541-Domiciliary Care,THIRD PARTY PAYMENTS,PRIVATE CONTRACTOR,REVENUE
Walsall Council,http://opendatacommunities.org/id/metropolitan-district-council/walsall,WC125-287,30.04.2021,ADULT SOCIAL CARE,ADVANCE HEALTH CARE (UK) LTD,12/04/2021,824.97,6541-Domiciliary Care,THIRD PARTY PAYMENTS,PRIVATE CONTRACTOR,REVENUE
Walsall Council,http://opendatacommunities.org/id/metropolitan-district-council/walsall,WC125-288,30.04.2021,ADULT SOCIAL CARE,ADVANCE HEALTH CARE (UK) LTD,12/04/2021,485.73,6541-Domiciliary Care,THIRD PARTY PAYMENTS,PRIVATE CONTRACTOR,REVENUE
Walsall Council,http://opendatacommunities.org/id/metropolitan-district-council/walsall,WC125-289,30.04.2021,ADULT SOCIAL CARE,ADVANCE HEALTH CARE (UK) LTD,12/04/2021,346.95,6541-Domiciliary Care,THIRD PARTY PAYMENTS,PRIVATE CONTRACTOR,REVENUE
Walsall Council,http://opendatacommunities.org/id/metropolitan-district-council/walsall,WC125-290,30.04.2021,ADULT SOCIAL CARE,ADVANCE HEALTH CARE (UK) LTD,12/04/2021,485.73,6541-Domiciliary Care,THIRD PARTY PAYMENTS,PRIVATE CONTRACTOR,REVENUE
Walsall Council,http://opendatacommunities.org/id/metropolitan-district-council/walsall,WC125-291,30.04.2021,ADULT SOCIAL CARE,ADVANCE HEALTH CARE (UK) LTD,12/04/2021,431.76,6541-Domiciliary Care,THIRD PARTY PAYMENTS,PRIVATE CONTRACTOR,REVENUE
Walsall Council,http://opendatacommunities.org/id/metropolitan-district-council/walsall,WC125-292,30.04.2021,ADULT SOCIAL CARE,ADVANCE HEALTH CARE (UK) LTD,12/04/2021,431.76,6541-Domiciliary Care,THIRD PARTY PAYMENTS,PRIVATE CONTRACTOR,REVENUE
Walsall Council,http://opendatacommunities.org/id/metropolitan-district-council/walsall,WC125-293,30.04.2021,ADULT SOCIAL CARE,ADVANCE HEALTH CARE (UK) LTD,12/04/2021,377.79,6541-Domiciliary Care,THIRD PARTY PAYMENTS,PRIVATE CONTRACTOR,REVENUE
Walsall Council,http://opendatacommunities.org/id/metropolitan-district-council/walsall,WC125-294,30.04.2021,ADULT SOCIAL CARE,ADVANCE HEALTH CARE (UK) LTD,12/04/2021,485.73,6541-Domiciliary Care,THIRD PARTY PAYMENTS,PRIVATE CONTRACTOR,REVENUE
Walsall Council,http://opendatacommunities.org/id/metropolitan-district-council/walsall,WC125-295,30.04.2021,ADULT SOCIAL CARE,ADVANCE HEALTH CARE (UK) LTD,12/04/2021,431.76,6541-Domiciliary Care,THIRD PARTY PAYMENTS,PRIVATE CONTRACTOR,REVENUE
Walsall Council,http://opendatacommunities.org/id/metropolitan-district-council/walsall,WC125-296,30.04.2021,ADULT SOCIAL CARE,ADVANCE HEALTH CARE (UK) LTD,12/04/2021,755.58,6541-Domiciliary Care,THIRD PARTY PAYMENTS,PRIVATE CONTRACTOR,REVENUE
Walsall Council,http://opendatacommunities.org/id/metropolitan-district-council/walsall,WC125-297,30.04.2021,ADULT SOCIAL CARE,ADVANCE HEALTH CARE (UK) LTD,12/04/2021,485.73,6541-Domiciliary Care,THIRD PARTY PAYMENTS,PRIVATE CONTRACTOR,REVENUE
Walsall Council,http://opendatacommunities.org/id/metropolitan-district-council/walsall,WC125-298,30.04.2021,ADULT SOCIAL CARE,ADVANCE HEALTH CARE (UK) LTD,12/04/2021,485.73,6541-Domiciliary Care,THIRD PARTY PAYMENTS,PRIVATE CONTRACTOR,REVENUE
Walsall Council,http://opendatacommunities.org/id/metropolitan-district-council/walsall,WC125-299,30.04.2021,ADULT SOCIAL CARE,ADVANCE HEALTH CARE (UK) LTD,12/04/2021,323.82,6541-Domiciliary Care,THIRD PARTY PAYMENTS,PRIVATE CONTRACTOR,REVENUE
Walsall Council,http://opendatacommunities.org/id/metropolitan-district-council/walsall,WC125-300,30.04.2021,ADULT SOCIAL CARE,ADVANCE HEALTH CARE (UK) LTD,12/04/2021,485.80,6541-Domiciliary Care,THIRD PARTY PAYMENTS,PRIVATE CONTRACTOR,REVENUE
Walsall Council,http://opendatacommunities.org/id/metropolitan-district-council/walsall,WC125-301,30.04.2021,ADULT SOCIAL CARE,ADVANCE HEALTH CARE (UK) LTD,12/04/2021,501.15,6541-Domiciliary Care,THIRD PARTY PAYMENTS,PRIVATE CONTRACTOR,REVENUE
Walsall Council,http://opendatacommunities.org/id/metropolitan-district-council/walsall,WC125-302,30.04.2021,ADULT SOCIAL CARE,ADVANCE HEALTH CARE (UK) LTD,12/04/2021,431.76,6541-Domiciliary Care,THIRD PARTY PAYMENTS,PRIVATE CONTRACTOR,REVENUE
Walsall Council,http://opendatacommunities.org/id/metropolitan-district-council/walsall,WC125-303,30.04.2021,ADULT SOCIAL CARE,ADVANCE HEALTH CARE (UK) LTD,12/04/2021,359.80,6541-Domiciliary Care,THIRD PARTY PAYMENTS,PRIVATE CONTRACTOR,REVENUE
Walsall Council,http://opendatacommunities.org/id/metropolitan-district-council/walsall,WC125-304,30.04.2021,ADULT SOCIAL CARE,ADVANCE HEALTH CARE (UK) LTD,12/04/2021,431.76,6541-Domiciliary Care,THIRD PARTY PAYMENTS,PRIVATE CONTRACTOR,REVENUE
Walsall Council,http://opendatacommunities.org/id/metropolitan-district-council/walsall,WC125-305,30.04.2021,ADULT SOCIAL CARE,ADVANCE HEALTH CARE (UK) LTD,12/04/2021,449.75,6541-Domiciliary Care,THIRD PARTY PAYMENTS,PRIVATE CONTRACTOR,REVENUE
Walsall Council,http://opendatacommunities.org/id/metropolitan-district-council/walsall,WC125-306,30.04.2021,ADULT SOCIAL CARE,ADVANCE HEALTH CARE (UK) LTD,12/04/2021,442.03,6541-Domiciliary Care,THIRD PARTY PAYMENTS,PRIVATE CONTRACTOR,REVENUE
Walsall Council,http://opendatacommunities.org/id/metropolitan-district-council/walsall,WC125-307,30.04.2021,ADULT SOCIAL CARE,ADVANCE HEALTH CARE (UK) LTD,12/04/2021,488.57,6541-Domiciliary Care,THIRD PARTY PAYMENTS,PRIVATE CONTRACTOR,REVENUE
Walsall Council,http://opendatacommunities.org/id/metropolitan-district-council/walsall,WC125-308,30.04.2021,ADULT SOCIAL CARE,ADVANCE HEALTH CARE (UK) LTD,12/04/2021,868.48,6541-Domiciliary Care,THIRD PARTY PAYMENTS,PRIVATE CONTRACTOR,REVENUE
Walsall Council,http://opendatacommunities.org/id/metropolitan-district-council/walsall,WC125-309,30.04.2021,ADULT SOCIAL CARE,ADVANCE HEALTH CARE (UK) LTD,12/04/2021,325.74,6541-Domiciliary Care,THIRD PARTY PAYMENTS,PRIVATE CONTRACTOR,REVENUE
Walsall Council,http://opendatacommunities.org/id/metropolitan-district-council/walsall,WC125-310,30.04.2021,ADULT SOCIAL CARE,ADVANCE HEALTH CARE (UK) LTD,12/04/2021,488.57,6541-Domiciliary Care,THIRD PARTY PAYMENTS,PRIVATE CONTRACTOR,REVENUE
Walsall Council,http://opendatacommunities.org/id/metropolitan-district-council/walsall,WC125-311,30.04.2021,ADULT SOCIAL CARE,ADVANCE HEALTH CARE (UK) LTD,12/04/2021,434.32,6541-Domiciliary Care,THIRD PARTY PAYMENTS,PRIVATE CONTRACTOR,REVENUE
Walsall Council,http://opendatacommunities.org/id/metropolitan-district-council/walsall,WC125-312,30.04.2021,ADULT SOCIAL CARE,ADVANCE HEALTH CARE (UK) LTD,12/04/2021,379.99,6541-Domiciliary Care,THIRD PARTY PAYMENTS,PRIVATE CONTRACTOR,REVENUE
Walsall Council,http://opendatacommunities.org/id/metropolitan-district-council/walsall,WC125-313,30.04.2021,ADULT SOCIAL CARE,ADVANCE HEALTH CARE (UK) LTD,12/04/2021,488.57,6541-Domiciliary Care,THIRD PARTY PAYMENTS,PRIVATE CONTRACTOR,REVENUE
Walsall Council,http://opendatacommunities.org/id/metropolitan-district-council/walsall,WC125-314,30.04.2021,ADULT SOCIAL CARE,ADVANCE HEALTH CARE (UK) LTD,12/04/2021,488.57,6541-Domiciliary Care,THIRD PARTY PAYMENTS,PRIVATE CONTRACTOR,REVENUE
Walsall Council,http://opendatacommunities.org/id/metropolitan-district-council/walsall,WC125-315,30.04.2021,ADULT SOCIAL CARE,ADVANCE HEALTH CARE (UK) LTD,12/04/2021,488.57,6541-Domiciliary Care,THIRD PARTY PAYMENTS,PRIVATE CONTRACTOR,REVENUE
Walsall Council,http://opendatacommunities.org/id/metropolitan-district-council/walsall,WC125-316,30.04.2021,ADULT SOCIAL CARE,ADVANCE HEALTH CARE (UK) LTD,12/04/2021,829.61,6541-Domiciliary Care,THIRD PARTY PAYMENTS,PRIVATE CONTRACTOR,REVENUE
Walsall Council,http://opendatacommunities.org/id/metropolitan-district-council/walsall,WC125-317,30.04.2021,ADULT SOCIAL CARE,ADVANCE HEALTH CARE (UK) LTD,12/04/2021,488.57,6541-Domiciliary Care,THIRD PARTY PAYMENTS,PRIVATE CONTRACTOR,REVENUE
Walsall Council,http://opendatacommunities.org/id/metropolitan-district-council/walsall,WC125-318,30.04.2021,ADULT SOCIAL CARE,ADVANCE HEALTH CARE (UK) LTD,12/04/2021,434.32,6541-Domiciliary Care,THIRD PARTY PAYMENTS,PRIVATE CONTRACTOR,REVENUE
Walsall Council,http://opendatacommunities.org/id/metropolitan-district-council/walsall,WC125-319,30.04.2021,ADULT SOCIAL CARE,ADVANCE HEALTH CARE (UK) LTD,12/04/2021,434.32,6541-Domiciliary Care,THIRD PARTY PAYMENTS,PRIVATE CONTRACTOR,REVENUE
Walsall Council,http://opendatacommunities.org/id/metropolitan-district-council/walsall,WC125-320,30.04.2021,ADULT SOCIAL CARE,ADVANCE HEALTH CARE (UK) LTD,12/04/2021,379.99,6541-Domiciliary Care,THIRD PARTY PAYMENTS,PRIVATE CONTRACTOR,REVENUE
Walsall Council,http://opendatacommunities.org/id/metropolitan-district-council/walsall,WC125-321,30.04.2021,ADULT SOCIAL CARE,ADVANCE HEALTH CARE (UK) LTD,12/04/2021,488.57,6541-Domiciliary Care,THIRD PARTY PAYMENTS,PRIVATE CONTRACTOR,REVENUE
Walsall Council,http://opendatacommunities.org/id/metropolitan-district-council/walsall,WC125-322,30.04.2021,ADULT SOCIAL CARE,ADVANCE HEALTH CARE (UK) LTD,12/04/2021,488.60,6541-Domiciliary Care,THIRD PARTY PAYMENTS,PRIVATE CONTRACTOR,REVENUE
Walsall Council,http://opendatacommunities.org/id/metropolitan-district-council/walsall,WC125-323,30.04.2021,ADULT SOCIAL CARE,ADVANCE HEALTH CARE (UK) LTD,12/04/2021,434.32,6541-Domiciliary Care,THIRD PARTY PAYMENTS,PRIVATE CONTRACTOR,REVENUE
Walsall Council,http://opendatacommunities.org/id/metropolitan-district-council/walsall,WC125-324,30.04.2021,ADULT SOCIAL CARE,ADVANCE HEALTH CARE (UK) LTD,12/04/2021,452.35,6541-Domiciliary Care,THIRD PARTY PAYMENTS,PRIVATE CONTRACTOR,REVENUE
Walsall Council,http://opendatacommunities.org/id/metropolitan-district-council/walsall,WC125-325,30.04.2021,ADULT SOCIAL CARE,ADVANCE HEALTH CARE (UK) LTD,12/04/2021,361.88,6541-Domiciliary Care,THIRD PARTY PAYMENTS,PRIVATE CONTRACTOR,REVENUE
Walsall Council,http://opendatacommunities.org/id/metropolitan-district-council/walsall,WC125-326,30.04.2021,ADULT SOCIAL CARE,ADVANCE HEALTH CARE (UK) LTD,12/04/2021,759.94,6541-Domiciliary Care,THIRD PARTY PAYMENTS,PRIVATE CONTRACTOR,REVENUE
Walsall Council,http://opendatacommunities.org/id/metropolitan-district-council/walsall,WC125-327,30.04.2021,ADULT SOCIAL CARE,ADVANCE HEALTH CARE (UK) LTD,13/04/2021,-485.73,6554-Professional Services-Priv Contractor & Other Agencies,THIRD PARTY PAYMENTS,PRIVATE CONTRACTOR,REVENUE
Walsall Council,http://opendatacommunities.org/id/metropolitan-district-council/walsall,WC125-328,30.04.2021,ADULT SOCIAL CARE,ADVANCE HEALTH CARE (UK) LTD,13/04/2021,-269.85,6554-Professional Services-Priv Contractor & Other Agencies,THIRD PARTY PAYMENTS,PRIVATE CONTRACTOR,REVENUE
Walsall Council,http://opendatacommunities.org/id/metropolitan-district-council/walsall,WC125-329,30.04.2021,ADULT SOCIAL CARE,ADVANCE HEALTH CARE (UK) LTD,14/04/2021,-485.73,6554-Professional Services-Priv Contractor & Other Agencies,THIRD PARTY PAYMENTS,PRIVATE CONTRACTOR,REVENUE
Walsall Council,http://opendatacommunities.org/id/metropolitan-district-council/walsall,WC125-330,30.04.2021,ADULT SOCIAL CARE,ADVANCE HEALTH CARE (UK) LTD,14/04/2021,-323.82,6554-Professional Services-Priv Contractor & Other Agencies,THIRD PARTY PAYMENTS,PRIVATE CONTRACTOR,REVENUE
Walsall Council,http://opendatacommunities.org/id/metropolitan-district-council/walsall,WC125-331,30.04.2021,ADULT SOCIAL CARE,ADVANCE HEALTH CARE (UK) LTD,01/04/2021,485.73,6554-Professional Services-Priv Contractor & Other Agencies,THIRD PARTY PAYMENTS,PRIVATE CONTRACTOR,REVENUE
Walsall Council,http://opendatacommunities.org/id/metropolitan-district-council/walsall,WC125-332,30.04.2021,ADULT SOCIAL CARE,ADVANCE HEALTH CARE (UK) LTD,01/04/2021,485.73,6554-Professional Services-Priv Contractor & Other Agencies,THIRD PARTY PAYMENTS,PRIVATE CONTRACTOR,REVENUE
Walsall Council,http://opendatacommunities.org/id/metropolitan-district-council/walsall,WC125-333,30.04.2021,ADULT SOCIAL CARE,ADVANCE HEALTH CARE (UK) LTD,01/04/2021,485.73,6554-Professional Services-Priv Contractor & Other Agencies,THIRD PARTY PAYMENTS,PRIVATE CONTRACTOR,REVENUE
Walsall Council,http://opendatacommunities.org/id/metropolitan-district-council/walsall,WC125-334,30.04.2021,ADULT SOCIAL CARE,ADVANCE HEALTH CARE (UK) LTD,06/04/2021,485.73,6554-Professional Services-Priv Contractor & Other Agencies,THIRD PARTY PAYMENTS,PRIVATE CONTRACTOR,REVENUE
Walsall Council,http://opendatacommunities.org/id/metropolitan-district-council/walsall,WC125-335,30.04.2021,ADULT SOCIAL CARE,ADVANCE HEALTH CARE (UK) LTD,06/04/2021,"9,999.99",6554-Other Expenses,SUPPLIES & SERVICES,EXPENSES,REVENUE
Walsall Council,http://opendatacommunities.org/id/metropolitan-district-council/walsall,WC125-336,30.04.2021,ADULT SOCIAL CARE,ADVANCE HEALTH CARE (UK) LTD,14/04/2021,485.73,6554-Professional Services-Priv Contractor & Other Agencies,THIRD PARTY PAYMENTS,PRIVATE CONTRACTOR,REVENUE
Walsall Council,http://opendatacommunities.org/id/metropolitan-district-council/walsall,WC125-337,30.04.2021,ADULT SOCIAL CARE,ADVANCE HEALTH CARE (UK) LTD,16/04/2021,485.73,6554-Professional Services-Priv Contractor & Other Agencies,THIRD PARTY PAYMENTS,PRIVATE CONTRACTOR,REVENUE
Walsall Council,http://opendatacommunities.org/id/metropolitan-district-council/walsall,WC125-338,30.04.2021,ADULT SOCIAL CARE,ADVANCE HEALTH CARE (UK) LTD,26/04/2021,485.73,6554-Professional Services-Priv Contractor & Other Agencies,THIRD PARTY PAYMENTS,PRIVATE CONTRACTOR,REVENUE
Walsall Council,http://opendatacommunities.org/id/metropolitan-district-council/walsall,WC125-339,30.04.2021,ADULT SOCIAL CARE,ADVANCE HEALTH CARE (UK) LTD,26/04/2021,485.73,6554-Professional Services-Priv Contractor & Other Agencies,THIRD PARTY PAYMENTS,PRIVATE CONTRACTOR,REVENUE
Walsall Council,http://opendatacommunities.org/id/metropolitan-district-council/walsall,WC125-340,30.04.2021,ADULT SOCIAL CARE,ADVANCE HEALTH CARE (UK) LTD,26/04/2021,485.73,6554-Professional Services-Priv Contractor & Other Agencies,THIRD PARTY PAYMENTS,PRIVATE CONTRACTOR,REVENUE
Walsall Council,http://opendatacommunities.org/id/metropolitan-district-council/walsall,WC125-341,30.04.2021,ADULT SOCIAL CARE,ADVANCE HEALTH CARE (UK) LTD,26/04/2021,485.73,6554-Professional Services-Priv Contractor & Other Agencies,THIRD PARTY PAYMENTS,PRIVATE CONTRACTOR,REVENUE
Walsall Council,http://opendatacommunities.org/id/metropolitan-district-council/walsall,WC125-342,30.04.2021,ADULT SOCIAL CARE,ADVANCE HEALTH CARE (UK) LTD,27/04/2021,485.73,6554-Professional Services-Priv Contractor & Other Agencies,THIRD PARTY PAYMENTS,PRIVATE CONTRACTOR,REVENUE
Walsall Council,http://opendatacommunities.org/id/metropolitan-district-council/walsall,WC125-343,30.04.2021,ADULT SOCIAL CARE,ADVANCE HEALTH CARE (UK) LTD,27/04/2021,485.73,6554-Professional Services-Priv Contractor & Other Agencies,THIRD PARTY PAYMENTS,PRIVATE CONTRACTOR,REVENUE
Walsall Council,http://opendatacommunities.org/id/metropolitan-district-council/walsall,WC125-344,30.04.2021,ADULT SOCIAL CARE,ADVANCE HEALTH CARE (UK) LTD,27/04/2021,485.73,6554-Professional Services-Priv Contractor & Other Agencies,THIRD PARTY PAYMENTS,PRIVATE CONTRACTOR,REVENUE
Walsall Council,http://opendatacommunities.org/id/metropolitan-district-council/walsall,WC125-345,30.04.2021,ADULT SOCIAL CARE,ADVANCE HEALTH CARE (UK) LTD,07/04/2021,"1,305.70",6541-Domiciliary Care,THIRD PARTY PAYMENTS,PRIVATE CONTRACTOR,REVENUE
Walsall Council,http://opendatacommunities.org/id/metropolitan-district-council/walsall,WC125-346,30.04.2021,ADULT SOCIAL CARE,ADVANCE HEALTH CARE (UK) LTD,07/04/2021,817.40,6541-Domiciliary Care,THIRD PARTY PAYMENTS,PRIVATE CONTRACTOR,REVENUE
Walsall Council,http://opendatacommunities.org/id/metropolitan-district-council/walsall,WC125-347,30.04.2021,ADULT SOCIAL CARE,ADVANCE HEALTH CARE (UK) LTD,07/04/2021,"2,734.48",6541-Domiciliary Care,THIRD PARTY PAYMENTS,PRIVATE CONTRACTOR,REVENUE
Walsall Council,http://opendatacommunities.org/id/metropolitan-district-council/walsall,WC125-348,30.04.2021,ADULT SOCIAL CARE,ADVANCE HEALTH CARE (UK) LTD,07/04/2021,"2,086.84",6541-Domiciliary Care,THIRD PARTY PAYMENTS,PRIVATE CONTRACTOR,REVENUE
Walsall Council,http://opendatacommunities.org/id/metropolitan-district-council/walsall,WC125-349,30.04.2021,ADULT SOCIAL CARE,ADVANCE HEALTH CARE (UK) LTD,07/04/2021,719.60,6541-Domiciliary Care,THIRD PARTY PAYMENTS,PRIVATE CONTRACTOR,REVENUE
Walsall Council,http://opendatacommunities.org/id/metropolitan-district-council/walsall,WC125-350,30.04.2021,ADULT SOCIAL CARE,ADVANCE HEALTH CARE (UK) LTD,07/04/2021,853.24,6541-Domiciliary Care,THIRD PARTY PAYMENTS,PRIVATE CONTRACTOR,REVENUE
Walsall Council,http://opendatacommunities.org/id/metropolitan-district-council/walsall,WC125-351,30.04.2021,ADULT SOCIAL CARE,ADVANCE HEALTH CARE (UK) LTD,07/04/2021,"1,017.72",6541-Domiciliary Care,THIRD PARTY PAYMENTS,PRIVATE CONTRACTOR,REVENUE
Walsall Council,http://opendatacommunities.org/id/metropolitan-district-council/walsall,WC125-352,30.04.2021,ADULT SOCIAL CARE,ADVANCE HEALTH CARE (UK) LTD,07/04/2021,842.96,6541-Domiciliary Care,THIRD PARTY PAYMENTS,PRIVATE CONTRACTOR,REVENUE
Walsall Council,http://opendatacommunities.org/id/metropolitan-district-council/walsall,WC125-353,30.04.2021,ADULT SOCIAL CARE,ADVANCE HEALTH CARE (UK) LTD,07/04/2021,817.40,6541-Domiciliary Care,THIRD PARTY PAYMENTS,PRIVATE CONTRACTOR,REVENUE
Walsall Council,http://opendatacommunities.org/id/metropolitan-district-council/walsall,WC125-354,30.04.2021,ADULT SOCIAL CARE,ADVANCE HEALTH CARE (UK) LTD,07/04/2021,902.07,6541-Domiciliary Care,THIRD PARTY PAYMENTS,PRIVATE CONTRACTOR,REVENUE
Walsall Council,http://opendatacommunities.org/id/metropolitan-district-council/walsall,WC125-355,30.04.2021,ADULT SOCIAL CARE,ADVANCED HEALTH AND CARE,06/04/2021,"9,820.45",6554-Operational Maintenance,PREMISES,REPAIRS & MAINTENANCE,REVENUE
Walsall Council,http://opendatacommunities.org/id/metropolitan-district-council/walsall,WC125-356,30.04.2021,CHILDRENS,ADVENTURELAND DAY NURSERY,22/04/2021,"8,071.07",1184-Other-Grants to Other Orgs,SUPPLIES & SERVICES,GRANTS (EXP) & SUBSCRIPTIONS,REVENUE
Walsall Council,http://opendatacommunities.org/id/metropolitan-district-council/walsall,WC125-357,30.04.2021,CHILDRENS,ADVENTURELAND DAY NURSERY,13/04/2021,"1,197.00",1184-Other-Grants to Other Orgs,SUPPLIES & SERVICES,GRANTS (EXP) & SUBSCRIPTIONS,REVENUE
Walsall Council,http://opendatacommunities.org/id/metropolitan-district-council/walsall,WC125-358,30.04.2021,CHILDRENS,ADVENTURELAND DAY NURSERY,22/04/2021,"33,850.67",1184-Other-Grants to Other Orgs,SUPPLIES & SERVICES,GRANTS (EXP) & SUBSCRIPTIONS,REVENUE
Walsall Council,http://opendatacommunities.org/id/metropolitan-district-council/walsall,WC125-359,30.04.2021,ADULT SOCIAL CARE,ADVINIA CARE HOMES LTD - HAMMERWICH HALL CARE HOME,12/04/2021,"2,308.00",6541-Residential EMI,THIRD PARTY PAYMENTS,PRIVATE CONTRACTOR,REVENUE
Walsall Council,http://opendatacommunities.org/id/metropolitan-district-council/walsall,WC125-360,30.04.2021,ADULT SOCIAL CARE,ADVINIA CARE HOMES LTD - HAMMERWICH HALL CARE HOME,12/04/2021,"2,044.00",6541-Residential,THIRD PARTY PAYMENTS,PRIVATE CONTRACTOR,REVENUE
Walsall Council,http://opendatacommunities.org/id/metropolitan-district-council/walsall,WC125-361,30.04.2021,ADULT SOCIAL CARE,ADVOCACY MATTERS LIMITED,06/04/2021,"14,709.64",6553-Professional Services-Priv Contractor & Other Agencies,THIRD PARTY PAYMENTS,PRIVATE CONTRACTOR,REVENUE
Walsall Council,http://opendatacommunities.org/id/metropolitan-district-council/walsall,WC125-362,30.04.2021,ECONOMY & ENVIRONMENT,AECOM INFRASTRUCTURE & ENVIRONMENT UK LIMITED,15/04/2021,"2,768.32",6411-Professional Fees & Services,SUPPLIES & SERVICES,SERVICES,REVENUE
Walsall Council,http://opendatacommunities.org/id/metropolitan-district-council/walsall,WC125-363,30.04.2021,ECONOMY & ENVIRONMENT,AECOM INFRASTRUCTURE & ENVIRONMENT UK LIMITED,15/04/2021,830.73,6411-Professional Fees & Services,SUPPLIES & SERVICES,SERVICES,REVENUE
Walsall Council,http://opendatacommunities.org/id/metropolitan-district-council/walsall,WC125-364,30.04.2021,ECONOMY & ENVIRONMENT,AES CONTROL SYSTEMS,29/04/2021,290.00,6414-Repair & Maintenance of Furniture & Equipment,SUPPLIES & SERVICES,EQUIPMENT FURNITURE & MATERIALS,REVENUE
Walsall Council,http://opendatacommunities.org/id/metropolitan-district-council/walsall,WC125-365,30.04.2021,CHILDRENS,REDACTED,01/04/2021,540.00,6223-Foster Carers Maintenance Allowance,TRANSFER PAYMENTS,CHILDREN SOCIAL SERVICES CLIENT,REVENUE
Walsall Council,http://opendatacommunities.org/id/metropolitan-district-council/walsall,WC125-366,30.04.2021,CHILDRENS,REDACTED,01/04/2021,540.00,6223-Foster Carers Maintenance Allowance,TRANSFER PAYMENTS,CHILDREN SOCIAL SERVICES CLIENT,REVENUE
Walsall Council,http://opendatacommunities.org/id/metropolitan-district-council/walsall,WC125-367,30.04.2021,ADULT SOCIAL CARE,REDACTED,06/04/2021,"2,471.69",6541-Direct Payment,THIRD PARTY PAYMENTS,PRIVATE CONTRACTOR,REVENUE
Walsall Council,http://opendatacommunities.org/id/metropolitan-district-council/walsall,WC125-368,30.04.2021,ECONOMY & ENVIRONMENT,AIR MONITORS LIMITED,16/04/2021,960.00,6411-Repair & Maintenance of Furniture & Equipment,SUPPLIES & SERVICES,EQUIPMENT FURNITURE & MATERIALS,REVENUE
Walsall Council,http://opendatacommunities.org/id/metropolitan-district-council/walsall,WC125-369,30.04.2021,ECONOMY & ENVIRONMENT,AIR MONITORS LIMITED,16/04/2021,980.00,"6411-Leasing, Hire & Rental of Equipment",SUPPLIES & SERVICES,EQUIPMENT FURNITURE & MATERIALS,REVENUE
Walsall Council,http://opendatacommunities.org/id/metropolitan-district-council/walsall,WC125-370,30.04.2021,ECONOMY & ENVIRONMENT,AIR MONITORS LIMITED,16/04/2021,"1,040.00",6411-Repair & Maintenance of Furniture & Equipment,SUPPLIES & SERVICES,EQUIPMENT FURNITURE & MATERIALS,REVENUE
Walsall Council,http://opendatacommunities.org/id/metropolitan-district-council/walsall,WC125-371,30.04.2021,ECONOMY & ENVIRONMENT,AIR MONITORS LIMITED,16/04/2021,"1,450.00",6411-Repair & Maintenance of Furniture & Equipment,SUPPLIES & SERVICES,EQUIPMENT FURNITURE & MATERIALS,REVENUE
Walsall Council,http://opendatacommunities.org/id/metropolitan-district-council/walsall,WC125-372,30.04.2021,ECONOMY & ENVIRONMENT,AIR MONITORS LIMITED,16/04/2021,"1,480.00",6411-Repair & Maintenance of Furniture & Equipment,SUPPLIES & SERVICES,EQUIPMENT FURNITURE & MATERIALS,REVENUE
Walsall Council,http://opendatacommunities.org/id/metropolitan-district-council/walsall,WC125-373,30.04.2021,ECONOMY & ENVIRONMENT,AIR MONITORS LIMITED,16/04/2021,"22,700.00",6411-Repair & Maintenance of Furniture & Equipment,SUPPLIES & SERVICES,EQUIPMENT FURNITURE & MATERIALS,REVENUE
Walsall Council,http://opendatacommunities.org/id/metropolitan-district-council/walsall,WC125-374,30.04.2021,ECONOMY & ENVIRONMENT,AIR MONITORS LIMITED,21/04/2021,960.00,6411-Repair & Maintenance of Furniture & Equipment,SUPPLIES & SERVICES,EQUIPMENT FURNITURE & MATERIALS,REVENUE
Walsall Council,http://opendatacommunities.org/id/metropolitan-district-council/walsall,WC125-375,30.04.2021,ECONOMY & ENVIRONMENT,AIR MONITORS LIMITED,21/04/2021,980.00,"6411-Leasing, Hire & Rental of Equipment",SUPPLIES & SERVICES,EQUIPMENT FURNITURE & MATERIALS,REVENUE
Walsall Council,http://opendatacommunities.org/id/metropolitan-district-council/walsall,WC125-376,30.04.2021,ECONOMY & ENVIRONMENT,AIR MONITORS LIMITED,21/04/2021,"1,040.00",6411-Repair & Maintenance of Furniture & Equipment,SUPPLIES & SERVICES,EQUIPMENT FURNITURE & MATERIALS,REVENUE
Walsall Council,http://opendatacommunities.org/id/metropolitan-district-council/walsall,WC125-377,30.04.2021,ECONOMY & ENVIRONMENT,AIR MONITORS LIMITED,21/04/2021,"1,450.00",6411-Repair & Maintenance of Furniture & Equipment,SUPPLIES & SERVICES,EQUIPMENT FURNITURE & MATERIALS,REVENUE
Walsall Council,http://opendatacommunities.org/id/metropolitan-district-council/walsall,WC125-378,30.04.2021,ECONOMY & ENVIRONMENT,AIR MONITORS LIMITED,21/04/2021,"1,480.00",6411-Repair & Maintenance of Furniture & Equipment,SUPPLIES & SERVICES,EQUIPMENT FURNITURE & MATERIALS,REVENUE
Walsall Council,http://opendatacommunities.org/id/metropolitan-district-council/walsall,WC125-379,30.04.2021,ECONOMY & ENVIRONMENT,AIR MONITORS LIMITED,21/04/2021,"22,700.00",6411-Repair & Maintenance of Furniture & Equipment,SUPPLIES & SERVICES,EQUIPMENT FURNITURE & MATERIALS,REVENUE
Walsall Council,http://opendatacommunities.org/id/metropolitan-district-council/walsall,WC125-380,30.04.2021,ECONOMY & ENVIRONMENT,ALBERT JAGGER LTD,28/04/2021,400.10,6410-Materials to Stores,SUPPLIES & SERVICES,EQUIPMENT FURNITURE & MATERIALS,REVENUE
Walsall Council,http://opendatacommunities.org/id/metropolitan-district-council/walsall,WC125-381,30.04.2021,ECONOMY & ENVIRONMENT,ALDERBROOK HEALTHCARE LTD,15/04/2021,"3,916.20",6413-Professional Fees & Services,SUPPLIES & SERVICES,SERVICES,REVENUE
Walsall Council,http://opendatacommunities.org/id/metropolitan-district-council/walsall,WC125-382,30.04.2021,CHILDRENS,ALDRIDGE & BARONS LIMITED,21/04/2021,812.00,6241-Hire of Vehicle with Driver,TRANSPORT,DIRECT TRANSPORT COSTS,REVENUE
Walsall Council,http://opendatacommunities.org/id/metropolitan-district-council/walsall,WC125-383,30.04.2021,CHILDRENS,ALDRIDGE & BARONS LIMITED,21/04/2021,798.00,6241-Hire of Vehicle with Driver,TRANSPORT,DIRECT TRANSPORT COSTS,REVENUE
Walsall Council,http://opendatacommunities.org/id/metropolitan-district-council/walsall,WC125-384,30.04.2021,CHILDRENS,ALDRIDGE & BARONS LIMITED,21/04/2021,429.60,6241-Hire of Vehicle with Driver,TRANSPORT,DIRECT TRANSPORT COSTS,REVENUE
Walsall Council,http://opendatacommunities.org/id/metropolitan-district-council/walsall,WC125-385,30.04.2021,CHILDRENS,ALDRIDGE & BARONS LIMITED,21/04/2021,960.00,6241-Hire of Vehicle with Driver,TRANSPORT,DIRECT TRANSPORT COSTS,REVENUE
Walsall Council,http://opendatacommunities.org/id/metropolitan-district-council/walsall,WC125-386,30.04.2021,CHILDRENS,ALDRIDGE & BARONS LIMITED,21/04/2021,"1,091.52",6241-Hire of Vehicle with Driver,TRANSPORT,DIRECT TRANSPORT COSTS,REVENUE
Walsall Council,http://opendatacommunities.org/id/metropolitan-district-council/walsall,WC125-387,30.04.2021,CHILDRENS,ALDRIDGE & BARONS LIMITED,21/04/2021,"1,800.00",6241-Hire of Vehicle with Driver,TRANSPORT,DIRECT TRANSPORT COSTS,REVENUE
Walsall Council,http://opendatacommunities.org/id/metropolitan-district-council/walsall,WC125-388,30.04.2021,CHILDRENS,ALDRIDGE & BARONS LIMITED,21/04/2021,"1,118.00",6241-Hire of Vehicle with Driver,TRANSPORT,DIRECT TRANSPORT COSTS,REVENUE
Walsall Council,http://opendatacommunities.org/id/metropolitan-district-council/walsall,WC125-389,30.04.2021,CHILDRENS,ALDRIDGE & BARONS LIMITED,21/04/2021,"1,242.60",6241-Hire of Vehicle with Driver,TRANSPORT,DIRECT TRANSPORT COSTS,REVENUE
Walsall Council,http://opendatacommunities.org/id/metropolitan-district-council/walsall,WC125-390,30.04.2021,CHILDRENS,ALDRIDGE & BARONS LIMITED,21/04/2021,"1,061.60",6241-Hire of Vehicle with Driver,TRANSPORT,DIRECT TRANSPORT COSTS,REVENUE
Walsall Council,http://opendatacommunities.org/id/metropolitan-district-council/walsall,WC125-391,30.04.2021,CHILDRENS,ALDRIDGE & BARONS LIMITED,21/04/2021,"1,058.40",6241-Hire of Vehicle with Driver,TRANSPORT,DIRECT TRANSPORT COSTS,REVENUE
Walsall Council,http://opendatacommunities.org/id/metropolitan-district-council/walsall,WC125-392,30.04.2021,CHILDRENS,ALDRIDGE & BARONS LIMITED,21/04/2021,"1,176.00",6241-Hire of Vehicle with Driver,TRANSPORT,DIRECT TRANSPORT COSTS,REVENUE
Walsall Council,http://opendatacommunities.org/id/metropolitan-district-council/walsall,WC125-393,30.04.2021,CHILDRENS,ALDRIDGE & BARONS LIMITED,21/04/2021,"1,360.80",6241-Hire of Vehicle with Driver,TRANSPORT,DIRECT TRANSPORT COSTS,REVENUE
Walsall Council,http://opendatacommunities.org/id/metropolitan-district-council/walsall,WC125-394,30.04.2021,CHILDRENS,ALDRIDGE & BARONS LIMITED,21/04/2021,"1,641.60",6241-Hire of Vehicle with Driver,TRANSPORT,DIRECT TRANSPORT COSTS,REVENUE
Walsall Council,http://opendatacommunities.org/id/metropolitan-district-council/walsall,WC125-395,30.04.2021,CHILDRENS,ALDRIDGE & BARONS LIMITED,21/04/2021,"1,820.00",6241-Hire of Vehicle with Driver,TRANSPORT,DIRECT TRANSPORT COSTS,REVENUE
Walsall Council,http://opendatacommunities.org/id/metropolitan-district-council/walsall,WC125-396,30.04.2021,CHILDRENS,ALDRIDGE & BARONS LIMITED,21/04/2021,"1,274.00",6241-Hire of Vehicle with Driver,TRANSPORT,DIRECT TRANSPORT COSTS,REVENUE
Walsall Council,http://opendatacommunities.org/id/metropolitan-district-council/walsall,WC125-397,30.04.2021,CHILDRENS,ALDRIDGE & BARONS LIMITED,21/04/2021,"1,125.60",6241-Hire of Vehicle with Driver,TRANSPORT,DIRECT TRANSPORT COSTS,REVENUE
Walsall Council,http://opendatacommunities.org/id/metropolitan-district-council/walsall,WC125-398,30.04.2021,CHILDRENS,ALDRIDGE & BARONS LIMITED,21/04/2021,"1,148.00",6241-Hire of Vehicle with Driver,TRANSPORT,DIRECT TRANSPORT COSTS,REVENUE
Walsall Council,http://opendatacommunities.org/id/metropolitan-district-council/walsall,WC125-399,30.04.2021,CHILDRENS,ALDRIDGE & BARONS LIMITED,21/04/2021,"1,603.80",6241-Hire of Vehicle with Driver,TRANSPORT,DIRECT TRANSPORT COSTS,REVENUE
Walsall Council,http://opendatacommunities.org/id/metropolitan-district-council/walsall,WC125-400,30.04.2021,CHILDRENS,ALDRIDGE & BARONS LIMITED,21/04/2021,"1,300.00",6241-Hire of Vehicle with Driver,TRANSPORT,DIRECT TRANSPORT COSTS,REVENUE
Walsall Council,http://opendatacommunities.org/id/metropolitan-district-council/walsall,WC125-401,30.04.2021,CHILDRENS,ALDRIDGE & BARONS LIMITED,21/04/2021,"1,389.50",6241-Hire of Vehicle with Driver,TRANSPORT,DIRECT TRANSPORT COSTS,REVENUE
Walsall Council,http://opendatacommunities.org/id/metropolitan-district-council/walsall,WC125-402,30.04.2021,CHILDRENS,ALDRIDGE & BARONS LIMITED,21/04/2021,"1,080.00",6241-Hire of Vehicle with Driver,TRANSPORT,DIRECT TRANSPORT COSTS,REVENUE
Walsall Council,http://opendatacommunities.org/id/metropolitan-district-council/walsall,WC125-403,30.04.2021,CHILDRENS,ALDRIDGE & BARONS LIMITED,21/04/2021,"1,248.00",6241-Hire of Vehicle with Driver,TRANSPORT,DIRECT TRANSPORT COSTS,REVENUE
Walsall Council,http://opendatacommunities.org/id/metropolitan-district-council/walsall,WC125-404,30.04.2021,CHILDRENS,ALDRIDGE & BARONS LIMITED,21/04/2021,781.20,6241-Hire of Vehicle with Driver,TRANSPORT,DIRECT TRANSPORT COSTS,REVENUE
Walsall Council,http://opendatacommunities.org/id/metropolitan-district-council/walsall,WC125-405,30.04.2021,CHILDRENS,ALDRIDGE & BARONS LIMITED,21/04/2021,"1,225.25",6241-Hire of Vehicle with Driver,TRANSPORT,DIRECT TRANSPORT COSTS,REVENUE
Walsall Council,http://opendatacommunities.org/id/metropolitan-district-council/walsall,WC125-406,30.04.2021,CHILDRENS,ALDRIDGE & BARONS LIMITED,21/04/2021,"1,391.60",6241-Hire of Vehicle with Driver,TRANSPORT,DIRECT TRANSPORT COSTS,REVENUE
Walsall Council,http://opendatacommunities.org/id/metropolitan-district-council/walsall,WC125-407,30.04.2021,CHILDRENS,ALDRIDGE & BARONS LIMITED,21/04/2021,"1,467.00",6241-Hire of Vehicle with Driver,TRANSPORT,DIRECT TRANSPORT COSTS,REVENUE
Walsall Council,http://opendatacommunities.org/id/metropolitan-district-council/walsall,WC125-408,30.04.2021,CHILDRENS,ALDRIDGE & BARONS LIMITED,21/04/2021,960.00,6241-Hire of Vehicle with Driver,TRANSPORT,DIRECT TRANSPORT COSTS,REVENUE
Walsall Council,http://opendatacommunities.org/id/metropolitan-district-council/walsall,WC125-409,30.04.2021,CHILDRENS,ALDRIDGE & BARONS LIMITED,21/04/2021,700.00,6241-Hire of Vehicle with Driver,TRANSPORT,DIRECT TRANSPORT COSTS,REVENUE
Walsall Council,http://opendatacommunities.org/id/metropolitan-district-council/walsall,WC125-410,30.04.2021,CHILDRENS,ALDRIDGE & BARONS LIMITED,21/04/2021,604.80,6241-Hire of Vehicle with Driver,TRANSPORT,DIRECT TRANSPORT COSTS,REVENUE
Walsall Council,http://opendatacommunities.org/id/metropolitan-district-council/walsall,WC125-411,30.04.2021,CHILDRENS,ALDRIDGE & BARONS LIMITED,21/04/2021,"1,128.00",6241-Hire of Vehicle with Driver,TRANSPORT,DIRECT TRANSPORT COSTS,REVENUE
Walsall Council,http://opendatacommunities.org/id/metropolitan-district-council/walsall,WC125-412,30.04.2021,CHILDRENS,ALDRIDGE & BARONS LIMITED,21/04/2021,"1,250.20",6241-Hire of Vehicle with Driver,TRANSPORT,DIRECT TRANSPORT COSTS,REVENUE
Walsall Council,http://opendatacommunities.org/id/metropolitan-district-council/walsall,WC125-413,30.04.2021,CHILDRENS,ALDRIDGE & BARONS LIMITED,21/04/2021,"1,769.60",6241-Hire of Vehicle with Driver,TRANSPORT,DIRECT TRANSPORT COSTS,REVENUE
Walsall Council,http://opendatacommunities.org/id/metropolitan-district-council/walsall,WC125-414,30.04.2021,CHILDRENS,ALDRIDGE & BARONS LIMITED,21/04/2021,980.00,6241-Hire of Vehicle with Driver,TRANSPORT,DIRECT TRANSPORT COSTS,REVENUE
Walsall Council,http://opendatacommunities.org/id/metropolitan-district-council/walsall,WC125-415,30.04.2021,CHILDRENS,ALDRIDGE & BARONS LIMITED,21/04/2021,468.00,6241-Hire of Vehicle with Driver,TRANSPORT,DIRECT TRANSPORT COSTS,REVENUE
Walsall Council,http://opendatacommunities.org/id/metropolitan-district-council/walsall,WC125-416,30.04.2021,CHILDRENS,ALDRIDGE & BARONS LIMITED,21/04/2021,368.00,6241-Hire of Vehicle with Driver,TRANSPORT,DIRECT TRANSPORT COSTS,REVENUE
Walsall Council,http://opendatacommunities.org/id/metropolitan-district-council/walsall,WC125-417,30.04.2021,CHILDRENS,ALDRIDGE ARCHITECTURAL DESIGN LTD,07/04/2021,942.00,6223-Materials,SUPPLIES & SERVICES,EQUIPMENT FURNITURE & MATERIALS,REVENUE
Walsall Council,http://opendatacommunities.org/id/metropolitan-district-council/walsall,WC125-418,30.04.2021,ADULT SOCIAL CARE,ALDRIDGE CENTRAL COMM ASSOC,15/04/2021,"4,740.00",6420-Professional Services-Priv Contractor & Other Agencies,THIRD PARTY PAYMENTS,PRIVATE CONTRACTOR,REVENUE
Walsall Council,http://opendatacommunities.org/id/metropolitan-district-council/walsall,WC125-419,30.04.2021,ADULT SOCIAL CARE,REDACTED,06/04/2021,"1,480.32",6541-Direct Payment,THIRD PARTY PAYMENTS,PRIVATE CONTRACTOR,REVENUE
Walsall Council,http://opendatacommunities.org/id/metropolitan-district-council/walsall,WC125-420,30.04.2021,ECONOMY & ENVIRONMENT,REDACTED,30/04/2021,250.00,6414-Events & Visual Arts,SUPPLIES & SERVICES,SERVICES,REVENUE
Walsall Council,http://opendatacommunities.org/id/metropolitan-district-council/walsall,WC125-421,30.04.2021,ADULT SOCIAL CARE,ALEXANDRA HOUSE CARE SERVICES LTD T/A STONEBRIDGE NURSING HOME,12/04/2021,"7,361.12",6541-Residential,THIRD PARTY PAYMENTS,PRIVATE CONTRACTOR,REVENUE
Walsall Council,http://opendatacommunities.org/id/metropolitan-district-council/walsall,WC125-422,30.04.2021,ADULT SOCIAL CARE,REDACTED,06/04/2021,"1,955.80",6541-Direct Payment,THIRD PARTY PAYMENTS,PRIVATE CONTRACTOR,REVENUE
Walsall Council,http://opendatacommunities.org/id/metropolitan-district-council/walsall,WC125-423,30.04.2021,ADULT SOCIAL CARE,REDACTED,06/04/2021,953.99,6541-Direct Payment,THIRD PARTY PAYMENTS,PRIVATE CONTRACTOR,REVENUE
Walsall Council,http://opendatacommunities.org/id/metropolitan-district-council/walsall,WC125-424,30.04.2021,CHILDRENS,REDACTED,01/04/2021,312.24,6223-Special Guardianship Orders,TRANSFER PAYMENTS,CHILDREN SOCIAL SERVICES CLIENT,REVENUE
Walsall Council,http://opendatacommunities.org/id/metropolitan-district-council/walsall,WC125-425,30.04.2021,ECONOMY & ENVIRONMENT,ALLIANCE LEISURE SERVICES LTD,14/04/2021,687.50,6413-External Training,INDIRECT EMPLOYEES,EXTERNAL TRAINING,REVENUE
Walsall Council,http://opendatacommunities.org/id/metropolitan-district-council/walsall,WC125-426,30.04.2021,ECONOMY & ENVIRONMENT,ALLIANCE LEISURE SERVICES LTD,14/04/2021,687.50,6413-External Training,INDIRECT EMPLOYEES,EXTERNAL TRAINING,REVENUE
Walsall Council,http://opendatacommunities.org/id/metropolitan-district-council/walsall,WC125-427,30.04.2021,ECONOMY & ENVIRONMENT,ALLIANCE LEISURE SERVICES LTD,14/04/2021,687.50,6413-External Training,INDIRECT EMPLOYEES,EXTERNAL TRAINING,REVENUE
Walsall Council,http://opendatacommunities.org/id/metropolitan-district-council/walsall,WC125-428,30.04.2021,ECONOMY & ENVIRONMENT,ALLIANCE LEISURE SERVICES LTD,14/04/2021,687.50,6413-External Training,INDIRECT EMPLOYEES,EXTERNAL TRAINING,REVENUE
Walsall Council,http://opendatacommunities.org/id/metropolitan-district-council/walsall,WC125-429,30.04.2021,RESOURCES AND TRANSFORMATION,ALLIED PUBLICITY SERVICES (MANCHESTER) LIMITED T/A APS GROUP,26/04/2021,"1,978.55",6312-External Printing Services,SUPPLIES & SERVICES,PRINTING STATIONERY & GENERAL OFFICE,REVENUE
Walsall Council,http://opendatacommunities.org/id/metropolitan-district-council/walsall,WC125-430,30.04.2021,ADULT SOCIAL CARE,ALMA COURT,12/04/2021,"4,737.92",6541-Nursing EMI,THIRD PARTY PAYMENTS,PRIVATE CONTRACTOR,REVENUE
Walsall Council,http://opendatacommunities.org/id/metropolitan-district-council/walsall,WC125-431,30.04.2021,ADULT SOCIAL CARE,ALMA COURT,12/04/2021,"3,800.00",6541-Nursing EMI,THIRD PARTY PAYMENTS,PRIVATE CONTRACTOR,REVENUE
Walsall Council,http://opendatacommunities.org/id/metropolitan-district-council/walsall,WC125-432,30.04.2021,ADULT SOCIAL CARE,ALMA COURT,12/04/2021,"6,553.60",6541-Residential,THIRD PARTY PAYMENTS,PRIVATE CONTRACTOR,REVENUE
Walsall Council,http://opendatacommunities.org/id/metropolitan-district-council/walsall,WC125-433,30.04.2021,ADULT SOCIAL CARE,ALMA COURT,12/04/2021,"5,939.20",6541-Nursing EMI,THIRD PARTY PAYMENTS,PRIVATE CONTRACTOR,REVENUE
Walsall Council,http://opendatacommunities.org/id/metropolitan-district-council/walsall,WC125-434,30.04.2021,ADULT SOCIAL CARE,ALMA COURT,12/04/2021,385.72,6541-Nursing EMI,THIRD PARTY PAYMENTS,PRIVATE CONTRACTOR,REVENUE
Walsall Council,http://opendatacommunities.org/id/metropolitan-district-council/walsall,WC125-435,30.04.2021,ADULT SOCIAL CARE,ALMA COURT,06/04/2021,"4,200.00",6554-Professional Services-Priv Contractor & Other Agencies,THIRD PARTY PAYMENTS,PRIVATE CONTRACTOR,REVENUE
Walsall Council,http://opendatacommunities.org/id/metropolitan-district-council/walsall,WC125-436,30.04.2021,ADULT SOCIAL CARE,ALMA COURT,06/04/2021,"4,200.00",6554-Professional Services-Priv Contractor & Other Agencies,THIRD PARTY PAYMENTS,PRIVATE CONTRACTOR,REVENUE
Walsall Council,http://opendatacommunities.org/id/metropolitan-district-council/walsall,WC125-437,30.04.2021,ADULT SOCIAL CARE,ALMA COURT,06/04/2021,-600.00,6554-Professional Services-Priv Contractor & Other Agencies,THIRD PARTY PAYMENTS,PRIVATE CONTRACTOR,REVENUE
Walsall Council,http://opendatacommunities.org/id/metropolitan-district-council/walsall,WC125-438,30.04.2021,CHILDRENS,ALMOZENE NURSERY & CHILDRENS CENTRE,22/04/2021,"4,035.54",1184-Other-Grants to Other Orgs,SUPPLIES & SERVICES,GRANTS (EXP) & SUBSCRIPTIONS,REVENUE
Walsall Council,http://opendatacommunities.org/id/metropolitan-district-council/walsall,WC125-439,30.04.2021,CHILDRENS,ALMOZENE NURSERY & CHILDRENS CENTRE,22/04/2021,"14,994.26",1184-Other-Grants to Other Orgs,SUPPLIES & SERVICES,GRANTS (EXP) & SUBSCRIPTIONS,REVENUE
Walsall Council,http://opendatacommunities.org/id/metropolitan-district-council/walsall,WC125-440,30.04.2021,ADULT SOCIAL CARE,ALPHA HEALTH CARE LTD,12/04/2021,"3,035.72",6541-Residential EMI,THIRD PARTY PAYMENTS,PRIVATE CONTRACTOR,REVENUE
Walsall Council,http://opendatacommunities.org/id/metropolitan-district-council/walsall,WC125-441,30.04.2021,ADULT SOCIAL CARE,ALPHA HEALTH CARE LTD,12/04/2021,"3,064.32",6541-Nursing EMI,THIRD PARTY PAYMENTS,PRIVATE CONTRACTOR,REVENUE
Walsall Council,http://opendatacommunities.org/id/metropolitan-district-council/walsall,WC125-442,30.04.2021,ADULT SOCIAL CARE,ALPHA HEALTH CARE LTD,12/04/2021,"5,600.00",6541-Nursing EMI,THIRD PARTY PAYMENTS,PRIVATE CONTRACTOR,REVENUE
Walsall Council,http://opendatacommunities.org/id/metropolitan-district-council/walsall,WC125-443,30.04.2021,ADULT SOCIAL CARE,ALPHA HEALTH CARE LTD,12/04/2021,"2,908.00",6541-Nursing EMI,THIRD PARTY PAYMENTS,PRIVATE CONTRACTOR,REVENUE
Walsall Council,http://opendatacommunities.org/id/metropolitan-district-council/walsall,WC125-444,30.04.2021,ADULT SOCIAL CARE,ALPHA HEALTH CARE LTD,12/04/2021,"2,696.00",6541-Nursing EMI,THIRD PARTY PAYMENTS,PRIVATE CONTRACTOR,REVENUE
Walsall Council,http://opendatacommunities.org/id/metropolitan-district-council/walsall,WC125-445,30.04.2021,ADULT SOCIAL CARE,ALPHA HEALTH CARE LTD,12/04/2021,"2,937.88",6541-Nursing EMI,THIRD PARTY PAYMENTS,PRIVATE CONTRACTOR,REVENUE
Walsall Council,http://opendatacommunities.org/id/metropolitan-district-council/walsall,WC125-446,30.04.2021,ADULT SOCIAL CARE,ALPHA HEALTH CARE LTD,12/04/2021,"7,000.00",6541-Nursing EMI,THIRD PARTY PAYMENTS,PRIVATE CONTRACTOR,REVENUE
Walsall Council,http://opendatacommunities.org/id/metropolitan-district-council/walsall,WC125-447,30.04.2021,ADULT SOCIAL CARE,ALPHA HEALTH CARE LTD,12/04/2021,"3,064.32",6541-Nursing EMI,THIRD PARTY PAYMENTS,PRIVATE CONTRACTOR,REVENUE
Walsall Council,http://opendatacommunities.org/id/metropolitan-district-council/walsall,WC125-448,30.04.2021,ADULT SOCIAL CARE,ALPHA HEALTH CARE LTD,12/04/2021,"3,064.32",6541-Nursing EMI,THIRD PARTY PAYMENTS,PRIVATE CONTRACTOR,REVENUE
Walsall Council,http://opendatacommunities.org/id/metropolitan-district-council/walsall,WC125-449,30.04.2021,ADULT SOCIAL CARE,ALPHA HEALTH CARE LTD,12/04/2021,"2,308.00",6541-Residential EMI,THIRD PARTY PAYMENTS,PRIVATE CONTRACTOR,REVENUE
Walsall Council,http://opendatacommunities.org/id/metropolitan-district-council/walsall,WC125-450,30.04.2021,ADULT SOCIAL CARE,ALPHA HEALTH CARE LTD,12/04/2021,"3,180.00",6541-Residential EMI,THIRD PARTY PAYMENTS,PRIVATE CONTRACTOR,REVENUE
Walsall Council,http://opendatacommunities.org/id/metropolitan-district-council/walsall,WC125-451,30.04.2021,ADULT SOCIAL CARE,ALPHA HEALTH CARE LTD,12/04/2021,"2,308.00",6541-Residential EMI,THIRD PARTY PAYMENTS,PRIVATE CONTRACTOR,REVENUE
Walsall Council,http://opendatacommunities.org/id/metropolitan-district-council/walsall,WC125-452,30.04.2021,ADULT SOCIAL CARE,ALPHA HEALTH CARE LTD,12/04/2021,"3,064.32",6541-Nursing EMI,THIRD PARTY PAYMENTS,PRIVATE CONTRACTOR,REVENUE
Walsall Council,http://opendatacommunities.org/id/metropolitan-district-council/walsall,WC125-453,30.04.2021,ADULT SOCIAL CARE,ALPHA HEALTH CARE LTD,12/04/2021,"2,308.00",6541-Residential EMI,THIRD PARTY PAYMENTS,PRIVATE CONTRACTOR,REVENUE
Walsall Council,http://opendatacommunities.org/id/metropolitan-district-council/walsall,WC125-454,30.04.2021,ADULT SOCIAL CARE,ALPHA HEALTH CARE LTD,12/04/2021,"3,060.00",6541-Residential EMI,THIRD PARTY PAYMENTS,PRIVATE CONTRACTOR,REVENUE
Walsall Council,http://opendatacommunities.org/id/metropolitan-district-council/walsall,WC125-455,30.04.2021,ADULT SOCIAL CARE,ALPHA HEALTH CARE LTD,12/04/2021,"5,600.00",6541-Residential,THIRD PARTY PAYMENTS,PRIVATE CONTRACTOR,REVENUE
Walsall Council,http://opendatacommunities.org/id/metropolitan-district-council/walsall,WC125-456,30.04.2021,ADULT SOCIAL CARE,ALPHA HEALTH CARE LTD,12/04/2021,"2,696.00",6541-Nursing EMI,THIRD PARTY PAYMENTS,PRIVATE CONTRACTOR,REVENUE
Walsall Council,http://opendatacommunities.org/id/metropolitan-district-council/walsall,WC125-457,30.04.2021,ADULT SOCIAL CARE,ALPHA HEALTH CARE LTD,12/04/2021,"3,290.36",6541-Nursing EMI,THIRD PARTY PAYMENTS,PRIVATE CONTRACTOR,REVENUE
Walsall Council,http://opendatacommunities.org/id/metropolitan-district-council/walsall,WC125-458,30.04.2021,ADULT SOCIAL CARE,ALPHA HEALTH CARE LTD,12/04/2021,"2,937.76",6541-Nursing,THIRD PARTY PAYMENTS,PRIVATE CONTRACTOR,REVENUE
Walsall Council,http://opendatacommunities.org/id/metropolitan-district-council/walsall,WC125-459,30.04.2021,ADULT SOCIAL CARE,ALPHA HEALTH CARE LTD,12/04/2021,"3,180.00",6541-Residential,THIRD PARTY PAYMENTS,PRIVATE CONTRACTOR,REVENUE
Walsall Council,http://opendatacommunities.org/id/metropolitan-district-council/walsall,WC125-460,30.04.2021,ADULT SOCIAL CARE,ALPHA HEALTH CARE LTD,12/04/2021,"2,308.00",6541-Residential EMI,THIRD PARTY PAYMENTS,PRIVATE CONTRACTOR,REVENUE
Walsall Council,http://opendatacommunities.org/id/metropolitan-district-council/walsall,WC125-461,30.04.2021,ADULT SOCIAL CARE,ALPHA HEALTH CARE LTD,12/04/2021,"2,844.32",6541-Nursing,THIRD PARTY PAYMENTS,PRIVATE CONTRACTOR,REVENUE
Walsall Council,http://opendatacommunities.org/id/metropolitan-district-council/walsall,WC125-462,30.04.2021,ADULT SOCIAL CARE,ALPHA HEALTH CARE LTD,12/04/2021,"2,831.48",6541-Residential EMI,THIRD PARTY PAYMENTS,PRIVATE CONTRACTOR,REVENUE
Walsall Council,http://opendatacommunities.org/id/metropolitan-district-council/walsall,WC125-463,30.04.2021,ADULT SOCIAL CARE,ALPHA HEALTH CARE LTD,12/04/2021,"2,696.00",6541-Nursing EMI,THIRD PARTY PAYMENTS,PRIVATE CONTRACTOR,REVENUE
Walsall Council,http://opendatacommunities.org/id/metropolitan-district-council/walsall,WC125-464,30.04.2021,ADULT SOCIAL CARE,ALPHA HEALTH CARE LTD,23/04/2021,271.43,6554-Professional Services-Priv Contractor & Other Agencies,THIRD PARTY PAYMENTS,PRIVATE CONTRACTOR,REVENUE
Walsall Council,http://opendatacommunities.org/id/metropolitan-district-council/walsall,WC125-465,30.04.2021,ADULT SOCIAL CARE,ALPHA HEALTH CARE LTD,23/04/2021,"3,664.29",6554-Professional Services-Priv Contractor & Other Agencies,THIRD PARTY PAYMENTS,PRIVATE CONTRACTOR,REVENUE
Walsall Council,http://opendatacommunities.org/id/metropolitan-district-council/walsall,WC125-466,30.04.2021,ADULT SOCIAL CARE,ALPHA HEALTH CARE LTD,23/04/2021,"9,720.00",6554-Professional Services-Priv Contractor & Other Agencies,THIRD PARTY PAYMENTS,PRIVATE CONTRACTOR,REVENUE
Walsall Council,http://opendatacommunities.org/id/metropolitan-district-council/walsall,WC125-467,30.04.2021,ADULT SOCIAL CARE,ALPHA HEALTH CARE LTD,27/04/2021,"3,200.00",6554-Professional Services-Priv Contractor & Other Agencies,THIRD PARTY PAYMENTS,PRIVATE CONTRACTOR,REVENUE
Walsall Council,http://opendatacommunities.org/id/metropolitan-district-council/walsall,WC125-468,30.04.2021,ADULT SOCIAL CARE,ALPHA HEALTH CARE LTD,27/04/2021,"1,857.14",6554-Professional Services-Priv Contractor & Other Agencies,THIRD PARTY PAYMENTS,PRIVATE CONTRACTOR,REVENUE
Walsall Council,http://opendatacommunities.org/id/metropolitan-district-council/walsall,WC125-469,30.04.2021,ADULT SOCIAL CARE,ALPHA HEALTH CARE LTD,27/04/2021,"2,042.86",6554-Professional Services-Priv Contractor & Other Agencies,THIRD PARTY PAYMENTS,PRIVATE CONTRACTOR,REVENUE
Walsall Council,http://opendatacommunities.org/id/metropolitan-district-council/walsall,WC125-470,30.04.2021,ADULT SOCIAL CARE,ALPHA HEALTH CARE LTD,27/04/2021,"2,500.00",6554-Professional Services-Priv Contractor & Other Agencies,THIRD PARTY PAYMENTS,PRIVATE CONTRACTOR,REVENUE
Walsall Council,http://opendatacommunities.org/id/metropolitan-district-council/walsall,WC125-471,30.04.2021,ADULT SOCIAL CARE,ALPHA HEALTH CARE LTD,27/04/2021,"2,550.00",6554-Professional Services-Priv Contractor & Other Agencies,THIRD PARTY PAYMENTS,PRIVATE CONTRACTOR,REVENUE
Walsall Council,http://opendatacommunities.org/id/metropolitan-district-council/walsall,WC125-472,30.04.2021,ADULT SOCIAL CARE,ALPHA HEALTH CARE LTD,27/04/2021,"3,402.00",6554-Professional Services-Priv Contractor & Other Agencies,THIRD PARTY PAYMENTS,PRIVATE CONTRACTOR,REVENUE
Walsall Council,http://opendatacommunities.org/id/metropolitan-district-council/walsall,WC125-473,30.04.2021,ADULT SOCIAL CARE,ALPHA HEALTH CARE LTD,27/04/2021,"1,700.00",6554-Professional Services-Priv Contractor & Other Agencies,THIRD PARTY PAYMENTS,PRIVATE CONTRACTOR,REVENUE
Walsall Council,http://opendatacommunities.org/id/metropolitan-district-council/walsall,WC125-474,30.04.2021,CHILDRENS,ALPHA TRAINING ACADEMY UK LTD,26/04/2021,"2,000.00",1187-Materials,SUPPLIES & SERVICES,EQUIPMENT FURNITURE & MATERIALS,REVENUE
Walsall Council,http://opendatacommunities.org/id/metropolitan-district-council/walsall,WC125-475,30.04.2021,CHILDRENS,AMAH NURSERIES LIMITED T/A BANANA MOON WALSALL,22/04/2021,"7,263.96",1184-Other-Grants to Other Orgs,SUPPLIES & SERVICES,GRANTS (EXP) & SUBSCRIPTIONS,REVENUE
Walsall Council,http://opendatacommunities.org/id/metropolitan-district-council/walsall,WC125-476,30.04.2021,CHILDRENS,AMAH NURSERIES LIMITED T/A BANANA MOON WALSALL,22/04/2021,"23,172.94",1184-Other-Grants to Other Orgs,SUPPLIES & SERVICES,GRANTS (EXP) & SUBSCRIPTIONS,REVENUE
Walsall Council,http://opendatacommunities.org/id/metropolitan-district-council/walsall,WC125-477,30.04.2021,CHILDRENS,REDACTED,01/04/2021,318.08,6223-Residents Orders,TRANSFER PAYMENTS,CHILDREN SOCIAL SERVICES CLIENT,REVENUE
Walsall Council,http://opendatacommunities.org/id/metropolitan-district-council/walsall,WC125-478,30.04.2021,ADULT SOCIAL CARE,REDACTED,06/04/2021,"1,962.77",6541-Direct Payment,THIRD PARTY PAYMENTS,PRIVATE CONTRACTOR,REVENUE
Walsall Council,http://opendatacommunities.org/id/metropolitan-district-council/walsall,WC125-479,30.04.2021,ECONOMY & ENVIRONMENT,AMEY LG LIMITED,07/04/2021,"5,558.06",6411-Materials,SUPPLIES & SERVICES,EQUIPMENT FURNITURE & MATERIALS,REVENUE
Walsall Council,http://opendatacommunities.org/id/metropolitan-district-council/walsall,WC125-480,30.04.2021,ECONOMY & ENVIRONMENT,AMEY LG LIMITED,15/04/2021,432.57,6411-Repair & Maintenance of Furniture & Equipment,SUPPLIES & SERVICES,EQUIPMENT FURNITURE & MATERIALS,REVENUE
Walsall Council,http://opendatacommunities.org/id/metropolitan-district-council/walsall,WC125-481,30.04.2021,ECONOMY & ENVIRONMENT,AMEY LG LIMITED,15/04/2021,"1,401.86",6411-Materials,SUPPLIES & SERVICES,EQUIPMENT FURNITURE & MATERIALS,REVENUE
Walsall Council,http://opendatacommunities.org/id/metropolitan-district-council/walsall,WC125-482,30.04.2021,ECONOMY & ENVIRONMENT,AMEY LG LIMITED,22/04/2021,"3,716.99",6411-Materials,SUPPLIES & SERVICES,EQUIPMENT FURNITURE & MATERIALS,REVENUE
Walsall Council,http://opendatacommunities.org/id/metropolitan-district-council/walsall,WC125-483,30.04.2021,ECONOMY & ENVIRONMENT CAPITAL,AMEY LG LIMITED,15/04/2021,"2,224.71",7200-Site Works Contractors,CAPITAL,"NEW CONSTRUCTION,CONVERSION & RENOVATION",CAPITAL
Walsall Council,http://opendatacommunities.org/id/metropolitan-district-council/walsall,WC125-484,30.04.2021,ECONOMY & ENVIRONMENT CAPITAL,AMEY LG LIMITED,15/04/2021,"-3,197.84",7200-Site Works Contractors,CAPITAL,"NEW CONSTRUCTION,CONVERSION & RENOVATION",CAPITAL
Walsall Council,http://opendatacommunities.org/id/metropolitan-district-council/walsall,WC125-485,30.04.2021,ECONOMY & ENVIRONMENT CAPITAL,AMEY LG LIMITED,15/04/2021,"3,197.84",7200-Site Works Contractors,CAPITAL,"NEW CONSTRUCTION,CONVERSION & RENOVATION",CAPITAL
Walsall Council,http://opendatacommunities.org/id/metropolitan-district-council/walsall,WC125-486,30.04.2021,ECONOMY & ENVIRONMENT CAPITAL,AMEY LG LIMITED,15/04/2021,"3,197.84",7200-Site Works Contractors,CAPITAL,"NEW CONSTRUCTION,CONVERSION & RENOVATION",CAPITAL
Walsall Council,http://opendatacommunities.org/id/metropolitan-district-council/walsall,WC125-487,30.04.2021,ECONOMY & ENVIRONMENT CAPITAL,AMEY LG LIMITED,15/04/2021,"10,811.11",7200-Site Works Contractors,CAPITAL,"NEW CONSTRUCTION,CONVERSION & RENOVATION",CAPITAL
Walsall Council,http://opendatacommunities.org/id/metropolitan-district-council/walsall,WC125-488,30.04.2021,ECONOMY & ENVIRONMENT,AMEY OW LTD,06/04/2021,"9,200.52",6411-Professional Services-Priv Contractor & Other Agencies,THIRD PARTY PAYMENTS,PRIVATE CONTRACTOR,REVENUE
Walsall Council,http://opendatacommunities.org/id/metropolitan-district-council/walsall,WC125-489,30.04.2021,RESOURCES AND TRANSFORMATION,AMEY OW LTD,21/04/2021,"21,765.36",7300-Project Fees,CAPITAL,"NEW CONSTRUCTION,CONVERSION & RENOVATION",CAPITAL
Walsall Council,http://opendatacommunities.org/id/metropolitan-district-council/walsall,WC125-490,30.04.2021,CHILDRENS,AMG NURSING CARE SERVICES,14/04/2021,"2,624.37",6220-Professional Fees & Services,SUPPLIES & SERVICES,SERVICES,REVENUE
Walsall Council,http://opendatacommunities.org/id/metropolitan-district-council/walsall,WC125-491,30.04.2021,CHILDRENS,AMG NURSING CARE SERVICES,14/04/2021,"2,644.72",6220-Professional Fees & Services,SUPPLIES & SERVICES,SERVICES,REVENUE
Walsall Council,http://opendatacommunities.org/id/metropolitan-district-council/walsall,WC125-492,30.04.2021,CHILDRENS,AMG NURSING CARE SERVICES,27/04/2021,"2,641.16",6220-Professional Fees & Services,SUPPLIES & SERVICES,SERVICES,REVENUE
Walsall Council,http://opendatacommunities.org/id/metropolitan-district-council/walsall,WC125-493,30.04.2021,ADULT SOCIAL CARE,AMG NURSING CARE SERVICES,07/04/2021,"14,351.37",6541-Community Supported Living/Supported Accommodation,THIRD PARTY PAYMENTS,PRIVATE CONTRACTOR,REVENUE
Walsall Council,http://opendatacommunities.org/id/metropolitan-district-council/walsall,WC125-494,30.04.2021,CHILDRENS,AMG NURSING CARE SERVICES,27/04/2021,"2,644.72",6220-Professional Fees & Services,SUPPLIES & SERVICES,SERVICES,REVENUE
Walsall Council,http://opendatacommunities.org/id/metropolitan-district-council/walsall,WC125-495,30.04.2021,CHILDRENS,AMG NURSING CARE SERVICES,27/04/2021,"2,274.48",6220-Professional Fees & Services,SUPPLIES & SERVICES,SERVICES,REVENUE
Walsall Council,http://opendatacommunities.org/id/metropolitan-district-council/walsall,WC125-496,30.04.2021,CHILDRENS,REDACTED,01/04/2021,340.00,6223-Internal Foster Carers-Carer Fees,TRANSFER PAYMENTS,CHILDREN SOCIAL SERVICES CLIENT,REVENUE
Walsall Council,http://opendatacommunities.org/id/metropolitan-district-council/walsall,WC125-497,30.04.2021,CHILDRENS,REDACTED,01/04/2021,600.00,6223-Foster Carers Maintenance Allowance,TRANSFER PAYMENTS,CHILDREN SOCIAL SERVICES CLIENT,REVENUE
Walsall Council,http://opendatacommunities.org/id/metropolitan-district-council/walsall,WC125-498,30.04.2021,ADULT SOCIAL CARE,ANCHOR CAREHOMES LTD - HARDEN HALL,12/04/2021,"2,044.00",6541-Residential,THIRD PARTY PAYMENTS,PRIVATE CONTRACTOR,REVENUE
Walsall Council,http://opendatacommunities.org/id/metropolitan-district-council/walsall,WC125-499,30.04.2021,ADULT SOCIAL CARE,ANCHOR CAREHOMES LTD - HARDEN HALL,12/04/2021,"2,308.00",6541-Residential EMI,THIRD PARTY PAYMENTS,PRIVATE CONTRACTOR,REVENUE
Walsall Council,http://opendatacommunities.org/id/metropolitan-district-council/walsall,WC125-500,30.04.2021,ADULT SOCIAL CARE,ANCHOR CAREHOMES LTD - HARDEN HALL,12/04/2021,"2,308.00",6541-Residential EMI,THIRD PARTY PAYMENTS,PRIVATE CONTRACTOR,REVENUE
Walsall Council,http://opendatacommunities.org/id/metropolitan-district-council/walsall,WC125-501,30.04.2021,ADULT SOCIAL CARE,ANCHOR CAREHOMES LTD - HARDEN HALL,12/04/2021,"2,044.00",6541-Residential,THIRD PARTY PAYMENTS,PRIVATE CONTRACTOR,REVENUE
Walsall Council,http://opendatacommunities.org/id/metropolitan-district-council/walsall,WC125-502,30.04.2021,ADULT SOCIAL CARE,ANCHOR CAREHOMES LTD - HARDEN HALL,12/04/2021,"2,044.00",6541-Residential,THIRD PARTY PAYMENTS,PRIVATE CONTRACTOR,REVENUE
Walsall Council,http://opendatacommunities.org/id/metropolitan-district-council/walsall,WC125-503,30.04.2021,ADULT SOCIAL CARE,ANCHOR CAREHOMES LTD - HARDEN HALL,12/04/2021,"2,308.00",6541-Residential EMI,THIRD PARTY PAYMENTS,PRIVATE CONTRACTOR,REVENUE
Walsall Council,http://opendatacommunities.org/id/metropolitan-district-council/walsall,WC125-504,30.04.2021,ADULT SOCIAL CARE,ANCHOR CAREHOMES LTD - HARDEN HALL,12/04/2021,"2,308.00",6541-Residential EMI,THIRD PARTY PAYMENTS,PRIVATE CONTRACTOR,REVENUE
Walsall Council,http://opendatacommunities.org/id/metropolitan-district-council/walsall,WC125-505,30.04.2021,ADULT SOCIAL CARE,ANCHOR CAREHOMES LTD - HARDEN HALL,12/04/2021,"2,308.00",6541-Residential EMI,THIRD PARTY PAYMENTS,PRIVATE CONTRACTOR,REVENUE
Walsall Council,http://opendatacommunities.org/id/metropolitan-district-council/walsall,WC125-506,30.04.2021,ADULT SOCIAL CARE,ANCHOR CAREHOMES LTD - HARDEN HALL,12/04/2021,"2,332.24",6541-Residential EMI,THIRD PARTY PAYMENTS,PRIVATE CONTRACTOR,REVENUE
Walsall Council,http://opendatacommunities.org/id/metropolitan-district-council/walsall,WC125-507,30.04.2021,ADULT SOCIAL CARE,ANCHOR CAREHOMES LTD - HARDEN HALL,12/04/2021,"2,308.00",6541-Residential EMI,THIRD PARTY PAYMENTS,PRIVATE CONTRACTOR,REVENUE
Walsall Council,http://opendatacommunities.org/id/metropolitan-district-council/walsall,WC125-508,30.04.2021,ADULT SOCIAL CARE,ANCHOR CAREHOMES LTD - HARDEN HALL,12/04/2021,"2,308.00",6541-Residential EMI,THIRD PARTY PAYMENTS,PRIVATE CONTRACTOR,REVENUE
Walsall Council,http://opendatacommunities.org/id/metropolitan-district-council/walsall,WC125-509,30.04.2021,ADULT SOCIAL CARE,ANCHOR CAREHOMES LTD - HARDEN HALL,12/04/2021,"2,308.00",6541-Residential EMI,THIRD PARTY PAYMENTS,PRIVATE CONTRACTOR,REVENUE
Walsall Council,http://opendatacommunities.org/id/metropolitan-district-council/walsall,WC125-510,30.04.2021,ADULT SOCIAL CARE,ANCHOR CAREHOMES LTD - HARDEN HALL,12/04/2021,"2,308.00",6541-Residential EMI,THIRD PARTY PAYMENTS,PRIVATE CONTRACTOR,REVENUE
Walsall Council,http://opendatacommunities.org/id/metropolitan-district-council/walsall,WC125-511,30.04.2021,ADULT SOCIAL CARE,ANCHOR CAREHOMES LTD - HARDEN HALL,12/04/2021,"2,308.00",6541-Residential EMI,THIRD PARTY PAYMENTS,PRIVATE CONTRACTOR,REVENUE
Walsall Council,http://opendatacommunities.org/id/metropolitan-district-council/walsall,WC125-512,30.04.2021,ADULT SOCIAL CARE,ANCHOR CAREHOMES LTD - HARDEN HALL,12/04/2021,"2,358.96",6541-Residential EMI,THIRD PARTY PAYMENTS,PRIVATE CONTRACTOR,REVENUE
Walsall Council,http://opendatacommunities.org/id/metropolitan-district-council/walsall,WC125-513,30.04.2021,ADULT SOCIAL CARE,ANCHOR CAREHOMES LTD - HARDEN HALL,12/04/2021,"2,271.48",6541-Residential EMI,THIRD PARTY PAYMENTS,PRIVATE CONTRACTOR,REVENUE
Walsall Council,http://opendatacommunities.org/id/metropolitan-district-council/walsall,WC125-514,30.04.2021,ADULT SOCIAL CARE,ANCHOR CAREHOMES LTD - HARDEN HALL,12/04/2021,"2,044.00",6541-Residential,THIRD PARTY PAYMENTS,PRIVATE CONTRACTOR,REVENUE
Walsall Council,http://opendatacommunities.org/id/metropolitan-district-council/walsall,WC125-515,30.04.2021,ADULT SOCIAL CARE,ANCHOR CAREHOMES LTD - HARDEN HALL,12/04/2021,"2,312.24",6541-Residential EMI,THIRD PARTY PAYMENTS,PRIVATE CONTRACTOR,REVENUE
Walsall Council,http://opendatacommunities.org/id/metropolitan-district-council/walsall,WC125-516,30.04.2021,ADULT SOCIAL CARE,ANCHOR CAREHOMES LTD - HARDEN HALL,12/04/2021,"2,308.00",6541-Residential EMI,THIRD PARTY PAYMENTS,PRIVATE CONTRACTOR,REVENUE
Walsall Council,http://opendatacommunities.org/id/metropolitan-district-council/walsall,WC125-517,30.04.2021,ADULT SOCIAL CARE,ANCHOR CAREHOMES LTD - HARDEN HALL,12/04/2021,"2,332.24",6541-Residential EMI,THIRD PARTY PAYMENTS,PRIVATE CONTRACTOR,REVENUE
Walsall Council,http://opendatacommunities.org/id/metropolitan-district-council/walsall,WC125-518,30.04.2021,ADULT SOCIAL CARE,ANCHOR CAREHOMES LTD - HARDEN HALL,12/04/2021,"3,475.00",6541-Nursing EMI,THIRD PARTY PAYMENTS,PRIVATE CONTRACTOR,REVENUE
Walsall Council,http://opendatacommunities.org/id/metropolitan-district-council/walsall,WC125-519,30.04.2021,ADULT SOCIAL CARE,ANCHOR CAREHOMES LTD - HARDEN HALL,12/04/2021,"2,308.00",6541-Residential EMI,THIRD PARTY PAYMENTS,PRIVATE CONTRACTOR,REVENUE
Walsall Council,http://opendatacommunities.org/id/metropolitan-district-council/walsall,WC125-520,30.04.2021,ADULT SOCIAL CARE,ANCHOR CAREHOMES LTD - HARDEN HALL,12/04/2021,"2,054.96",6541-Residential,THIRD PARTY PAYMENTS,PRIVATE CONTRACTOR,REVENUE
Walsall Council,http://opendatacommunities.org/id/metropolitan-district-council/walsall,WC125-521,30.04.2021,ADULT SOCIAL CARE,ANCHOR CAREHOMES LTD - HARDEN HALL,12/04/2021,"2,308.00",6541-Residential EMI,THIRD PARTY PAYMENTS,PRIVATE CONTRACTOR,REVENUE
Walsall Council,http://opendatacommunities.org/id/metropolitan-district-council/walsall,WC125-522,30.04.2021,ADULT SOCIAL CARE,ANCHOR CAREHOMES LTD - HARDEN HALL,12/04/2021,"2,308.00",6541-Residential EMI,THIRD PARTY PAYMENTS,PRIVATE CONTRACTOR,REVENUE
Walsall Council,http://opendatacommunities.org/id/metropolitan-district-council/walsall,WC125-523,30.04.2021,ADULT SOCIAL CARE,ANCHOR CAREHOMES LTD - HARDEN HALL,12/04/2021,"2,044.00",6541-Residential,THIRD PARTY PAYMENTS,PRIVATE CONTRACTOR,REVENUE
Walsall Council,http://opendatacommunities.org/id/metropolitan-district-council/walsall,WC125-524,30.04.2021,ADULT SOCIAL CARE,ANCHOR CAREHOMES LTD - HARDEN HALL,12/04/2021,"2,266.12",6541-Residential,THIRD PARTY PAYMENTS,PRIVATE CONTRACTOR,REVENUE
Walsall Council,http://opendatacommunities.org/id/metropolitan-district-council/walsall,WC125-525,30.04.2021,ADULT SOCIAL CARE,ANCHOR CAREHOMES LTD - HARDEN HALL,12/04/2021,"2,332.24",6541-Residential EMI,THIRD PARTY PAYMENTS,PRIVATE CONTRACTOR,REVENUE
Walsall Council,http://opendatacommunities.org/id/metropolitan-district-council/walsall,WC125-526,30.04.2021,ADULT SOCIAL CARE,ANCHOR CAREHOMES LTD - HARDEN HALL,12/04/2021,"2,312.24",6541-Residential EMI,THIRD PARTY PAYMENTS,PRIVATE CONTRACTOR,REVENUE
Walsall Council,http://opendatacommunities.org/id/metropolitan-district-council/walsall,WC125-527,30.04.2021,ADULT SOCIAL CARE,ANCHOR CAREHOMES LTD - HARDEN HALL,12/04/2021,"2,308.00",6541-Residential EMI,THIRD PARTY PAYMENTS,PRIVATE CONTRACTOR,REVENUE
Walsall Council,http://opendatacommunities.org/id/metropolitan-district-council/walsall,WC125-528,30.04.2021,ADULT SOCIAL CARE,ANCHOR CAREHOMES LTD - HARDEN HALL,12/04/2021,"2,332.24",6541-Residential EMI,THIRD PARTY PAYMENTS,PRIVATE CONTRACTOR,REVENUE
Walsall Council,http://opendatacommunities.org/id/metropolitan-district-council/walsall,WC125-529,30.04.2021,CHILDRENS,REDACTED,01/04/2021,312.24,6223-Special Guardianship Orders,TRANSFER PAYMENTS,CHILDREN SOCIAL SERVICES CLIENT,REVENUE
Walsall Council,http://opendatacommunities.org/id/metropolitan-district-council/walsall,WC125-530,30.04.2021,ADULT SOCIAL CARE,REDACTED,06/04/2021,518.00,6541-Direct Payment,THIRD PARTY PAYMENTS,PRIVATE CONTRACTOR,REVENUE
Walsall Council,http://opendatacommunities.org/id/metropolitan-district-council/walsall,WC125-531,30.04.2021,ADULT SOCIAL CARE,REDACTED,06/04/2021,"2,700.59",6541-Direct Payment,THIRD PARTY PAYMENTS,PRIVATE CONTRACTOR,REVENUE
Walsall Council,http://opendatacommunities.org/id/metropolitan-district-council/walsall,WC125-532,30.04.2021,CHILDRENS CAPITAL,ANDREWS ELECTRICAL LTD,01/04/2021,"9,021.00",7150-Site Works Contractors,CAPITAL,"NEW CONSTRUCTION,CONVERSION & RENOVATION",CAPITAL
Walsall Council,http://opendatacommunities.org/id/metropolitan-district-council/walsall,WC125-533,30.04.2021,CHILDRENS CAPITAL,ANDREWS ELECTRICAL LTD,14/04/2021,"3,764.00",7150-Site Works Contractors,CAPITAL,"NEW CONSTRUCTION,CONVERSION & RENOVATION",CAPITAL
Walsall Council,http://opendatacommunities.org/id/metropolitan-district-council/walsall,WC125-534,30.04.2021,CHILDRENS CAPITAL,ANDREWS ELECTRICAL LTD,16/04/2021,250.00,7150-Site Works Contractors,CAPITAL,"NEW CONSTRUCTION,CONVERSION & RENOVATION",CAPITAL
Walsall Council,http://opendatacommunities.org/id/metropolitan-district-council/walsall,WC125-535,30.04.2021,CHILDRENS CAPITAL,ANDREWS ELECTRICAL LTD,22/04/2021,"5,910.00",7150-Site Works Contractors,CAPITAL,"NEW CONSTRUCTION,CONVERSION & RENOVATION",CAPITAL
Walsall Council,http://opendatacommunities.org/id/metropolitan-district-council/walsall,WC125-536,30.04.2021,CHILDRENS,ANDY THURMAN LTD,23/04/2021,"2,700.00",6633-Professional Fees & Services,SUPPLIES & SERVICES,SERVICES,REVENUE
Walsall Council,http://opendatacommunities.org/id/metropolitan-district-council/walsall,WC125-537,30.04.2021,CHILDRENS,REDACTED,01/04/2021,368.76,6223-Special Guardianship Orders,TRANSFER PAYMENTS,CHILDREN SOCIAL SERVICES CLIENT,REVENUE
Walsall Council,http://opendatacommunities.org/id/metropolitan-district-council/walsall,WC125-538,30.04.2021,CHILDRENS,REDACTED,01/04/2021,500.16,6223-Special Guardianship Orders,TRANSFER PAYMENTS,CHILDREN SOCIAL SERVICES CLIENT,REVENUE
Walsall Council,http://opendatacommunities.org/id/metropolitan-district-council/walsall,WC125-539,30.04.2021,CHILDRENS,REDACTED,01/04/2021,312.04,6223-Special Guardianship Orders,TRANSFER PAYMENTS,CHILDREN SOCIAL SERVICES CLIENT,REVENUE
Walsall Council,http://opendatacommunities.org/id/metropolitan-district-council/walsall,WC125-540,30.04.2021,CHILDRENS,ANGELS AND BUTTERFLIES CHILDMINDING,22/04/2021,807.00,1184-Other-Grants to Other Orgs,SUPPLIES & SERVICES,GRANTS (EXP) & SUBSCRIPTIONS,REVENUE
Walsall Council,http://opendatacommunities.org/id/metropolitan-district-council/walsall,WC125-541,30.04.2021,CHILDRENS,ANGELS AND BUTTERFLIES CHILDMINDING,22/04/2021,"5,452.46",1184-Other-Grants to Other Orgs,SUPPLIES & SERVICES,GRANTS (EXP) & SUBSCRIPTIONS,REVENUE
Walsall Council,http://opendatacommunities.org/id/metropolitan-district-council/walsall,WC125-542,30.04.2021,ECONOMY & ENVIRONMENT,REDACTED,15/04/2021,"2,000.00",6414-Events & Visual Arts,SUPPLIES & SERVICES,SERVICES,REVENUE
Walsall Council,http://opendatacommunities.org/id/metropolitan-district-council/walsall,WC125-543,30.04.2021,ADULT SOCIAL CARE,REDACTED,19/04/2021,380.82,6541-Shared Lives,THIRD PARTY PAYMENTS,PRIVATE CONTRACTOR,REVENUE
Walsall Council,http://opendatacommunities.org/id/metropolitan-district-council/walsall,WC125-544,30.04.2021,ADULT SOCIAL CARE,REDACTED,01/04/2021,380.82,6541-Shared Lives,THIRD PARTY PAYMENTS,PRIVATE CONTRACTOR,REVENUE
Walsall Council,http://opendatacommunities.org/id/metropolitan-district-council/walsall,WC125-545,30.04.2021,ADULT SOCIAL CARE,REDACTED,19/04/2021,313.58,6541-Shared Lives,THIRD PARTY PAYMENTS,PRIVATE CONTRACTOR,REVENUE
Walsall Council,http://opendatacommunities.org/id/metropolitan-district-council/walsall,WC125-546,30.04.2021,ADULT SOCIAL CARE,REDACTED,28/04/2021,371.74,6541-Shared Lives,THIRD PARTY PAYMENTS,PRIVATE CONTRACTOR,REVENUE
Walsall Council,http://opendatacommunities.org/id/metropolitan-district-council/walsall,WC125-547,30.04.2021,ECONOMY & ENVIRONMENT,REDACTED,06/04/2021,"1,000.00",6414-Professional Fees & Services,SUPPLIES & SERVICES,SERVICES,REVENUE
Walsall Council,http://opendatacommunities.org/id/metropolitan-district-council/walsall,WC125-548,30.04.2021,ADULT SOCIAL CARE,REDACTED,06/04/2021,"1,417.26",6541-Direct Payment,THIRD PARTY PAYMENTS,PRIVATE CONTRACTOR,REVENUE
Walsall Council,http://opendatacommunities.org/id/metropolitan-district-council/walsall,WC125-549,30.04.2021,ADULT SOCIAL CARE,ANSON COURT RESIDENTIAL HOME,12/04/2021,"2,308.00",6541-Residential EMI,THIRD PARTY PAYMENTS,PRIVATE CONTRACTOR,REVENUE
Walsall Council,http://opendatacommunities.org/id/metropolitan-district-council/walsall,WC125-550,30.04.2021,ADULT SOCIAL CARE,ANSON COURT RESIDENTIAL HOME,12/04/2021,"2,308.00",6541-Residential EMI,THIRD PARTY PAYMENTS,PRIVATE CONTRACTOR,REVENUE
Walsall Council,http://opendatacommunities.org/id/metropolitan-district-council/walsall,WC125-551,30.04.2021,ADULT SOCIAL CARE,ANSON COURT RESIDENTIAL HOME,12/04/2021,"2,308.00",6541-Residential EMI,THIRD PARTY PAYMENTS,PRIVATE CONTRACTOR,REVENUE
Walsall Council,http://opendatacommunities.org/id/metropolitan-district-council/walsall,WC125-552,30.04.2021,ADULT SOCIAL CARE,ANSON COURT RESIDENTIAL HOME,12/04/2021,"2,308.00",6541-Residential EMI,THIRD PARTY PAYMENTS,PRIVATE CONTRACTOR,REVENUE
Walsall Council,http://opendatacommunities.org/id/metropolitan-district-council/walsall,WC125-553,30.04.2021,ADULT SOCIAL CARE,ANSON COURT RESIDENTIAL HOME,12/04/2021,"2,308.00",6541-Residential EMI,THIRD PARTY PAYMENTS,PRIVATE CONTRACTOR,REVENUE
Walsall Council,http://opendatacommunities.org/id/metropolitan-district-council/walsall,WC125-554,30.04.2021,ADULT SOCIAL CARE,ANSON COURT RESIDENTIAL HOME,12/04/2021,"3,450.85",6541-Residential EMI,THIRD PARTY PAYMENTS,PRIVATE CONTRACTOR,REVENUE
Walsall Council,http://opendatacommunities.org/id/metropolitan-district-council/walsall,WC125-555,30.04.2021,ADULT SOCIAL CARE,ANSON COURT RESIDENTIAL HOME,12/04/2021,"2,164.00",6541-Residential,THIRD PARTY PAYMENTS,PRIVATE CONTRACTOR,REVENUE
Walsall Council,http://opendatacommunities.org/id/metropolitan-district-council/walsall,WC125-556,30.04.2021,ADULT SOCIAL CARE,ANSON COURT RESIDENTIAL HOME,12/04/2021,"2,308.00",6541-Residential EMI,THIRD PARTY PAYMENTS,PRIVATE CONTRACTOR,REVENUE
Walsall Council,http://opendatacommunities.org/id/metropolitan-district-council/walsall,WC125-557,30.04.2021,ADULT SOCIAL CARE,ANSON COURT RESIDENTIAL HOME,12/04/2021,"2,308.00",6541-Residential EMI,THIRD PARTY PAYMENTS,PRIVATE CONTRACTOR,REVENUE
Walsall Council,http://opendatacommunities.org/id/metropolitan-district-council/walsall,WC125-558,30.04.2021,ADULT SOCIAL CARE,ANSON COURT RESIDENTIAL HOME,12/04/2021,"2,308.00",6541-Residential EMI,THIRD PARTY PAYMENTS,PRIVATE CONTRACTOR,REVENUE
Walsall Council,http://opendatacommunities.org/id/metropolitan-district-council/walsall,WC125-559,30.04.2021,ADULT SOCIAL CARE,ANSON COURT RESIDENTIAL HOME,12/04/2021,"2,172.24",6541-Residential,THIRD PARTY PAYMENTS,PRIVATE CONTRACTOR,REVENUE
Walsall Council,http://opendatacommunities.org/id/metropolitan-district-council/walsall,WC125-560,30.04.2021,ADULT SOCIAL CARE,ANSON COURT RESIDENTIAL HOME,12/04/2021,"2,044.00",6541-Residential,THIRD PARTY PAYMENTS,PRIVATE CONTRACTOR,REVENUE
Walsall Council,http://opendatacommunities.org/id/metropolitan-district-council/walsall,WC125-561,30.04.2021,ADULT SOCIAL CARE,ANSON COURT RESIDENTIAL HOME,12/04/2021,"2,308.00",6541-Residential EMI,THIRD PARTY PAYMENTS,PRIVATE CONTRACTOR,REVENUE
Walsall Council,http://opendatacommunities.org/id/metropolitan-district-council/walsall,WC125-562,30.04.2021,ADULT SOCIAL CARE,ANSON COURT RESIDENTIAL HOME,12/04/2021,"1,731.00",6541-Residential EMI,THIRD PARTY PAYMENTS,PRIVATE CONTRACTOR,REVENUE
Walsall Council,http://opendatacommunities.org/id/metropolitan-district-council/walsall,WC125-563,30.04.2021,ADULT SOCIAL CARE,ANSON COURT RESIDENTIAL HOME,12/04/2021,"2,308.00",6541-Residential EMI,THIRD PARTY PAYMENTS,PRIVATE CONTRACTOR,REVENUE
Walsall Council,http://opendatacommunities.org/id/metropolitan-district-council/walsall,WC125-564,30.04.2021,ADULT SOCIAL CARE,ANSON COURT RESIDENTIAL HOME,09/04/2021,954.90,6550-Professional Fees & Services,SUPPLIES & SERVICES,SERVICES,REVENUE
Walsall Council,http://opendatacommunities.org/id/metropolitan-district-council/walsall,WC125-565,30.04.2021,ADULT SOCIAL CARE,ANSON COURT RESIDENTIAL HOME,09/04/2021,"1,007.37",6550-Professional Fees & Services,SUPPLIES & SERVICES,SERVICES,REVENUE
Walsall Council,http://opendatacommunities.org/id/metropolitan-district-council/walsall,WC125-566,30.04.2021,HOLDING ACCOUNTS,ANTHONY COLLINS SOLICITORS,26/04/2021,"10,000.00",2877-Insurance Payment Claims,SUPPLIES & SERVICES,INSURANCE,REVENUE
Walsall Council,http://opendatacommunities.org/id/metropolitan-district-council/walsall,WC125-567,30.04.2021,CHILDRENS,REDACTED,01/04/2021,333.12,6223-Special Guardianship Orders,TRANSFER PAYMENTS,CHILDREN SOCIAL SERVICES CLIENT,REVENUE
Walsall Council,http://opendatacommunities.org/id/metropolitan-district-council/walsall,WC125-568,30.04.2021,ECONOMY & ENVIRONMENT,APCOA PARKING SERVICES (UK) LTD,07/04/2021,"41,954.79",6411-Professional Services-Priv Contractor & Other Agencies,THIRD PARTY PAYMENTS,PRIVATE CONTRACTOR,REVENUE
Walsall Council,http://opendatacommunities.org/id/metropolitan-district-council/walsall,WC125-569,30.04.2021,CHILDRENS,APP CARZ,21/04/2021,448.80,6241-Hire of Vehicle with Driver,TRANSPORT,DIRECT TRANSPORT COSTS,REVENUE
Walsall Council,http://opendatacommunities.org/id/metropolitan-district-council/walsall,WC125-570,30.04.2021,CHILDRENS,APP CARZ,21/04/2021,896.00,6241-Hire of Vehicle with Driver,TRANSPORT,DIRECT TRANSPORT COSTS,REVENUE
Walsall Council,http://opendatacommunities.org/id/metropolitan-district-council/walsall,WC125-571,30.04.2021,CHILDRENS,APP CARZ,21/04/2021,840.00,6241-Hire of Vehicle with Driver,TRANSPORT,DIRECT TRANSPORT COSTS,REVENUE
Walsall Council,http://opendatacommunities.org/id/metropolitan-district-council/walsall,WC125-572,30.04.2021,CHILDRENS,APP CARZ,21/04/2021,616.00,6241-Hire of Vehicle with Driver,TRANSPORT,DIRECT TRANSPORT COSTS,REVENUE
Walsall Council,http://opendatacommunities.org/id/metropolitan-district-council/walsall,WC125-573,30.04.2021,CHILDRENS,APP CARZ,21/04/2021,"1,000.00",6241-Hire of Vehicle with Driver,TRANSPORT,DIRECT TRANSPORT COSTS,REVENUE
Walsall Council,http://opendatacommunities.org/id/metropolitan-district-council/walsall,WC125-574,30.04.2021,CHILDRENS,APP CARZ,21/04/2021,308.00,6241-Hire of Vehicle with Driver,TRANSPORT,DIRECT TRANSPORT COSTS,REVENUE
Walsall Council,http://opendatacommunities.org/id/metropolitan-district-council/walsall,WC125-575,30.04.2021,CHILDRENS,APP CARZ,21/04/2021,"1,134.00",6241-Hire of Vehicle with Driver,TRANSPORT,DIRECT TRANSPORT COSTS,REVENUE
Walsall Council,http://opendatacommunities.org/id/metropolitan-district-council/walsall,WC125-576,30.04.2021,CHILDRENS,APP CARZ,21/04/2021,896.00,6241-Hire of Vehicle with Driver,TRANSPORT,DIRECT TRANSPORT COSTS,REVENUE
Walsall Council,http://opendatacommunities.org/id/metropolitan-district-council/walsall,WC125-577,30.04.2021,CHILDRENS,APP CARZ,21/04/2021,896.00,6241-Hire of Vehicle with Driver,TRANSPORT,DIRECT TRANSPORT COSTS,REVENUE
Walsall Council,http://opendatacommunities.org/id/metropolitan-district-council/walsall,WC125-578,30.04.2021,CHILDRENS,APP CARZ,21/04/2021,616.00,6241-Hire of Vehicle with Driver,TRANSPORT,DIRECT TRANSPORT COSTS,REVENUE
Walsall Council,http://opendatacommunities.org/id/metropolitan-district-council/walsall,WC125-579,30.04.2021,CHILDRENS,APP CARZ,21/04/2021,308.00,6241-Hire of Vehicle with Driver,TRANSPORT,DIRECT TRANSPORT COSTS,REVENUE
Walsall Council,http://opendatacommunities.org/id/metropolitan-district-council/walsall,WC125-580,30.04.2021,CHILDRENS,APP CARZ,21/04/2021,684.00,6241-Hire of Vehicle with Driver,TRANSPORT,DIRECT TRANSPORT COSTS,REVENUE
Walsall Council,http://opendatacommunities.org/id/metropolitan-district-council/walsall,WC125-581,30.04.2021,CHILDRENS,APP CARZ,21/04/2021,896.00,6241-Hire of Vehicle with Driver,TRANSPORT,DIRECT TRANSPORT COSTS,REVENUE
Walsall Council,http://opendatacommunities.org/id/metropolitan-district-council/walsall,WC125-582,30.04.2021,CHILDRENS,APP CARZ,21/04/2021,840.00,6241-Hire of Vehicle with Driver,TRANSPORT,DIRECT TRANSPORT COSTS,REVENUE
Walsall Council,http://opendatacommunities.org/id/metropolitan-district-council/walsall,WC125-583,30.04.2021,CHILDRENS,APP CARZ,21/04/2021,784.00,6241-Hire of Vehicle with Driver,TRANSPORT,DIRECT TRANSPORT COSTS,REVENUE
Walsall Council,http://opendatacommunities.org/id/metropolitan-district-council/walsall,WC125-584,30.04.2021,ECONOMY & ENVIRONMENT,AQUAMO LTD,22/04/2021,328.00,6413-Materials,SUPPLIES & SERVICES,EQUIPMENT FURNITURE & MATERIALS,REVENUE
Walsall Council,http://opendatacommunities.org/id/metropolitan-district-council/walsall,WC125-585,30.04.2021,ECONOMY & ENVIRONMENT,AQUILA TRAINING SERVICES LTD,23/04/2021,250.00,6440-External Training,INDIRECT EMPLOYEES,EXTERNAL TRAINING,REVENUE
Walsall Council,http://opendatacommunities.org/id/metropolitan-district-council/walsall,WC125-586,30.04.2021,ECONOMY & ENVIRONMENT,AQUILA TRUCK CENTRES LTD,06/04/2021,462.09,6410-Materials,SUPPLIES & SERVICES,EQUIPMENT FURNITURE & MATERIALS,REVENUE
Walsall Council,http://opendatacommunities.org/id/metropolitan-district-council/walsall,WC125-587,30.04.2021,ADULT SOCIAL CARE,ARBORETUM NURSING HOME.,21/04/2021,"2,980.00",6554-Professional Services-Priv Contractor & Other Agencies,THIRD PARTY PAYMENTS,PRIVATE CONTRACTOR,REVENUE
Walsall Council,http://opendatacommunities.org/id/metropolitan-district-council/walsall,WC125-588,30.04.2021,ADULT SOCIAL CARE,ARBORETUM NURSING HOME.,01/04/2021,"1,490.00",6554-Professional Services-Priv Contractor & Other Agencies,THIRD PARTY PAYMENTS,PRIVATE CONTRACTOR,REVENUE
Walsall Council,http://opendatacommunities.org/id/metropolitan-district-council/walsall,WC125-589,30.04.2021,ADULT SOCIAL CARE,ARBORETUM NURSING HOME.,09/04/2021,800.60,6554-Professional Services-Priv Contractor & Other Agencies,THIRD PARTY PAYMENTS,PRIVATE CONTRACTOR,REVENUE
Walsall Council,http://opendatacommunities.org/id/metropolitan-district-council/walsall,WC125-590,30.04.2021,ADULT SOCIAL CARE,ARBORETUM NURSING HOME.,13/04/2021,"1,601.20",6554-Professional Services-Priv Contractor & Other Agencies,THIRD PARTY PAYMENTS,PRIVATE CONTRACTOR,REVENUE
Walsall Council,http://opendatacommunities.org/id/metropolitan-district-council/walsall,WC125-591,30.04.2021,ADULT SOCIAL CARE,ARBORETUM NURSING HOME.,22/04/2021,"11,920.00",6554-Professional Services-Priv Contractor & Other Agencies,THIRD PARTY PAYMENTS,PRIVATE CONTRACTOR,REVENUE
Walsall Council,http://opendatacommunities.org/id/metropolitan-district-council/walsall,WC125-592,30.04.2021,ADULT SOCIAL CARE,ARBORETUM NURSING HOME.,15/04/2021,"2,980.00",6554-Professional Services-Priv Contractor & Other Agencies,THIRD PARTY PAYMENTS,PRIVATE CONTRACTOR,REVENUE
Walsall Council,http://opendatacommunities.org/id/metropolitan-district-council/walsall,WC125-593,30.04.2021,ADULT SOCIAL CARE,ARBORETUM NURSING HOME.,15/04/2021,"2,980.00",6554-Professional Services-Priv Contractor & Other Agencies,THIRD PARTY PAYMENTS,PRIVATE CONTRACTOR,REVENUE
Walsall Council,http://opendatacommunities.org/id/metropolitan-district-council/walsall,WC125-594,30.04.2021,ADULT SOCIAL CARE,ARBORETUM NURSING HOME.,15/04/2021,957.86,6554-Professional Services-Priv Contractor & Other Agencies,THIRD PARTY PAYMENTS,PRIVATE CONTRACTOR,REVENUE
Walsall Council,http://opendatacommunities.org/id/metropolitan-district-council/walsall,WC125-595,30.04.2021,ADULT SOCIAL CARE,ARBORETUM NURSING HOME.,15/04/2021,"2,980.00",6554-Professional Services-Priv Contractor & Other Agencies,THIRD PARTY PAYMENTS,PRIVATE CONTRACTOR,REVENUE
Walsall Council,http://opendatacommunities.org/id/metropolitan-district-council/walsall,WC125-596,30.04.2021,ADULT SOCIAL CARE,ARBORETUM NURSING HOME.,15/04/2021,330.00,6554-Professional Services-Priv Contractor & Other Agencies,THIRD PARTY PAYMENTS,PRIVATE CONTRACTOR,REVENUE
Walsall Council,http://opendatacommunities.org/id/metropolitan-district-council/walsall,WC125-597,30.04.2021,ADULT SOCIAL CARE,ARBORETUM NURSING HOME.,15/04/2021,"2,980.00",6554-Professional Services-Priv Contractor & Other Agencies,THIRD PARTY PAYMENTS,PRIVATE CONTRACTOR,REVENUE
Walsall Council,http://opendatacommunities.org/id/metropolitan-district-council/walsall,WC125-598,30.04.2021,ADULT SOCIAL CARE,ARBORETUM NURSING HOME.,09/04/2021,"3,202.40",6554-Professional Services-Priv Contractor & Other Agencies,THIRD PARTY PAYMENTS,PRIVATE CONTRACTOR,REVENUE
Walsall Council,http://opendatacommunities.org/id/metropolitan-district-council/walsall,WC125-599,30.04.2021,ADULT SOCIAL CARE,ARBORETUM NURSING HOME.,15/04/2021,"3,202.40",6554-Professional Services-Priv Contractor & Other Agencies,THIRD PARTY PAYMENTS,PRIVATE CONTRACTOR,REVENUE
Walsall Council,http://opendatacommunities.org/id/metropolitan-district-council/walsall,WC125-600,30.04.2021,ADULT SOCIAL CARE,ARBORETUM NURSING HOME.,29/04/2021,"11,920.00",6554-Professional Services-Priv Contractor & Other Agencies,THIRD PARTY PAYMENTS,PRIVATE CONTRACTOR,REVENUE
Walsall Council,http://opendatacommunities.org/id/metropolitan-district-council/walsall,WC125-601,30.04.2021,ADULT SOCIAL CARE,ARBORETUM NURSING HOME.,29/04/2021,800.60,6554-Professional Services-Priv Contractor & Other Agencies,THIRD PARTY PAYMENTS,PRIVATE CONTRACTOR,REVENUE
Walsall Council,http://opendatacommunities.org/id/metropolitan-district-council/walsall,WC125-602,30.04.2021,ADULT SOCIAL CARE,ARBORETUM NURSING HOME.,15/04/2021,"1,900.00",6554-Professional Services-Priv Contractor & Other Agencies,THIRD PARTY PAYMENTS,PRIVATE CONTRACTOR,REVENUE
Walsall Council,http://opendatacommunities.org/id/metropolitan-district-council/walsall,WC125-603,30.04.2021,ADULT SOCIAL CARE,ARBORETUM NURSING HOME.,20/04/2021,"-1,900.00",6554-Professional Services-Priv Contractor & Other Agencies,THIRD PARTY PAYMENTS,PRIVATE CONTRACTOR,REVENUE
Walsall Council,http://opendatacommunities.org/id/metropolitan-district-council/walsall,WC125-604,30.04.2021,ADULT SOCIAL CARE,ARBORETUM NURSING HOME.,12/04/2021,"2,396.00",6541-Nursing,THIRD PARTY PAYMENTS,PRIVATE CONTRACTOR,REVENUE
Walsall Council,http://opendatacommunities.org/id/metropolitan-district-council/walsall,WC125-605,30.04.2021,ADULT SOCIAL CARE,ARBORETUM NURSING HOME.,12/04/2021,"2,396.00",6541-Nursing,THIRD PARTY PAYMENTS,PRIVATE CONTRACTOR,REVENUE
Walsall Council,http://opendatacommunities.org/id/metropolitan-district-council/walsall,WC125-606,30.04.2021,ADULT SOCIAL CARE,ARBORETUM NURSING HOME.,12/04/2021,"4,140.00",6541-Nursing,THIRD PARTY PAYMENTS,PRIVATE CONTRACTOR,REVENUE
Walsall Council,http://opendatacommunities.org/id/metropolitan-district-council/walsall,WC125-607,30.04.2021,ADULT SOCIAL CARE,ARBORETUM NURSING HOME.,12/04/2021,"2,396.00",6541-Nursing,THIRD PARTY PAYMENTS,PRIVATE CONTRACTOR,REVENUE
Walsall Council,http://opendatacommunities.org/id/metropolitan-district-council/walsall,WC125-608,30.04.2021,ADULT SOCIAL CARE,ARBORETUM NURSING HOME.,12/04/2021,"2,396.00",6541-Nursing,THIRD PARTY PAYMENTS,PRIVATE CONTRACTOR,REVENUE
Walsall Council,http://opendatacommunities.org/id/metropolitan-district-council/walsall,WC125-609,30.04.2021,ADULT SOCIAL CARE,ARBORETUM NURSING HOME.,12/04/2021,"2,396.00",6541-Nursing,THIRD PARTY PAYMENTS,PRIVATE CONTRACTOR,REVENUE
Walsall Council,http://opendatacommunities.org/id/metropolitan-district-council/walsall,WC125-610,30.04.2021,ADULT SOCIAL CARE,ARBORETUM NURSING HOME.,12/04/2021,"2,552.00",6541-Nursing,THIRD PARTY PAYMENTS,PRIVATE CONTRACTOR,REVENUE
Walsall Council,http://opendatacommunities.org/id/metropolitan-district-council/walsall,WC125-611,30.04.2021,ADULT SOCIAL CARE,ARBORETUM NURSING HOME.,12/04/2021,"2,576.00",6541-Nursing,THIRD PARTY PAYMENTS,PRIVATE CONTRACTOR,REVENUE
Walsall Council,http://opendatacommunities.org/id/metropolitan-district-council/walsall,WC125-612,30.04.2021,ADULT SOCIAL CARE,ARBORETUM NURSING HOME.,12/04/2021,"2,396.00",6541-Nursing,THIRD PARTY PAYMENTS,PRIVATE CONTRACTOR,REVENUE
Walsall Council,http://opendatacommunities.org/id/metropolitan-district-council/walsall,WC125-613,30.04.2021,ADULT SOCIAL CARE,ARBORETUM NURSING HOME.,12/04/2021,"2,396.00",6541-Nursing,THIRD PARTY PAYMENTS,PRIVATE CONTRACTOR,REVENUE
Walsall Council,http://opendatacommunities.org/id/metropolitan-district-council/walsall,WC125-614,30.04.2021,ADULT SOCIAL CARE,ARBORETUM NURSING HOME.,12/04/2021,"2,576.00",6541-Nursing,THIRD PARTY PAYMENTS,PRIVATE CONTRACTOR,REVENUE
Walsall Council,http://opendatacommunities.org/id/metropolitan-district-council/walsall,WC125-615,30.04.2021,ADULT SOCIAL CARE,ARBORETUM NURSING HOME.,12/04/2021,"2,396.00",6541-Nursing,THIRD PARTY PAYMENTS,PRIVATE CONTRACTOR,REVENUE
Walsall Council,http://opendatacommunities.org/id/metropolitan-district-council/walsall,WC125-616,30.04.2021,ADULT SOCIAL CARE,ARBORETUM NURSING HOME.,12/04/2021,"4,792.00",6541-Nursing,THIRD PARTY PAYMENTS,PRIVATE CONTRACTOR,REVENUE
Walsall Council,http://opendatacommunities.org/id/metropolitan-district-council/walsall,WC125-617,30.04.2021,ADULT SOCIAL CARE,ARBORETUM NURSING HOME.,12/04/2021,"2,396.00",6541-Nursing,THIRD PARTY PAYMENTS,PRIVATE CONTRACTOR,REVENUE
Walsall Council,http://opendatacommunities.org/id/metropolitan-district-council/walsall,WC125-618,30.04.2021,ADULT SOCIAL CARE,ARBORETUM NURSING HOME.,12/04/2021,"2,576.00",6541-Nursing,THIRD PARTY PAYMENTS,PRIVATE CONTRACTOR,REVENUE
Walsall Council,http://opendatacommunities.org/id/metropolitan-district-council/walsall,WC125-619,30.04.2021,ADULT SOCIAL CARE,ARBORETUM NURSING HOME.,12/04/2021,"2,396.00",6541-Nursing,THIRD PARTY PAYMENTS,PRIVATE CONTRACTOR,REVENUE
Walsall Council,http://opendatacommunities.org/id/metropolitan-district-council/walsall,WC125-620,30.04.2021,ADULT SOCIAL CARE,ARBORETUM NURSING HOME.,12/04/2021,"2,576.00",6541-Nursing,THIRD PARTY PAYMENTS,PRIVATE CONTRACTOR,REVENUE
Walsall Council,http://opendatacommunities.org/id/metropolitan-district-council/walsall,WC125-621,30.04.2021,ADULT SOCIAL CARE,ARBORETUM NURSING HOME.,12/04/2021,"2,576.00",6541-Nursing,THIRD PARTY PAYMENTS,PRIVATE CONTRACTOR,REVENUE
Walsall Council,http://opendatacommunities.org/id/metropolitan-district-council/walsall,WC125-622,30.04.2021,ADULT SOCIAL CARE,ARBORETUM NURSING HOME.,12/04/2021,"2,396.00",6541-Nursing,THIRD PARTY PAYMENTS,PRIVATE CONTRACTOR,REVENUE
Walsall Council,http://opendatacommunities.org/id/metropolitan-district-council/walsall,WC125-623,30.04.2021,ADULT SOCIAL CARE,ARBORETUM NURSING HOME.,01/04/2021,"-1,702.86",6554-Professional Services-Priv Contractor & Other Agencies,THIRD PARTY PAYMENTS,PRIVATE CONTRACTOR,REVENUE
Walsall Council,http://opendatacommunities.org/id/metropolitan-district-council/walsall,WC125-624,30.04.2021,RESOURCES AND TRANSFORMATION,ARCADIS,15/04/2021,"4,500.00",7300-Consultants Fees,CAPITAL,"NEW CONSTRUCTION,CONVERSION & RENOVATION",CAPITAL
Walsall Council,http://opendatacommunities.org/id/metropolitan-district-council/walsall,WC125-625,30.04.2021,RESOURCES AND TRANSFORMATION,ARCADIS,29/04/2021,"-12,930.67",7300-Consultants Fees,CAPITAL,"NEW CONSTRUCTION,CONVERSION & RENOVATION",CAPITAL
Walsall Council,http://opendatacommunities.org/id/metropolitan-district-council/walsall,WC125-626,30.04.2021,RESOURCES AND TRANSFORMATION,ARCADIS,29/04/2021,650.67,7300-Consultants Fees,CAPITAL,"NEW CONSTRUCTION,CONVERSION & RENOVATION",CAPITAL
Walsall Council,http://opendatacommunities.org/id/metropolitan-district-council/walsall,WC125-627,30.04.2021,RESOURCES AND TRANSFORMATION,ARCADIS,29/04/2021,"12,280.00",7300-Consultants Fees,CAPITAL,"NEW CONSTRUCTION,CONVERSION & RENOVATION",CAPITAL
Walsall Council,http://opendatacommunities.org/id/metropolitan-district-council/walsall,WC125-628,30.04.2021,RESOURCES AND TRANSFORMATION,ARCADIS,29/04/2021,"12,930.67",7300-Consultants Fees,CAPITAL,"NEW CONSTRUCTION,CONVERSION & RENOVATION",CAPITAL
Walsall Council,http://opendatacommunities.org/id/metropolitan-district-council/walsall,WC125-629,30.04.2021,RESOURCES AND TRANSFORMATION,ARCADIS,29/04/2021,"8,000.00",7300-Consultants Fees,CAPITAL,"NEW CONSTRUCTION,CONVERSION & RENOVATION",CAPITAL
Walsall Council,http://opendatacommunities.org/id/metropolitan-district-council/walsall,WC125-630,30.04.2021,RESOURCES AND TRANSFORMATION,ARCADIS,14/04/2021,"-1,400.00",6313-Professional Fees & Services,SUPPLIES & SERVICES,SERVICES,REVENUE
Walsall Council,http://opendatacommunities.org/id/metropolitan-district-council/walsall,WC125-631,30.04.2021,RESOURCES AND TRANSFORMATION,ARCADIS,14/04/2021,"1,400.00",6313-Professional Fees & Services,SUPPLIES & SERVICES,SERVICES,REVENUE
Walsall Council,http://opendatacommunities.org/id/metropolitan-district-council/walsall,WC125-632,30.04.2021,ECONOMY & ENVIRONMENT,ARCADIS,16/04/2021,"7,250.00",6313-Consultant Fees,SUPPLIES & SERVICES,SERVICES,REVENUE
Walsall Council,http://opendatacommunities.org/id/metropolitan-district-council/walsall,WC125-633,30.04.2021,ECONOMY & ENVIRONMENT,ARCADIS,29/04/2021,"18,000.00",6313-Professional Fees & Services,SUPPLIES & SERVICES,SERVICES,REVENUE
Walsall Council,http://opendatacommunities.org/id/metropolitan-district-council/walsall,WC125-634,30.04.2021,ECONOMY & ENVIRONMENT,ARCADIS,29/04/2021,"13,700.00",6313-Professional Fees & Services,SUPPLIES & SERVICES,SERVICES,REVENUE
Walsall Council,http://opendatacommunities.org/id/metropolitan-district-council/walsall,WC125-635,30.04.2021,ECONOMY & ENVIRONMENT,ARCADIS,16/04/2021,"2,890.00",6313-Consultant Fees,SUPPLIES & SERVICES,SERVICES,REVENUE
Walsall Council,http://opendatacommunities.org/id/metropolitan-district-council/walsall,WC125-636,30.04.2021,ECONOMY & ENVIRONMENT,ARCADIS,16/04/2021,"13,500.00",6313-Consultant Fees,SUPPLIES & SERVICES,SERVICES,REVENUE
Walsall Council,http://opendatacommunities.org/id/metropolitan-district-council/walsall,WC125-637,30.04.2021,ECONOMY & ENVIRONMENT CAPITAL,ARCADIS,26/04/2021,"4,900.00",7200-Site Works Contractors,CAPITAL,"NEW CONSTRUCTION,CONVERSION & RENOVATION",CAPITAL
Walsall Council,http://opendatacommunities.org/id/metropolitan-district-council/walsall,WC125-638,30.04.2021,RESOURCES AND TRANSFORMATION,ARISE TRAINING CIC,20/04/2021,"2,514.10",6312-Grants to Other Orgs,SUPPLIES & SERVICES,GRANTS (EXP) & SUBSCRIPTIONS,REVENUE
Walsall Council,http://opendatacommunities.org/id/metropolitan-district-council/walsall,WC125-639,30.04.2021,ADULT SOCIAL CARE,ASH GRANGE CARE HOME,12/04/2021,"2,581.16",6541-Residential,THIRD PARTY PAYMENTS,PRIVATE CONTRACTOR,REVENUE
Walsall Council,http://opendatacommunities.org/id/metropolitan-district-council/walsall,WC125-640,30.04.2021,ADULT SOCIAL CARE,ASH GRANGE CARE HOME,12/04/2021,"1,454.71",6541-Nursing,THIRD PARTY PAYMENTS,PRIVATE CONTRACTOR,REVENUE
Walsall Council,http://opendatacommunities.org/id/metropolitan-district-council/walsall,WC125-641,30.04.2021,ADULT SOCIAL CARE,ASH GRANGE CARE HOME,12/04/2021,"2,696.00",6541-Nursing EMI,THIRD PARTY PAYMENTS,PRIVATE CONTRACTOR,REVENUE
Walsall Council,http://opendatacommunities.org/id/metropolitan-district-council/walsall,WC125-642,30.04.2021,ADULT SOCIAL CARE,ASH GRANGE CARE HOME,12/04/2021,"2,396.00",6541-Nursing,THIRD PARTY PAYMENTS,PRIVATE CONTRACTOR,REVENUE
Walsall Council,http://opendatacommunities.org/id/metropolitan-district-council/walsall,WC125-643,30.04.2021,ADULT SOCIAL CARE,ASH GRANGE CARE HOME,12/04/2021,"2,796.00",6541-Nursing,THIRD PARTY PAYMENTS,PRIVATE CONTRACTOR,REVENUE
Walsall Council,http://opendatacommunities.org/id/metropolitan-district-council/walsall,WC125-644,30.04.2021,ADULT SOCIAL CARE,ASH GRANGE CARE HOME,12/04/2021,"2,044.00",6541-Residential,THIRD PARTY PAYMENTS,PRIVATE CONTRACTOR,REVENUE
Walsall Council,http://opendatacommunities.org/id/metropolitan-district-council/walsall,WC125-645,30.04.2021,ADULT SOCIAL CARE,ASH GRANGE CARE HOME,12/04/2021,"2,396.00",6541-Nursing,THIRD PARTY PAYMENTS,PRIVATE CONTRACTOR,REVENUE
Walsall Council,http://opendatacommunities.org/id/metropolitan-district-council/walsall,WC125-646,30.04.2021,ADULT SOCIAL CARE,ASH GRANGE CARE HOME,12/04/2021,"2,396.00",6541-Nursing,THIRD PARTY PAYMENTS,PRIVATE CONTRACTOR,REVENUE
Walsall Council,http://opendatacommunities.org/id/metropolitan-district-council/walsall,WC125-647,30.04.2021,ADULT SOCIAL CARE,ASH GRANGE CARE HOME,12/04/2021,"2,396.00",6541-Nursing,THIRD PARTY PAYMENTS,PRIVATE CONTRACTOR,REVENUE
Walsall Council,http://opendatacommunities.org/id/metropolitan-district-council/walsall,WC125-648,30.04.2021,ADULT SOCIAL CARE,ASH GRANGE CARE HOME,12/04/2021,"-1,026.86",6541-Nursing,THIRD PARTY PAYMENTS,PRIVATE CONTRACTOR,REVENUE
Walsall Council,http://opendatacommunities.org/id/metropolitan-district-council/walsall,WC125-649,30.04.2021,ADULT SOCIAL CARE,ASH GRANGE CARE HOME,12/04/2021,"2,396.00",6541-Nursing,THIRD PARTY PAYMENTS,PRIVATE CONTRACTOR,REVENUE
Walsall Council,http://opendatacommunities.org/id/metropolitan-district-council/walsall,WC125-650,30.04.2021,ADULT SOCIAL CARE,ASH GRANGE CARE HOME,12/04/2021,"2,774.96",6541-Nursing,THIRD PARTY PAYMENTS,PRIVATE CONTRACTOR,REVENUE
Walsall Council,http://opendatacommunities.org/id/metropolitan-district-council/walsall,WC125-651,30.04.2021,ADULT SOCIAL CARE,ASH GRANGE CARE HOME,12/04/2021,"2,696.00",6541-Nursing EMI,THIRD PARTY PAYMENTS,PRIVATE CONTRACTOR,REVENUE
Walsall Council,http://opendatacommunities.org/id/metropolitan-district-council/walsall,WC125-652,30.04.2021,ADULT SOCIAL CARE,ASH GRANGE CARE HOME,12/04/2021,770.14,6541-Nursing,THIRD PARTY PAYMENTS,PRIVATE CONTRACTOR,REVENUE
Walsall Council,http://opendatacommunities.org/id/metropolitan-district-council/walsall,WC125-653,30.04.2021,ADULT SOCIAL CARE,ASH GRANGE CARE HOME,12/04/2021,"1,198.29",6541-Nursing,THIRD PARTY PAYMENTS,PRIVATE CONTRACTOR,REVENUE
Walsall Council,http://opendatacommunities.org/id/metropolitan-district-council/walsall,WC125-654,30.04.2021,ADULT SOCIAL CARE,ASH GRANGE CARE HOME,26/04/2021,"1,398.00",6541-Nursing,THIRD PARTY PAYMENTS,PRIVATE CONTRACTOR,REVENUE
Walsall Council,http://opendatacommunities.org/id/metropolitan-district-council/walsall,WC125-655,30.04.2021,ADULT SOCIAL CARE,ASH GRANGE CARE HOME,28/04/2021,321.43,6554-Professional Services-Priv Contractor & Other Agencies,THIRD PARTY PAYMENTS,PRIVATE CONTRACTOR,REVENUE
Walsall Council,http://opendatacommunities.org/id/metropolitan-district-council/walsall,WC125-656,30.04.2021,ADULT SOCIAL CARE,ASH GRANGE CARE HOME,07/04/2021,"1,500.00",6554-Professional Services-Priv Contractor & Other Agencies,THIRD PARTY PAYMENTS,PRIVATE CONTRACTOR,REVENUE
Walsall Council,http://opendatacommunities.org/id/metropolitan-district-council/walsall,WC125-657,30.04.2021,ADULT SOCIAL CARE,ASH GRANGE CARE HOME,07/04/2021,750.00,6554-Professional Services-Priv Contractor & Other Agencies,THIRD PARTY PAYMENTS,PRIVATE CONTRACTOR,REVENUE
Walsall Council,http://opendatacommunities.org/id/metropolitan-district-council/walsall,WC125-658,30.04.2021,ADULT SOCIAL CARE,ASH GRANGE CARE HOME,07/04/2021,"5,100.00",6554-Professional Services-Priv Contractor & Other Agencies,THIRD PARTY PAYMENTS,PRIVATE CONTRACTOR,REVENUE
Walsall Council,http://opendatacommunities.org/id/metropolitan-district-council/walsall,WC125-659,30.04.2021,ADULT SOCIAL CARE,ASH GRANGE CARE HOME,22/04/2021,"3,214.29",6554-Professional Services-Priv Contractor & Other Agencies,THIRD PARTY PAYMENTS,PRIVATE CONTRACTOR,REVENUE
Walsall Council,http://opendatacommunities.org/id/metropolitan-district-council/walsall,WC125-660,30.04.2021,ECONOMY & ENVIRONMENT,ASHDOWN SUPPLIES,06/04/2021,336.00,6413-Plaques Memorials-Materials,SUPPLIES & SERVICES,EQUIPMENT FURNITURE & MATERIALS,REVENUE
Walsall Council,http://opendatacommunities.org/id/metropolitan-district-council/walsall,WC125-661,30.04.2021,ADULT SOCIAL CARE,REDACTED,06/04/2021,"1,425.18",6541-Direct Payment,THIRD PARTY PAYMENTS,PRIVATE CONTRACTOR,REVENUE
Walsall Council,http://opendatacommunities.org/id/metropolitan-district-council/walsall,WC125-662,30.04.2021,ECONOMY & ENVIRONMENT,ASKEWS AND HOLTS LIBRARY SERVICES LTD,01/04/2021,"1,017.00",6414-Library Books,SUPPLIES & SERVICES,EQUIPMENT FURNITURE & MATERIALS,REVENUE
Walsall Council,http://opendatacommunities.org/id/metropolitan-district-council/walsall,WC125-663,30.04.2021,ECONOMY & ENVIRONMENT,ASKEWS AND HOLTS LIBRARY SERVICES LTD,01/04/2021,290.07,6414-Library Books,SUPPLIES & SERVICES,EQUIPMENT FURNITURE & MATERIALS,REVENUE
Walsall Council,http://opendatacommunities.org/id/metropolitan-district-council/walsall,WC125-664,30.04.2021,ECONOMY & ENVIRONMENT,ASKEWS AND HOLTS LIBRARY SERVICES LTD,15/04/2021,-397.38,6414-Library Books,SUPPLIES & SERVICES,EQUIPMENT FURNITURE & MATERIALS,REVENUE
Walsall Council,http://opendatacommunities.org/id/metropolitan-district-council/walsall,WC125-665,30.04.2021,ECONOMY & ENVIRONMENT,ASKEWS AND HOLTS LIBRARY SERVICES LTD,15/04/2021,397.38,6414-Library Books,SUPPLIES & SERVICES,EQUIPMENT FURNITURE & MATERIALS,REVENUE
Walsall Council,http://opendatacommunities.org/id/metropolitan-district-council/walsall,WC125-666,30.04.2021,ECONOMY & ENVIRONMENT,ASKEWS AND HOLTS LIBRARY SERVICES LTD,15/04/2021,589.92,6414-Library Books,SUPPLIES & SERVICES,EQUIPMENT FURNITURE & MATERIALS,REVENUE
Walsall Council,http://opendatacommunities.org/id/metropolitan-district-council/walsall,WC125-667,30.04.2021,ADULT SOCIAL CARE,REDACTED,06/04/2021,748.05,6541-Direct Payment,THIRD PARTY PAYMENTS,PRIVATE CONTRACTOR,REVENUE
Walsall Council,http://opendatacommunities.org/id/metropolitan-district-council/walsall,WC125-668,30.04.2021,ADULT SOCIAL CARE,ASPECTS CARE LTD,07/04/2021,345.40,6541-Community Supported Living/Supported Accommodation,THIRD PARTY PAYMENTS,PRIVATE CONTRACTOR,REVENUE
Walsall Council,http://opendatacommunities.org/id/metropolitan-district-council/walsall,WC125-669,30.04.2021,ADULT SOCIAL CARE,ASPECTS CARE LTD,07/04/2021,417.04,6541-Community Supported Living/Supported Accommodation,THIRD PARTY PAYMENTS,PRIVATE CONTRACTOR,REVENUE
Walsall Council,http://opendatacommunities.org/id/metropolitan-district-council/walsall,WC125-670,30.04.2021,ADULT SOCIAL CARE,ASPECTS CARE LTD,07/04/2021,503.44,6541-Community Supported Living/Supported Accommodation,THIRD PARTY PAYMENTS,PRIVATE CONTRACTOR,REVENUE
Walsall Council,http://opendatacommunities.org/id/metropolitan-district-council/walsall,WC125-671,30.04.2021,ADULT SOCIAL CARE,ASPECTS CARE LTD,07/04/2021,503.44,6541-Community Supported Living/Supported Accommodation,THIRD PARTY PAYMENTS,PRIVATE CONTRACTOR,REVENUE
Walsall Council,http://opendatacommunities.org/id/metropolitan-district-council/walsall,WC125-672,30.04.2021,ADULT SOCIAL CARE,ASPECTS CARE LTD,07/04/2021,791.04,6541-Community Supported Living/Supported Accommodation,THIRD PARTY PAYMENTS,PRIVATE CONTRACTOR,REVENUE
Walsall Council,http://opendatacommunities.org/id/metropolitan-district-council/walsall,WC125-673,30.04.2021,ADULT SOCIAL CARE,ASPECTS CARE LTD,07/04/2021,316.36,6541-Community Supported Living/Supported Accommodation,THIRD PARTY PAYMENTS,PRIVATE CONTRACTOR,REVENUE
Walsall Council,http://opendatacommunities.org/id/metropolitan-district-council/walsall,WC125-674,30.04.2021,ADULT SOCIAL CARE,ASPECTS CARE LTD,07/04/2021,"1,078.64",6541-Community Supported Living/Supported Accommodation,THIRD PARTY PAYMENTS,PRIVATE CONTRACTOR,REVENUE
Walsall Council,http://opendatacommunities.org/id/metropolitan-district-council/walsall,WC125-675,30.04.2021,ADULT SOCIAL CARE,ASPECTS CARE LTD,07/04/2021,517.68,6541-Community Supported Living/Supported Accommodation,THIRD PARTY PAYMENTS,PRIVATE CONTRACTOR,REVENUE
Walsall Council,http://opendatacommunities.org/id/metropolitan-district-council/walsall,WC125-676,30.04.2021,ADULT SOCIAL CARE,ASPECTS CARE LTD,07/04/2021,560.96,6541-Community Supported Living/Supported Accommodation,THIRD PARTY PAYMENTS,PRIVATE CONTRACTOR,REVENUE
Walsall Council,http://opendatacommunities.org/id/metropolitan-district-council/walsall,WC125-677,30.04.2021,ADULT SOCIAL CARE,ASPECTS CARE LTD,12/04/2021,517.68,6541-Community Supported Living/Supported Accommodation,THIRD PARTY PAYMENTS,PRIVATE CONTRACTOR,REVENUE
Walsall Council,http://opendatacommunities.org/id/metropolitan-district-council/walsall,WC125-678,30.04.2021,ADULT SOCIAL CARE,ASPECTS CARE LTD,07/04/2021,460.44,6541-Community Supported Living/Supported Accommodation,THIRD PARTY PAYMENTS,PRIVATE CONTRACTOR,REVENUE
Walsall Council,http://opendatacommunities.org/id/metropolitan-district-council/walsall,WC125-679,30.04.2021,ADULT SOCIAL CARE,ASPECTS CARE LTD,07/04/2021,791.04,6541-Community Supported Living/Supported Accommodation,THIRD PARTY PAYMENTS,PRIVATE CONTRACTOR,REVENUE
Walsall Council,http://opendatacommunities.org/id/metropolitan-district-council/walsall,WC125-680,30.04.2021,CHILDRENS,ASPIRATIONS SUPPORT LIVING LTD,27/04/2021,978.90,6223-Accommodation and Related Costs-Assistance to S/S Clients,TRANSFER PAYMENTS,ADULT SOCIAL SERVICES CLIENT,REVENUE
Walsall Council,http://opendatacommunities.org/id/metropolitan-district-council/walsall,WC125-681,30.04.2021,CHILDRENS,ASPIRATIONS SUPPORT LIVING LTD,27/04/2021,973.90,6223-Accommodation and Related Costs-Assistance to S/S Clients,TRANSFER PAYMENTS,ADULT SOCIAL SERVICES CLIENT,REVENUE
Walsall Council,http://opendatacommunities.org/id/metropolitan-district-council/walsall,WC125-682,30.04.2021,CHILDRENS,ASPIRATIONS SUPPORT LIVING LTD,27/04/2021,973.90,6223-Accommodation and Related Costs-Assistance to S/S Clients,TRANSFER PAYMENTS,ADULT SOCIAL SERVICES CLIENT,REVENUE
Walsall Council,http://opendatacommunities.org/id/metropolitan-district-council/walsall,WC125-683,30.04.2021,CHILDRENS,ASPIRATIONS SUPPORT LIVING LTD,27/04/2021,973.90,6223-Accommodation and Related Costs-Assistance to S/S Clients,TRANSFER PAYMENTS,ADULT SOCIAL SERVICES CLIENT,REVENUE
Walsall Council,http://opendatacommunities.org/id/metropolitan-district-council/walsall,WC125-684,30.04.2021,RESOURCES AND TRANSFORMATION,ASSOCIATION OF DEMOCRATIC SERVICES OFFICERS (ADSO),07/04/2021,"-1,470.00",6610-External Training,INDIRECT EMPLOYEES,EXTERNAL TRAINING,REVENUE
Walsall Council,http://opendatacommunities.org/id/metropolitan-district-council/walsall,WC125-685,30.04.2021,RESOURCES AND TRANSFORMATION,ASSOCIATION OF DEMOCRATIC SERVICES OFFICERS (ADSO),07/04/2021,"1,470.00",6610-External Training,INDIRECT EMPLOYEES,EXTERNAL TRAINING,REVENUE
Walsall Council,http://opendatacommunities.org/id/metropolitan-district-council/walsall,WC125-686,30.04.2021,ECONOMY & ENVIRONMENT,ASTUN TECHNOLOGY LIMITED,06/04/2021,"2,550.00",6411-Consultant Fees,SUPPLIES & SERVICES,SERVICES,REVENUE
Walsall Council,http://opendatacommunities.org/id/metropolitan-district-council/walsall,WC125-687,30.04.2021,CHILDRENS,ATKINSON LEWIS LIMITED,12/04/2021,410.00,6220-School Only Payments - Catering,THIRD PARTY PAYMENTS,INDEPENDENT UNIT WITHIN COUNCIL,REVENUE
Walsall Council,http://opendatacommunities.org/id/metropolitan-district-council/walsall,WC125-688,30.04.2021,ADULT SOCIAL CARE,AURORA GRAPHICS & DISPLAYS LTD,01/04/2021,750.00,6623-Outwork Print & Design,SUPPLIES & SERVICES,PRINTING STATIONERY & GENERAL OFFICE,REVENUE
Walsall Council,http://opendatacommunities.org/id/metropolitan-district-council/walsall,WC125-689,30.04.2021,ADULT SOCIAL CARE,AURORA GRAPHICS & DISPLAYS LTD,30/04/2021,300.00,6623-Outwork Print & Design,SUPPLIES & SERVICES,PRINTING STATIONERY & GENERAL OFFICE,REVENUE
Walsall Council,http://opendatacommunities.org/id/metropolitan-district-council/walsall,WC125-690,30.04.2021,ADULT SOCIAL CARE,AURORA GRAPHICS & DISPLAYS LTD,29/04/2021,695.00,6623-Outwork Print & Design,SUPPLIES & SERVICES,PRINTING STATIONERY & GENERAL OFFICE,REVENUE
Walsall Council,http://opendatacommunities.org/id/metropolitan-district-council/walsall,WC125-691,30.04.2021,ADULT SOCIAL CARE,AUTISM WEST MIDLANDS,12/04/2021,"5,675.88",6541-Residential,THIRD PARTY PAYMENTS,PRIVATE CONTRACTOR,REVENUE
Walsall Council,http://opendatacommunities.org/id/metropolitan-district-council/walsall,WC125-692,30.04.2021,ADULT SOCIAL CARE,AUTISM WEST MIDLANDS,12/04/2021,"7,344.60",6541-Residential,THIRD PARTY PAYMENTS,PRIVATE CONTRACTOR,REVENUE
Walsall Council,http://opendatacommunities.org/id/metropolitan-district-council/walsall,WC125-693,30.04.2021,ECONOMY & ENVIRONMENT,AUTO EXTRACT SYSTEMS LTD,06/04/2021,"1,147.00",6410-Professional Services-Priv Contractor & Other Agencies,THIRD PARTY PAYMENTS,PRIVATE CONTRACTOR,REVENUE
Walsall Council,http://opendatacommunities.org/id/metropolitan-district-council/walsall,WC125-694,30.04.2021,ADULT SOCIAL CARE,AVERY HOMES NELSON LIMITED,12/04/2021,"2,044.00",6541-Residential,THIRD PARTY PAYMENTS,PRIVATE CONTRACTOR,REVENUE
Walsall Council,http://opendatacommunities.org/id/metropolitan-district-council/walsall,WC125-695,30.04.2021,ADULT SOCIAL CARE,AVERY HOMES NELSON LIMITED,12/04/2021,"2,044.00",6541-Residential,THIRD PARTY PAYMENTS,PRIVATE CONTRACTOR,REVENUE
Walsall Council,http://opendatacommunities.org/id/metropolitan-district-council/walsall,WC125-696,30.04.2021,ECONOMY & ENVIRONMENT,AXIELL LIMITED,12/04/2021,"3,970.44",6414-Computer Equipment,SUPPLIES & SERVICES,COMMUNICATIONS & COMPUTING,REVENUE
Walsall Council,http://opendatacommunities.org/id/metropolitan-district-council/walsall,WC125-697,30.04.2021,ADULT SOCIAL CARE,REDACTED,06/04/2021,"3,360.40",6541-Direct Payment,THIRD PARTY PAYMENTS,PRIVATE CONTRACTOR,REVENUE
Walsall Council,http://opendatacommunities.org/id/metropolitan-district-council/walsall,WC125-698,30.04.2021,CHILDRENS CAPITAL,AZTEC CONSTRUCTION (MIDLANDS) LTD,29/04/2021,"29,050.50",7300-Private Grants,CAPITAL,CAPITAL GRANTS,CAPITAL GRANTS
Walsall Council,http://opendatacommunities.org/id/metropolitan-district-council/walsall,WC125-699,30.04.2021,CHILDRENS CAPITAL,AZTEC CONSTRUCTION (MIDLANDS) LTD,28/04/2021,"21,200.00",7300-Private Grants,CAPITAL,CAPITAL GRANTS,CAPITAL GRANTS
Walsall Council,http://opendatacommunities.org/id/metropolitan-district-council/walsall,WC125-700,30.04.2021,ECONOMY & ENVIRONMENT,B W Y CANINE LTD,14/04/2021,430.00,6440-Professional Fees & Services,SUPPLIES & SERVICES,SERVICES,REVENUE
Walsall Council,http://opendatacommunities.org/id/metropolitan-district-council/walsall,WC125-701,30.04.2021,CHILDRENS,BACHES SOLICITORS,26/04/2021,959.04,6220-External Legal Fees,SUPPLIES & SERVICES,SERVICES,REVENUE
Walsall Council,http://opendatacommunities.org/id/metropolitan-district-council/walsall,WC125-702,30.04.2021,ADULT SOCIAL CARE,REDACTED,06/04/2021,372.00,6541-Direct Payment,THIRD PARTY PAYMENTS,PRIVATE CONTRACTOR,REVENUE
Walsall Council,http://opendatacommunities.org/id/metropolitan-district-council/walsall,WC125-703,30.04.2021,ADULT SOCIAL CARE,REDACTED,06/04/2021,"3,789.65",6541-Direct Payment,THIRD PARTY PAYMENTS,PRIVATE CONTRACTOR,REVENUE
Walsall Council,http://opendatacommunities.org/id/metropolitan-district-council/walsall,WC125-704,30.04.2021,CHILDRENS,BALTIMORE CONSULTING LTD,29/04/2021,930.00,6241-Professional Fees & Services,SUPPLIES & SERVICES,SERVICES,REVENUE
Walsall Council,http://opendatacommunities.org/id/metropolitan-district-council/walsall,WC125-705,30.04.2021,CHILDRENS,BALTIMORE CONSULTING LTD,29/04/2021,"1,240.00",6241-Professional Fees & Services,SUPPLIES & SERVICES,SERVICES,REVENUE
Walsall Council,http://opendatacommunities.org/id/metropolitan-district-council/walsall,WC125-706,30.04.2021,CHILDRENS,BALTIMORE CONSULTING LTD,29/04/2021,"1,240.00",6241-Professional Fees & Services,SUPPLIES & SERVICES,SERVICES,REVENUE
Walsall Council,http://opendatacommunities.org/id/metropolitan-district-council/walsall,WC125-707,30.04.2021,CHILDRENS,BANYA FAMILY PLACEMENT AGENCY LTD,16/04/2021,"4,588.60",6223-Independent Foster Care-Oth Agency Provision,THIRD PARTY PAYMENTS,PRIVATE CONTRACTOR,REVENUE
Walsall Council,http://opendatacommunities.org/id/metropolitan-district-council/walsall,WC125-708,30.04.2021,CHILDRENS,REDACTED,01/04/2021,340.00,6223-Internal Foster Carers-Carer Fees,TRANSFER PAYMENTS,CHILDREN SOCIAL SERVICES CLIENT,REVENUE
Walsall Council,http://opendatacommunities.org/id/metropolitan-district-council/walsall,WC125-709,30.04.2021,CHILDRENS,REDACTED,01/04/2021,300.00,6223-Foster Carers Holiday/Christmas Allowances,TRANSFER PAYMENTS,CHILDREN SOCIAL SERVICES CLIENT,REVENUE
Walsall Council,http://opendatacommunities.org/id/metropolitan-district-council/walsall,WC125-710,30.04.2021,CHILDRENS,REDACTED,01/04/2021,600.00,6223-Foster Carers Maintenance Allowance,TRANSFER PAYMENTS,CHILDREN SOCIAL SERVICES CLIENT,REVENUE
Walsall Council,http://opendatacommunities.org/id/metropolitan-district-council/walsall,WC125-711,30.04.2021,ECONOMY & ENVIRONMENT,BARCHAM TREES PLC,09/04/2021,"1,540.00",6410-Materials,SUPPLIES & SERVICES,EQUIPMENT FURNITURE & MATERIALS,REVENUE
Walsall Council,http://opendatacommunities.org/id/metropolitan-district-council/walsall,WC125-712,30.04.2021,ECONOMY & ENVIRONMENT,BARCHAM TREES PLC,09/04/2021,"2,310.00",6410-Materials,SUPPLIES & SERVICES,EQUIPMENT FURNITURE & MATERIALS,REVENUE
Walsall Council,http://opendatacommunities.org/id/metropolitan-district-council/walsall,WC125-713,30.04.2021,CHILDRENS,BARNARDOS SERVICES LTD,20/04/2021,400.00,6221-External Training,INDIRECT EMPLOYEES,EXTERNAL TRAINING,REVENUE
Walsall Council,http://opendatacommunities.org/id/metropolitan-district-council/walsall,WC125-714,30.04.2021,CHILDRENS,BASE 25,13/04/2021,269.20,6241-Professional Fees & Services,SUPPLIES & SERVICES,SERVICES,REVENUE
Walsall Council,http://opendatacommunities.org/id/metropolitan-district-council/walsall,WC125-715,30.04.2021,CHILDRENS,BASE 25,13/04/2021,385.00,6241-Professional Fees & Services,SUPPLIES & SERVICES,SERVICES,REVENUE
Walsall Council,http://opendatacommunities.org/id/metropolitan-district-council/walsall,WC125-716,30.04.2021,CHILDRENS,BASE 25,13/04/2021,398.00,6241-Professional Fees & Services,SUPPLIES & SERVICES,SERVICES,REVENUE
Walsall Council,http://opendatacommunities.org/id/metropolitan-district-council/walsall,WC125-717,30.04.2021,CHILDRENS,BASE 25,13/04/2021,292.00,6241-Professional Fees & Services,SUPPLIES & SERVICES,SERVICES,REVENUE
Walsall Council,http://opendatacommunities.org/id/metropolitan-district-council/walsall,WC125-718,30.04.2021,CHILDRENS,BASE 25,13/04/2021,389.20,6241-Professional Fees & Services,SUPPLIES & SERVICES,SERVICES,REVENUE
Walsall Council,http://opendatacommunities.org/id/metropolitan-district-council/walsall,WC125-719,30.04.2021,RESOURCES AND TRANSFORMATION,BASEMAP LTD,20/04/2021,825.00,6312-Subscriptions,SUPPLIES & SERVICES,GRANTS (EXP) & SUBSCRIPTIONS,REVENUE
Walsall Council,http://opendatacommunities.org/id/metropolitan-district-council/walsall,WC125-720,30.04.2021,RESOURCES AND TRANSFORMATION,BASEMAP LTD,20/04/2021,"1,250.00",6312-Subscriptions,SUPPLIES & SERVICES,GRANTS (EXP) & SUBSCRIPTIONS,REVENUE
Walsall Council,http://opendatacommunities.org/id/metropolitan-district-council/walsall,WC125-721,30.04.2021,RESOURCES AND TRANSFORMATION,BAT FABRICATIONS LTD,01/04/2021,"1,000.00",6310-Planned Maintenance,PREMISES,REPAIRS & MAINTENANCE,REVENUE
Walsall Council,http://opendatacommunities.org/id/metropolitan-district-council/walsall,WC125-722,30.04.2021,CHILDRENS,BEACON CHILDCARE LTD,16/04/2021,"12,200.00",6223-External Residential Care-Oth Agency Provision,THIRD PARTY PAYMENTS,PRIVATE CONTRACTOR,REVENUE
Walsall Council,http://opendatacommunities.org/id/metropolitan-district-council/walsall,WC125-723,30.04.2021,ECONOMY & ENVIRONMENT,BEADEN POWERLEC LIMITED,14/04/2021,"1,735.00",6413-Repair & Maintenance of Furniture & Equipment,SUPPLIES & SERVICES,EQUIPMENT FURNITURE & MATERIALS,REVENUE
Walsall Council,http://opendatacommunities.org/id/metropolitan-district-council/walsall,WC125-724,30.04.2021,ECONOMY & ENVIRONMENT,BEADEN POWERLEC LIMITED,26/04/2021,550.00,6413-Repair & Maintenance of Furniture & Equipment,SUPPLIES & SERVICES,EQUIPMENT FURNITURE & MATERIALS,REVENUE
Walsall Council,http://opendatacommunities.org/id/metropolitan-district-council/walsall,WC125-725,30.04.2021,CHILDRENS,BECKIE'S CHILDMINDING,22/04/2021,"1,614.00",1184-Other-Grants to Other Orgs,SUPPLIES & SERVICES,GRANTS (EXP) & SUBSCRIPTIONS,REVENUE
Walsall Council,http://opendatacommunities.org/id/metropolitan-district-council/walsall,WC125-726,30.04.2021,CHILDRENS,BECKIE'S CHILDMINDING,22/04/2021,"1,363.11",1184-Other-Grants to Other Orgs,SUPPLIES & SERVICES,GRANTS (EXP) & SUBSCRIPTIONS,REVENUE
Walsall Council,http://opendatacommunities.org/id/metropolitan-district-council/walsall,WC125-727,30.04.2021,CHILDRENS,BECKYS CHILDMINDING SERVICE,22/04/2021,"2,421.32",1184-Other-Grants to Other Orgs,SUPPLIES & SERVICES,GRANTS (EXP) & SUBSCRIPTIONS,REVENUE
Walsall Council,http://opendatacommunities.org/id/metropolitan-district-council/walsall,WC125-728,30.04.2021,CHILDRENS,BECKYS CHILDMINDING SERVICE,22/04/2021,"2,726.23",1184-Other-Grants to Other Orgs,SUPPLIES & SERVICES,GRANTS (EXP) & SUBSCRIPTIONS,REVENUE
Walsall Council,http://opendatacommunities.org/id/metropolitan-district-council/walsall,WC125-729,30.04.2021,ADULT SOCIAL CARE,BEECHWOODCOURT LTD  T/A BEECHWOOD COLLEGE,07/04/2021,"13,568.65",6541-Residential,THIRD PARTY PAYMENTS,PRIVATE CONTRACTOR,REVENUE
Walsall Council,http://opendatacommunities.org/id/metropolitan-district-council/walsall,WC125-730,30.04.2021,ADULT SOCIAL CARE,BELVIDERE COURT,12/04/2021,"2,867.20",6541-Residential,THIRD PARTY PAYMENTS,PRIVATE CONTRACTOR,REVENUE
Walsall Council,http://opendatacommunities.org/id/metropolitan-district-council/walsall,WC125-731,30.04.2021,ADULT SOCIAL CARE,BELVIDERE COURT,12/04/2021,"2,396.00",6541-Nursing,THIRD PARTY PAYMENTS,PRIVATE CONTRACTOR,REVENUE
Walsall Council,http://opendatacommunities.org/id/metropolitan-district-council/walsall,WC125-732,30.04.2021,ADULT SOCIAL CARE,BENEDON HEALTHCARE LTD,07/04/2021,"1,381.44",6541-Community Supported Living/Supported Accommodation,THIRD PARTY PAYMENTS,PRIVATE CONTRACTOR,REVENUE
Walsall Council,http://opendatacommunities.org/id/metropolitan-district-council/walsall,WC125-733,30.04.2021,ADULT SOCIAL CARE,BENEDON HEALTHCARE LTD,07/04/2021,"5,842.36",6541-Community Supported Living/Supported Accommodation,THIRD PARTY PAYMENTS,PRIVATE CONTRACTOR,REVENUE
Walsall Council,http://opendatacommunities.org/id/metropolitan-district-council/walsall,WC125-734,30.04.2021,ADULT SOCIAL CARE,REDACTED,06/04/2021,"3,975.85",6541-Direct Payment,THIRD PARTY PAYMENTS,PRIVATE CONTRACTOR,REVENUE
Walsall Council,http://opendatacommunities.org/id/metropolitan-district-council/walsall,WC125-735,30.04.2021,ADULT SOCIAL CARE,BENTLEY COURT PRIORY,08/04/2021,"1,125.30",6554-Professional Services-Priv Contractor & Other Agencies,THIRD PARTY PAYMENTS,PRIVATE CONTRACTOR,REVENUE
Walsall Council,http://opendatacommunities.org/id/metropolitan-district-council/walsall,WC125-736,30.04.2021,ADULT SOCIAL CARE,BENTLEY COURT PRIORY,12/04/2021,"2,696.00",6541-Nursing EMI,THIRD PARTY PAYMENTS,PRIVATE CONTRACTOR,REVENUE
Walsall Council,http://opendatacommunities.org/id/metropolitan-district-council/walsall,WC125-737,30.04.2021,ADULT SOCIAL CARE,BENTLEY COURT PRIORY,12/04/2021,"2,696.00",6541-Nursing EMI,THIRD PARTY PAYMENTS,PRIVATE CONTRACTOR,REVENUE
Walsall Council,http://opendatacommunities.org/id/metropolitan-district-council/walsall,WC125-738,30.04.2021,ADULT SOCIAL CARE,BENTLEY COURT PRIORY,12/04/2021,"2,396.00",6541-Nursing,THIRD PARTY PAYMENTS,PRIVATE CONTRACTOR,REVENUE
Walsall Council,http://opendatacommunities.org/id/metropolitan-district-council/walsall,WC125-739,30.04.2021,ADULT SOCIAL CARE,BENTLEY COURT PRIORY,12/04/2021,"2,696.00",6541-Nursing EMI,THIRD PARTY PAYMENTS,PRIVATE CONTRACTOR,REVENUE
Walsall Council,http://opendatacommunities.org/id/metropolitan-district-council/walsall,WC125-740,30.04.2021,ADULT SOCIAL CARE,BENTLEY COURT PRIORY,12/04/2021,"2,396.00",6541-Nursing,THIRD PARTY PAYMENTS,PRIVATE CONTRACTOR,REVENUE
Walsall Council,http://opendatacommunities.org/id/metropolitan-district-council/walsall,WC125-741,30.04.2021,CHILDRENS,REDACTED,22/04/2021,"3,180.60",1184-Other-Grants to Other Orgs,SUPPLIES & SERVICES,GRANTS (EXP) & SUBSCRIPTIONS,REVENUE
Walsall Council,http://opendatacommunities.org/id/metropolitan-district-council/walsall,WC125-742,30.04.2021,HOLDING ACCOUNTS,BERRYMANS LACE MAWER LLP,26/04/2021,"7,839.00",2877-Insurance Payment Claims,SUPPLIES & SERVICES,INSURANCE,REVENUE
Walsall Council,http://opendatacommunities.org/id/metropolitan-district-council/walsall,WC125-743,30.04.2021,ADULT SOCIAL CARE,REDACTED,06/04/2021,"1,924.68",6541-Direct Payment,THIRD PARTY PAYMENTS,PRIVATE CONTRACTOR,REVENUE
Walsall Council,http://opendatacommunities.org/id/metropolitan-district-council/walsall,WC125-744,30.04.2021,ADULT SOCIAL CARE,BESS CARE LIMITED,07/04/2021,258.30,6541-Domiciliary Care,THIRD PARTY PAYMENTS,PRIVATE CONTRACTOR,REVENUE
Walsall Council,http://opendatacommunities.org/id/metropolitan-district-council/walsall,WC125-745,30.04.2021,ADULT SOCIAL CARE,BESS CARE LIMITED,07/04/2021,350.88,6541-Domiciliary Care,THIRD PARTY PAYMENTS,PRIVATE CONTRACTOR,REVENUE
Walsall Council,http://opendatacommunities.org/id/metropolitan-district-council/walsall,WC125-746,30.04.2021,ADULT SOCIAL CARE,BESS CARE LIMITED,07/04/2021,755.79,6541-Domiciliary Care,THIRD PARTY PAYMENTS,PRIVATE CONTRACTOR,REVENUE
Walsall Council,http://opendatacommunities.org/id/metropolitan-district-council/walsall,WC125-747,30.04.2021,ADULT SOCIAL CARE,BESS CARE LIMITED,07/04/2021,505.09,6541-Domiciliary Care,THIRD PARTY PAYMENTS,PRIVATE CONTRACTOR,REVENUE
Walsall Council,http://opendatacommunities.org/id/metropolitan-district-council/walsall,WC125-748,30.04.2021,ADULT SOCIAL CARE,BESS CARE LIMITED,07/04/2021,258.30,6541-Domiciliary Care,THIRD PARTY PAYMENTS,PRIVATE CONTRACTOR,REVENUE
Walsall Council,http://opendatacommunities.org/id/metropolitan-district-council/walsall,WC125-749,30.04.2021,ADULT SOCIAL CARE,BESS CARE LIMITED,07/04/2021,350.88,6541-Domiciliary Care,THIRD PARTY PAYMENTS,PRIVATE CONTRACTOR,REVENUE
Walsall Council,http://opendatacommunities.org/id/metropolitan-district-council/walsall,WC125-750,30.04.2021,ADULT SOCIAL CARE,BESS CARE LIMITED,07/04/2021,755.79,6541-Domiciliary Care,THIRD PARTY PAYMENTS,PRIVATE CONTRACTOR,REVENUE
Walsall Council,http://opendatacommunities.org/id/metropolitan-district-council/walsall,WC125-751,30.04.2021,ADULT SOCIAL CARE,BESS CARE LIMITED,07/04/2021,539.80,6541-Domiciliary Care,THIRD PARTY PAYMENTS,PRIVATE CONTRACTOR,REVENUE
Walsall Council,http://opendatacommunities.org/id/metropolitan-district-council/walsall,WC125-752,30.04.2021,ADULT SOCIAL CARE,BESS CARE LIMITED,07/04/2021,258.30,6541-Domiciliary Care,THIRD PARTY PAYMENTS,PRIVATE CONTRACTOR,REVENUE
Walsall Council,http://opendatacommunities.org/id/metropolitan-district-council/walsall,WC125-753,30.04.2021,ADULT SOCIAL CARE,BESS CARE LIMITED,07/04/2021,350.88,6541-Domiciliary Care,THIRD PARTY PAYMENTS,PRIVATE CONTRACTOR,REVENUE
Walsall Council,http://opendatacommunities.org/id/metropolitan-district-council/walsall,WC125-754,30.04.2021,ADULT SOCIAL CARE,BESS CARE LIMITED,07/04/2021,755.79,6541-Domiciliary Care,THIRD PARTY PAYMENTS,PRIVATE CONTRACTOR,REVENUE
Walsall Council,http://opendatacommunities.org/id/metropolitan-district-council/walsall,WC125-755,30.04.2021,ADULT SOCIAL CARE,BESS CARE LIMITED,07/04/2021,562.93,6541-Domiciliary Care,THIRD PARTY PAYMENTS,PRIVATE CONTRACTOR,REVENUE
Walsall Council,http://opendatacommunities.org/id/metropolitan-district-council/walsall,WC125-756,30.04.2021,ADULT SOCIAL CARE,BESS CARE LIMITED,07/04/2021,250.59,6541-Domiciliary Care,THIRD PARTY PAYMENTS,PRIVATE CONTRACTOR,REVENUE
Walsall Council,http://opendatacommunities.org/id/metropolitan-district-council/walsall,WC125-757,30.04.2021,ADULT SOCIAL CARE,BESS CARE LIMITED,07/04/2021,350.88,6541-Domiciliary Care,THIRD PARTY PAYMENTS,PRIVATE CONTRACTOR,REVENUE
Walsall Council,http://opendatacommunities.org/id/metropolitan-district-council/walsall,WC125-758,30.04.2021,ADULT SOCIAL CARE,BESS CARE LIMITED,07/04/2021,647.82,6541-Domiciliary Care,THIRD PARTY PAYMENTS,PRIVATE CONTRACTOR,REVENUE
Walsall Council,http://opendatacommunities.org/id/metropolitan-district-council/walsall,WC125-759,30.04.2021,ADULT SOCIAL CARE,BESS CARE LIMITED,07/04/2021,555.22,6541-Domiciliary Care,THIRD PARTY PAYMENTS,PRIVATE CONTRACTOR,REVENUE
Walsall Council,http://opendatacommunities.org/id/metropolitan-district-council/walsall,WC125-760,30.04.2021,CHILDRENS,BETHEL UNITED CHURCH,23/04/2021,500.20,6213-Professional Fees & Services,SUPPLIES & SERVICES,SERVICES,REVENUE
Walsall Council,http://opendatacommunities.org/id/metropolitan-district-council/walsall,WC125-761,30.04.2021,ADULT SOCIAL CARE,BETHPHAGE.,07/04/2021,900.88,6541-Community Supported Living/Supported Accommodation,THIRD PARTY PAYMENTS,PRIVATE CONTRACTOR,REVENUE
Walsall Council,http://opendatacommunities.org/id/metropolitan-district-council/walsall,WC125-762,30.04.2021,ADULT SOCIAL CARE,BETHPHAGE.,07/04/2021,"1,322.24",6541-Community Supported Living/Supported Accommodation,THIRD PARTY PAYMENTS,PRIVATE CONTRACTOR,REVENUE
Walsall Council,http://opendatacommunities.org/id/metropolitan-district-council/walsall,WC125-763,30.04.2021,ADULT SOCIAL CARE,BETHPHAGE.,07/04/2021,"1,336.76",6541-Community Supported Living/Supported Accommodation,THIRD PARTY PAYMENTS,PRIVATE CONTRACTOR,REVENUE
Walsall Council,http://opendatacommunities.org/id/metropolitan-district-council/walsall,WC125-764,30.04.2021,ADULT SOCIAL CARE,BETHPHAGE.,07/04/2021,616.20,6541-Community Supported Living/Supported Accommodation,THIRD PARTY PAYMENTS,PRIVATE CONTRACTOR,REVENUE
Walsall Council,http://opendatacommunities.org/id/metropolitan-district-council/walsall,WC125-765,30.04.2021,ADULT SOCIAL CARE,BETHPHAGE.,07/04/2021,"1,511.12",6541-Community Supported Living/Supported Accommodation,THIRD PARTY PAYMENTS,PRIVATE CONTRACTOR,REVENUE
Walsall Council,http://opendatacommunities.org/id/metropolitan-district-council/walsall,WC125-766,30.04.2021,ADULT SOCIAL CARE,BETHPHAGE.,07/04/2021,900.88,6541-Community Supported Living/Supported Accommodation,THIRD PARTY PAYMENTS,PRIVATE CONTRACTOR,REVENUE
Walsall Council,http://opendatacommunities.org/id/metropolitan-district-council/walsall,WC125-767,30.04.2021,ADULT SOCIAL CARE,BETHPHAGE.,07/04/2021,"1,627.36",6541-Community Supported Living/Supported Accommodation,THIRD PARTY PAYMENTS,PRIVATE CONTRACTOR,REVENUE
Walsall Council,http://opendatacommunities.org/id/metropolitan-district-council/walsall,WC125-768,30.04.2021,ADULT SOCIAL CARE,BETHPHAGE.,07/04/2021,"1,336.76",6541-Community Supported Living/Supported Accommodation,THIRD PARTY PAYMENTS,PRIVATE CONTRACTOR,REVENUE
Walsall Council,http://opendatacommunities.org/id/metropolitan-district-council/walsall,WC125-769,30.04.2021,ADULT SOCIAL CARE,BETHPHAGE.,07/04/2021,616.20,6541-Community Supported Living/Supported Accommodation,THIRD PARTY PAYMENTS,PRIVATE CONTRACTOR,REVENUE
Walsall Council,http://opendatacommunities.org/id/metropolitan-district-council/walsall,WC125-770,30.04.2021,ADULT SOCIAL CARE,BETHPHAGE.,07/04/2021,"1,511.12",6541-Community Supported Living/Supported Accommodation,THIRD PARTY PAYMENTS,PRIVATE CONTRACTOR,REVENUE
Walsall Council,http://opendatacommunities.org/id/metropolitan-district-council/walsall,WC125-771,30.04.2021,ADULT SOCIAL CARE,BETHPHAGE.,07/04/2021,905.20,6541-Community Supported Living/Supported Accommodation,THIRD PARTY PAYMENTS,PRIVATE CONTRACTOR,REVENUE
Walsall Council,http://opendatacommunities.org/id/metropolitan-district-council/walsall,WC125-772,30.04.2021,ADULT SOCIAL CARE,BETHPHAGE.,07/04/2021,"1,635.20",6541-Community Supported Living/Supported Accommodation,THIRD PARTY PAYMENTS,PRIVATE CONTRACTOR,REVENUE
Walsall Council,http://opendatacommunities.org/id/metropolitan-district-council/walsall,WC125-773,30.04.2021,ADULT SOCIAL CARE,BETHPHAGE.,07/04/2021,"1,576.80",6541-Community Supported Living/Supported Accommodation,THIRD PARTY PAYMENTS,PRIVATE CONTRACTOR,REVENUE
Walsall Council,http://opendatacommunities.org/id/metropolitan-district-council/walsall,WC125-774,30.04.2021,ADULT SOCIAL CARE,BETHPHAGE.,07/04/2021,627.80,6541-Community Supported Living/Supported Accommodation,THIRD PARTY PAYMENTS,PRIVATE CONTRACTOR,REVENUE
Walsall Council,http://opendatacommunities.org/id/metropolitan-district-council/walsall,WC125-775,30.04.2021,ADULT SOCIAL CARE,BETHPHAGE.,07/04/2021,"1,518.40",6541-Community Supported Living/Supported Accommodation,THIRD PARTY PAYMENTS,PRIVATE CONTRACTOR,REVENUE
Walsall Council,http://opendatacommunities.org/id/metropolitan-district-council/walsall,WC125-776,30.04.2021,ADULT SOCIAL CARE,BETHPHAGE.,07/04/2021,"8,417.64",6541-Community Supported Living/Supported Accommodation,THIRD PARTY PAYMENTS,PRIVATE CONTRACTOR,REVENUE
Walsall Council,http://opendatacommunities.org/id/metropolitan-district-council/walsall,WC125-777,30.04.2021,ADULT SOCIAL CARE,BETHPHAGE.,07/04/2021,905.20,6541-Community Supported Living/Supported Accommodation,THIRD PARTY PAYMENTS,PRIVATE CONTRACTOR,REVENUE
Walsall Council,http://opendatacommunities.org/id/metropolitan-district-council/walsall,WC125-778,30.04.2021,ADULT SOCIAL CARE,BETHPHAGE.,07/04/2021,"1,635.20",6541-Community Supported Living/Supported Accommodation,THIRD PARTY PAYMENTS,PRIVATE CONTRACTOR,REVENUE
Walsall Council,http://opendatacommunities.org/id/metropolitan-district-council/walsall,WC125-779,30.04.2021,ADULT SOCIAL CARE,BETHPHAGE.,07/04/2021,"1,576.80",6541-Community Supported Living/Supported Accommodation,THIRD PARTY PAYMENTS,PRIVATE CONTRACTOR,REVENUE
Walsall Council,http://opendatacommunities.org/id/metropolitan-district-council/walsall,WC125-780,30.04.2021,ADULT SOCIAL CARE,BETHPHAGE.,07/04/2021,627.80,6541-Community Supported Living/Supported Accommodation,THIRD PARTY PAYMENTS,PRIVATE CONTRACTOR,REVENUE
Walsall Council,http://opendatacommunities.org/id/metropolitan-district-council/walsall,WC125-781,30.04.2021,ADULT SOCIAL CARE,BETHPHAGE.,07/04/2021,"1,518.40",6541-Community Supported Living/Supported Accommodation,THIRD PARTY PAYMENTS,PRIVATE CONTRACTOR,REVENUE
Walsall Council,http://opendatacommunities.org/id/metropolitan-district-council/walsall,WC125-782,30.04.2021,ADULT SOCIAL CARE,BETHPHAGE.,07/04/2021,"8,417.64",6541-Community Supported Living/Supported Accommodation,THIRD PARTY PAYMENTS,PRIVATE CONTRACTOR,REVENUE
Walsall Council,http://opendatacommunities.org/id/metropolitan-district-council/walsall,WC125-783,30.04.2021,ADULT SOCIAL CARE,BETHPHAGE.,12/04/2021,647.66,6541-Domiciliary Care,THIRD PARTY PAYMENTS,PRIVATE CONTRACTOR,REVENUE
Walsall Council,http://opendatacommunities.org/id/metropolitan-district-council/walsall,WC125-784,30.04.2021,ADULT SOCIAL CARE,BETHPHAGE.,12/04/2021,848.10,6541-Domiciliary Care,THIRD PARTY PAYMENTS,PRIVATE CONTRACTOR,REVENUE
Walsall Council,http://opendatacommunities.org/id/metropolitan-district-council/walsall,WC125-785,30.04.2021,ADULT SOCIAL CARE,BETHPHAGE.,12/04/2021,560.26,6541-Domiciliary Care,THIRD PARTY PAYMENTS,PRIVATE CONTRACTOR,REVENUE
Walsall Council,http://opendatacommunities.org/id/metropolitan-district-council/walsall,WC125-786,30.04.2021,ADULT SOCIAL CARE,BETHPHAGE.,12/04/2021,647.68,6541-Domiciliary Care,THIRD PARTY PAYMENTS,PRIVATE CONTRACTOR,REVENUE
Walsall Council,http://opendatacommunities.org/id/metropolitan-district-council/walsall,WC125-787,30.04.2021,ADULT SOCIAL CARE,BETHPHAGE.,12/04/2021,852.99,6541-Domiciliary Care,THIRD PARTY PAYMENTS,PRIVATE CONTRACTOR,REVENUE
Walsall Council,http://opendatacommunities.org/id/metropolitan-district-council/walsall,WC125-788,30.04.2021,ADULT SOCIAL CARE,BETHPHAGE.,12/04/2021,563.18,6541-Domiciliary Care,THIRD PARTY PAYMENTS,PRIVATE CONTRACTOR,REVENUE
Walsall Council,http://opendatacommunities.org/id/metropolitan-district-council/walsall,WC125-789,30.04.2021,ADULT SOCIAL CARE,BETHPHAGE.,12/04/2021,651.22,6541-Domiciliary Care,THIRD PARTY PAYMENTS,PRIVATE CONTRACTOR,REVENUE
Walsall Council,http://opendatacommunities.org/id/metropolitan-district-council/walsall,WC125-790,30.04.2021,ADULT SOCIAL CARE,BETHPHAGE.,12/04/2021,651.06,6541-Domiciliary Care,THIRD PARTY PAYMENTS,PRIVATE CONTRACTOR,REVENUE
Walsall Council,http://opendatacommunities.org/id/metropolitan-district-council/walsall,WC125-791,30.04.2021,ADULT SOCIAL CARE,BETHPHAGE.,26/04/2021,654.00,6541-Domiciliary Care,THIRD PARTY PAYMENTS,PRIVATE CONTRACTOR,REVENUE
Walsall Council,http://opendatacommunities.org/id/metropolitan-district-council/walsall,WC125-792,30.04.2021,ADULT SOCIAL CARE,BETHPHAGE.,26/04/2021,565.75,6541-Domiciliary Care,THIRD PARTY PAYMENTS,PRIVATE CONTRACTOR,REVENUE
Walsall Council,http://opendatacommunities.org/id/metropolitan-district-council/walsall,WC125-793,30.04.2021,ADULT SOCIAL CARE,BETHPHAGE.,26/04/2021,654.05,6541-Domiciliary Care,THIRD PARTY PAYMENTS,PRIVATE CONTRACTOR,REVENUE
Walsall Council,http://opendatacommunities.org/id/metropolitan-district-council/walsall,WC125-794,30.04.2021,ADULT SOCIAL CARE,BETHPHAGE.,26/04/2021,565.75,6541-Domiciliary Care,THIRD PARTY PAYMENTS,PRIVATE CONTRACTOR,REVENUE
Walsall Council,http://opendatacommunities.org/id/metropolitan-district-council/walsall,WC125-795,30.04.2021,ADULT SOCIAL CARE,BETHPHAGE.,26/04/2021,654.05,6541-Domiciliary Care,THIRD PARTY PAYMENTS,PRIVATE CONTRACTOR,REVENUE
Walsall Council,http://opendatacommunities.org/id/metropolitan-district-council/walsall,WC125-796,30.04.2021,ADULT SOCIAL CARE,BETHPHAGE.,26/04/2021,654.00,6541-Domiciliary Care,THIRD PARTY PAYMENTS,PRIVATE CONTRACTOR,REVENUE
Walsall Council,http://opendatacommunities.org/id/metropolitan-district-council/walsall,WC125-797,30.04.2021,ADULT SOCIAL CARE,REDACTED,06/04/2021,824.06,6541-Direct Payment,THIRD PARTY PAYMENTS,PRIVATE CONTRACTOR,REVENUE
Walsall Council,http://opendatacommunities.org/id/metropolitan-district-council/walsall,WC125-798,30.04.2021,ADULT SOCIAL CARE,REDACTED,06/04/2021,"1,134.10",6541-Direct Payment,THIRD PARTY PAYMENTS,PRIVATE CONTRACTOR,REVENUE
Walsall Council,http://opendatacommunities.org/id/metropolitan-district-council/walsall,WC125-799,30.04.2021,CHILDRENS,BIRCHILLS C OF E COMMUNITY ACADEMY,21/04/2021,"33,790.00",1184-Other-Grants to Other Orgs,SUPPLIES & SERVICES,GRANTS (EXP) & SUBSCRIPTIONS,REVENUE
Walsall Council,http://opendatacommunities.org/id/metropolitan-district-council/walsall,WC125-800,30.04.2021,CHILDRENS,BIRMINGHAM CHILDRENS TRUST #,21/04/2021,"2,428.58",6223-Accommodation and Related Costs-Assistance to S/S Clients,TRANSFER PAYMENTS,ADULT SOCIAL SERVICES CLIENT,REVENUE
Walsall Council,http://opendatacommunities.org/id/metropolitan-district-council/walsall,WC125-801,30.04.2021,CHILDRENS,BIRMINGHAM CITY COUNCIL,28/04/2021,251.47,6223-Accommodation and Related Costs-Assistance to S/S Clients,TRANSFER PAYMENTS,ADULT SOCIAL SERVICES CLIENT,REVENUE
Walsall Council,http://opendatacommunities.org/id/metropolitan-district-council/walsall,WC125-802,30.04.2021,CHILDRENS,BIRMINGHAM CITY COUNCIL,07/04/2021,"3,142.32",6241-Hire of Vehicle with Driver,TRANSPORT,DIRECT TRANSPORT COSTS,REVENUE
Walsall Council,http://opendatacommunities.org/id/metropolitan-district-council/walsall,WC125-803,30.04.2021,CHILDRENS,BIRMINGHAM CITY COUNCIL,23/04/2021,"-3,906.71",1220-Professional Fees & Services,SUPPLIES & SERVICES,SERVICES,REVENUE
Walsall Council,http://opendatacommunities.org/id/metropolitan-district-council/walsall,WC125-804,30.04.2021,CHILDRENS,BIRMINGHAM CITY COUNCIL,23/04/2021,"3,906.71",1220-Professional Fees & Services,SUPPLIES & SERVICES,SERVICES,REVENUE
Walsall Council,http://opendatacommunities.org/id/metropolitan-district-council/walsall,WC125-805,30.04.2021,CHILDRENS,BIRMINGHAM CITY COUNCIL,23/04/2021,"3,960.71",1220-Professional Fees & Services,SUPPLIES & SERVICES,SERVICES,REVENUE
